Workbook

Sheet Ведомственная 2008 (hidden)
B1: Приложение 13
B2: к Закону Московской области №
B3: "О внесении изменений в Закон Московской области
B4: "О бюджете Московской области на 2008 год"
B6: Приложение 19
B7: к Закону Московской области №
B8: "О бюджете Московской области на 2008 год"
B11: Ведомственная структура расходов
B12: бюджета Московской области на 2008 год
H14: (тыс. рублей)
B15: Наименования | C15: Код | D15: Рз | E15: ПР | F15: ЦСР | G15: ВР | H15: Сумма
A17: 0 | B17: Московская областная Дума | C17: 001 | H17: =H18+H42+H47+H52 -> 926254
A18: 1 | B18: Общегосударственные вопросы | C18: 001 | D18: 01 | H18: =H19+H34 -> 818155
A19: 103 | B19: Функционирование законодательных (представительных) органов государственной власти и представительных органов муниципальных образований | C19: 001 | D19: 01 | E19: 03 | H19: =H20+H27 -> 806070
A20: 103002 | B20: Руководство и управление в сфере установленных функций органов государственной власти субъектов Российской Федерации и органов местного самоуправления | C20: 001 | D20: 01 | E20: 03 | F20: 002 00 00 | H20: =H21+H23+H25 -> 797591
A21: 10300204 | B21: Центральный аппарат | C21: 001 | D21: 01 | E21: 03 | F21: 002 04 00 | H21: =H22 -> 709475
A22: 10300204012 | B22: Выполнение функций государственными органами | C22: 001 | D22: 01 | E22: 03 | F22: 002 04 00 | G22: 012 | H22: 709475
A23: 10300209 | B23: Председатель законодательного (представительного) органа государственной власти субъекта Российской Федерации | C23: 001 | D23: 01 | E23: 03 | F23: 002 09 00 | H23: =H24 -> 2381
A24: 10300209012 | B24: Выполнение функций государственными органами | C24: 001 | D24: 01 | E24: 03 | F24: 002 09 00 | G24: 012 | H24: 2381
A25: 10300210 | B25: Депутаты (члены) законодательного (представительного) органа государственной власти субъекта Российской Федерации | C25: 001 | D25: 01 | E25: 03 | F25: 002 10 00 | H25: =H26 -> 85735
A26: 10300210012 | B26: Выполнение функций государственными органами | C26: 001 | D26: 01 | E26: 03 | F26: 002 10 00 | G26: 012 | H26: 85735
A27: 103803 | B27: Расходы на страхование | C27: 001 | D27: 01 | E27: 03 | F27: 803 00 00 | H27: =H28+H30+H32 -> 8479
A28: 1038030001 | B28: Расходы на страхование имущества, находящегося в государственной собственности Московской области | C28: 001 | D28: 01 | E28: 03 | F28: 803 00 01 | H28: =H29 -> 7300
A29: 1038030001013 | B29: Прочие расходы | C29: 001 | D29: 01 | E29: 03 | F29: 803 00 01 | G29: 013 | H29: 7300
A30: 1038030003 | B30: Расходы на обязательное страхование гражданской ответственности владельцев транспортных средств | C30: 001 | D30: 01 | E30: 03 | F30: 803 00 03 | H30: =H31 -> 1055
A31: 1038030003013 | B31: Прочие расходы | C31: 001 | D31: 01 | E31: 03 | F31: 803 00 03 | G31: 013 | H31: 1055
A32: 1038030004 | B32: Расходы на добровольное страхование гражданской ответственности владельцев транспортных средств | C32: 001 | D32: 01 | E32: 03 | F32: 803 00 04 | H32: =H33 -> 124
A33: 1038030004013 | B33: Прочие расходы | C33: 001 | D33: 01 | E33: 03 | F33: 803 00 04 | G33: 013 | H33: 124
A34: 114 | B34: Другие общегосударственные вопросы | C34: 001 | D34: 01 | E34: 14 | H34: =H35 -> 12085
A35: 114001 | B35: Руководство и управление в сфере установленных функций | C35: 001 | D35: 01 | E35: 14 | F35: 001 00 00 | H35: =H36+H38+H40 -> 12085
A36: 11400112 | B36: Члены Совета Федерации и их помощники | C36: 001 | D36: 01 | E36: 14 | F36: 001 12 00 | H36: =H37 -> 364
A37: 11400112012 | B37: Выполнение функций государственными органами | C37: 001 | D37: 01 | E37: 14 | F37: 001 12 00 | G37: 012 | H37: 364
A38: 11400161 | B38: Расходы, связанные с выплатой Премии Московской областной Думы | C38: 001 | D38: 01 | E38: 14 | F38: 001 61 00 | H38: =H39 -> 8621
A39: 11400161013 | B39: Прочие расходы | C39: 001 | D39: 01 | E39: 14 | F39: 001 61 00 | G39: 013 | H39: =8621-8621+8621 -> 8621
A40: 11400162 | B40: Расходы на выплату премий победителям конкурсов профессионального мастерства и награждения ценными подарками в связи с проведение профессиональных праздников | C40: 001 | D40: 01 | E40: 14 | F40: 001 62 00 | H40: =H41 -> 3100
A41: 11400162013 | B41: Прочие расходы | C41: 001 | D41: 01 | E41: 14 | F41: 001 62 00 | G41: 013 | H41: 3100
A42: 5 | B42: Жилищно-коммунальное хозяйство | C42: 001 | D42: 05 | H42: =H43 -> 65000
A43: 501 | B43: Жилищное хозяйство | C43: 001 | D43: 05 | E43: 01 | H43: =H44 -> 65000
A44: 501350 | B44: Поддержка жилищного хозяйства | C44: 001 | D44: 05 | E44: 01 | F44: 350 00 00 | H44: =H45 -> 65000
A45: 50135003 | B45: Мероприятия в области жилищного хозяйства | C45: 001 | D45: 05 | E45: 01 | F45: 350 03 00 | H45: =H46 -> 65000
A46: 50135003012 | B46: Выполнение функций государственными органами | C46: 001 | D46: 05 | E46: 01 | F46: 350 03 00 | G46: 012 | H46: 65000
A47: 7 | B47: Образование | C47: 001 | D47: 07 | H47: =H48 -> 450
A48: 707 | B48: Молодежная политика и оздоровление детей | C48: 001 | D48: 07 | E48: 07 | H48: =H49 -> 450
A49: 707432 | B49: Мероприятия по проведению оздоровительной кампании детей | C49: 001 | D49: 07 | E49: 07 | F49: 432 00 00 | H49: =H50 -> 450
A50: 70743202 | B50: Оздоровление детей | C50: 001 | D50: 07 | E50: 07 | F50: 432 02 00 | H50: =H51 -> 450
A51: 70743202001 | B51: Выполнение функций бюджетными учреждениями | C51: 001 | D51: 07 | E51: 07 | F51: 432 02 00 | G51: 001 | H51: 450
A52: 9 | B52: Здравоохранение, физическая культура и спорт | C52: 001 | D52: 09 | H52: =H53 -> 42649
A53: 910 | B53: Другие вопросы в области здравоохранения, физической культуры и спорта | C53: 001 | D53: 09 | E53: 10 | H53: =H54 -> 42649
A54: 910485 | B54: Реализация государственных функций в области здравоохранения, спорта и туризма | C54: 001 | D54: 09 | E54: 10 | F54: 485 00 00 | H54: =H55 -> 42649
A55: 91048597 | B55: Мероприятия в области здравохранения, спорта и физической культуры, туризма | C55: 001 | D55: 09 | E55: 10 | F55: 485 97 00 | H55: =H56 -> 42649
A56: 91048597079 | B56: Мероприятия в области здравоохранения, спорта и физической культуры | C56: 001 | D56: 09 | E56: 10 | F56: 485 97 00 | G56: 079 | H56: 42649
A58: 0 | B58: Правительство Московской области | C58: 002 | H58: =H59+H87+H92+H97 -> 2730114
A59: 1 | B59: Общегосударственные вопросы | C59: 002 | D59: 01 | H59: =H60+H64+H70 -> 1958797
A60: 102 | B60: Функционирование высшего должностного лица субъекта Российской Федерации и муниципального образования | C60: 002 | D60: 01 | E60: 02 | H60: =H61 -> 2114
A61: 102002 | B61: Руководство и управление в сфере установленных функций органов государственной власти субъектов Российской Федерации и органов местного самоуправления | C61: 002 | D61: 01 | E61: 02 | F61: 002 00 00 | H61: =H62 -> 2114
A62: 10200201 | B62: Высшее должностное лицо субъекта Российской Федерации | C62: 002 | D62: 01 | E62: 02 | F62: 002 01 00 | H62: =H63 -> 2114
A63: 10200201012 | B63: Выполнение функций государственными органами | C63: 002 | D63: 01 | E63: 02 | F63: 002 01 00 | G63: 012 | H63: 2114
A64: 104 | B64: Функционирование Правительства Российской Федерации, высших исполнительных органов государственной власти субъектов Российской Федерации, местных администраций | C64: 002 | D64: 01 | E64: 04 | H64: =H65 -> 902951
A65: 104002 | B65: Руководство и управление в сфере установленных функций органов государственной власти субъектов Российской Федерации и органов местного самоуправления | C65: 002 | D65: 01 | E65: 04 | F65: 002 00 00 | H65: =H66+H68 -> 902951
A66: 10400204 | B66: Центральный аппарат | C66: 002 | D66: 01 | E66: 04 | F66: 002 04 00 | H66: =H67 -> 886096
A67: 10400204012 | B67: Выполнение функций государственными органами | C67: 002 | D67: 01 | E67: 04 | F67: 002 04 00 | G67: 012 | H67: 886096
A68: 10400206 | B68: Высшее должностное лицо субъекта Российской Федерации (руководитель высшего исполнительного органа государственной власти субъекта Российской Федерации) и его заместители | C68: 002 | D68: 01 | E68: 04 | F68: 002 06 00 | H68: =H69 -> 16855
A69: 10400206012 | B69: Выполнение функций государственными органами | C69: 002 | D69: 01 | E69: 04 | F69: 002 06 00 | G69: 012 | H69: 16855
A70: 114 | B70: Другие общегосударственные вопросы | C70: 002 | D70: 01 | E70: 14 | H70: =H71+H82 -> 1053732
A71: 114001 | B71: Руководство и управление в сфере установленных функций | C71: 002 | D71: 01 | E71: 14 | F71: 001 00 00 | H71: =H72+H74+H76+H78+H80 -> 26458
A72: 11400110 | B72: Депутаты Государственной Думы и их помощники | C72: 002 | D72: 01 | E72: 14 | F72: 001 10 00 | H72: =H73 -> 20804
A73: 11400110012 | B73: Выполнение функций государственными органами | C73: 002 | D73: 01 | E73: 14 | F73: 001 10 00 | G73: 012 | H73: 20804
A74: 11400112 | B74: Члены Совета Федерации и их помощники | C74: 002 | D74: 01 | E74: 14 | F74: 001 12 00 | H74: =H75 -> 484
A75: 11400112012 | B75: Выполнение функций государственными органами | C75: 002 | D75: 01 | E75: 14 | F75: 001 12 00 | G75: 012 | H75: 484
A76: 11400163 | B76: Расходы на выплату Премии Губернатора Московской области | C76: 002 | D76: 01 | E76: 14 | F76: 001 63 00 | H76: =H77 -> 2000
A77: 11400163013 | B77: Прочие расходы | C77: 002 | D77: 01 | E77: 14 | F77: 001 63 00 | G77: 013 | H77: 2000
A78: 11400164 | B78: Взносы Московской области в общественные организации, фонды, ассоциации | C78: 002 | D78: 01 | E78: 14 | F78: 001 64 00 | H78: =H79 -> 600
A79: 11400164013 | B79: Прочие расходы | C79: 002 | D79: 01 | E79: 14 | F79: 001 64 00 | G79: 013 | H79: 600
A80: 11400165 | B80: Расходы на реализацию Закона Московской области "О наградах Московской области" | C80: 002 | D80: 01 | E80: 14 | F80: 001 65 00 | H80: =H81 -> 2570
A81: 11400165013 | B81: Прочие расходы | C81: 002 | D81: 01 | E81: 14 | F81: 001 65 00 | G81: 013 | H81: 2570
A82: 114093 | B82: Учреждения по обеспечению хозяйственного обслуживания | C82: 002 | D82: 01 | E82: 14 | F82: 093 00 00 | H82: =H83+H85 -> 1027274
A83: 11409310 | B83: Обеспечение эксплуатации и надлежащего содержания зданий и помещений, занимаемых Правительством Московской области | C83: 002 | D83: 01 | E83: 14 | F83: 093 10 00 | H83: =H84 -> 27274
A84: 11409310001 | B84: Выполнение функций бюджетными учреждениями | C84: 002 | D84: 01 | E84: 14 | F84: 093 10 00 | G84: 001 | H84: 27274
A85: 11409311 | B85: Обеспечение эксплуатации и надлежащего содержания зданий и помещений, занимаемых органами исполнительной власти Московской области | C85: 002 | D85: 01 | E85: 14 | F85: 093 11 00 | H85: =H86 -> 1000000
A86: 11409311001 | B86: Выполнение функций бюджетными учреждениями | C86: 002 | D86: 01 | E86: 14 | F86: 093 11 00 | G86: 001 | H86: 1000000
A87: 5 | B87: Жилищно - коммунальное хозяйство | C87: 002 | D87: 05 | H87: =H88 -> 400000
A88: 501 | B88: Жилищное хозяйство | C88: 002 | D88: 05 | E88: 01 | H88: =H89 -> 400000
A89: 501350 | B89: Поддержка жилищного хозяйства | C89: 002 | D89: 05 | E89: 01 | F89: 350 00 00 | H89: =H90 -> 400000
A90: 50135003 | B90: Мероприятия в области жилищного хозяйства | C90: 002 | D90: 05 | E90: 01 | F90: 350 03 00 | H90: =H91 -> 400000
A91: 50135003012 | B91: Выполнение функций государственными органами | C91: 002 | D91: 05 | E91: 01 | F91: 350 03 00 | G91: 012 | H91: 400000
A92: 7 | B92: Образование | C92: 002 | D92: 07 | H92: =H93 -> 2104
A93: 707 | B93: Молодежная политика и оздоровление детей | C93: 002 | D93: 07 | E93: 07 | H93: =H94 -> 2104
A94: 707432 | B94: Мероприятия по проведению оздоровительной кампании детей | C94: 002 | D94: 07 | E94: 07 | F94: 432 00 00 | H94: =H95 -> 2104
A95: 70743202 | B95: Оздоровление детей | C95: 002 | D95: 07 | E95: 07 | F95: 432 02 00 | H95: =H96 -> 2104
A96: 70743202001 | B96: Выполнение функций бюджетными учреждениями | C96: 002 | D96: 07 | E96: 07 | F96: 432 02 00 | G96: 001 | H96: 2104
A97: 9 | B97: Здравоохранение, физическая культура и спорт | C97: 002 | D97: 09 | H97: =H98 -> 369213
A98: 910 | B98: Другие вопросы в области здравоохранения, физической культуры и спорта | C98: 002 | D98: 09 | E98: 10 | H98: =H99 -> 369213
A99: 910485 | B99: Реализация государственных функций в области здравоохранения, спорта и туризма | C99: 002 | D99: 09 | E99: 10 | F99: 485 00 00 | H99: =H100 -> 369213
A100: 91048597 | B100: Мероприятия в области здравохранения, спорта и физической культуры, туризма | C100: 002 | D100: 09 | E100: 10 | F100: 485 97 00 | H100: =H101 -> 369213
A101: 91048597079 | B101: Мероприятия в области здравоохранения, спорта и физической культуры | C101: 002 | D101: 09 | E101: 10 | F101: 485 97 00 | G101: 079 | H101: 369213
A103: 0 | B103: Министерство внешнеэкономических связей Московской области | C103: 003 | H103: =H104+H116+H121+H126 -> 287272
A104: 1 | B104: Общегосударственные вопросы | C104: 003 | D104: 01 | H104: =H105+H112 -> 286941
A105: 108 | B105: Международные отношения и международное сотрудничество | C105: 003 | D105: 01 | E105: 08 | H105: =H106+H109 -> 200130
A106: 108030 | B106: Международное сотрудничество | C106: 003 | D106: 01 | E106: 08 | F106: 030 00 00 | H106: =H107 -> 200000
A107: 10803005 | B107: Прочие расходы, связанные с международной деятельностью | C107: 003 | D107: 01 | E107: 08 | F107: 030 05 00 | H107: =H108 -> 200000
A108: 10803005012 | B108: Выполнение функций государственными органами | C108: 003 | D108: 01 | E108: 08 | F108: 030 05 00 | G108: 012 | H108: 200000
A109: 108522 | B109: Региональные целевые программы | C109: 003 | D109: 01 | E109: 08 | F109: 522 00 00 | H109: =H110 -> 130
A110: 10852209 | B110: Областная целевая программа "Поддержка Московской областью соотечественников за рубежом на 2007-2010 годы" | C110: 003 | D110: 01 | E110: 08 | F110: 522 09 00 | H110: =H111 -> 130
A111: 10852209012 | B111: Выполнение функций государственными органами | C111: 003 | D111: 01 | E111: 08 | F111: 522 09 00 | G111: 012 | H111: 130
A112: 114 | B112: Другие общегосударственные вопросы | C112: 003 | D112: 01 | E112: 14 | H112: =H113 -> 86811
A113: 114002 | B113: Руководство и управление в сфере установленных функций органов государственной власти субъектов Российской Федерации и органов местного самоуправления | C113: 003 | D113: 01 | E113: 14 | F113: 002 00 00 | H113: =H114 -> 86811
A114: 11400204 | B114: Центральный аппарат | C114: 003 | D114: 01 | E114: 14 | F114: 002 04 00 | H114: =H115 -> 86811
A115: 11400204012 | B115: Выполнение функций государственными органами | C115: 003 | D115: 01 | E115: 14 | F115: 002 04 00 | G115: 012 | H115: 86811
A116: 2 | B116: Национальная оборона | C116: 003 | D116: 02 | H116: =H117 -> 200
A117: 204 | B117: Мобилизационная подготовка экономики | C117: 003 | D117: 02 | E117: 04 | H117: =H118 -> 200
A118: 204209 | B118: Реализация государственных функций по мобилизационной подготовке экономики | C118: 003 | D118: 02 | E118: 04 | F118: 209 00 00 | H118: =H119 -> 200
A119: 20420901 | B119: Мероприятия по обеспечению мобилизационной готовности экономики | C119: 003 | D119: 02 | E119: 04 | F119: 209 01 00 | H119: =H120 -> 200
A120: 20420901012 | B120: Выполнение функций государственными органами | C120: 003 | D120: 02 | E120: 04 | F120: 209 01 00 | G120: 012 | H120: 200
A121: 3 | B121: Национальная безопасность и правоохранительная деятельность | C121: 003 | D121: 03 | H121: =H122+H131 -> 69
A122: 309 | B122: Защита населения и территории от последствий чрезвычайных ситуаций природного и техногенного характера, гражданская оборона | C122: 003 | D122: 03 | E122: 09 | H122: =H123 -> 69
A123: 309219 | B123: Мероприятия по гражданской обороне | C123: 003 | D123: 03 | E123: 09 | F123: 219 00 00 | H123: =H124 -> 69
A124: 30921901 | B124: Подготовка населения и организаций к действиям в чрезвычайной ситуации в мирное и военное время | C124: 003 | D124: 03 | E124: 09 | F124: 219 01 00 | H124: =H125 -> 69
A125: 30921901012 | B125: Выполнение функций государственными органами | C125: 003 | D125: 03 | E125: 09 | F125: 219 01 00 | G125: 012 | H125: 69
A126: 7 | B126: Образование | C126: 003 | D126: 07 | H126: =H127 -> 62
A127: 707 | B127: Молодежная политика и оздоровление детей | C127: 003 | D127: 07 | E127: 07 | H127: =H128 -> 62
A128: 707432 | B128: Мероприятия по проведению оздоровительной кампании детей | C128: 003 | D128: 07 | E128: 07 | F128: 432 00 00 | H128: =H129 -> 62
A129: 70743202 | B129: Оздоровление детей | C129: 003 | D129: 07 | E129: 07 | F129: 432 02 00 | H129: =H130 -> 62
A130: 70743202001 | B130: Выполнение функций бюджетными учреждениями | C130: 003 | D130: 07 | E130: 07 | F130: 432 02 00 | G130: 001 | H130: 62
A132: 0 | B132: Министерство жилищно-коммунального хозяйства Московской области | C132: 004 | H132: =H133+H138+H143+H148+H170 -> 1381721
A133: 2 | B133: Национальная оборона | C133: 004 | D133: 02 | H133: =H134 -> 200
A134: 204 | B134: Мобилизационная подготовка экономики | C134: 004 | D134: 02 | E134: 04 | H134: =H135 -> 200
A135: 204209 | B135: Реализация государственных функций по мобилизационной подготовке экономики | C135: 004 | D135: 02 | E135: 04 | F135: 209 00 00 | H135: =H136 -> 200
A136: 20420901 | B136: Мероприятия по обеспечению мобилизационной готовности экономики | C136: 004 | D136: 02 | E136: 04 | F136: 209 01 00 | H136: =H137 -> 200
A137: 20420901012 | B137: Выполнение функций государственными органами | C137: 004 | D137: 02 | E137: 04 | F137: 209 01 00 | G137: 012 | H137: 200
A138: 3 | B138: Национальная безопасность и правоохранительная деятельность | C138: 004 | D138: 03 | H138: =H139 -> 78
A139: 309 | B139: Защита населения и территории от последствий чрезвычайных ситуаций природного и техногенного характера, гражданская оборона | C139: 004 | D139: 03 | E139: 09 | H139: =H140 -> 78
A140: 309219 | B140: Мероприятия по гражданской обороне | C140: 004 | D140: 03 | E140: 09 | F140: 219 00 00 | H140: =H141 -> 78
A141: 30921901 | B141: Подготовка населения и организаций к действиям в чрезвычайной ситуации в мирное и военное время | C141: 004 | D141: 03 | E141: 09 | F141: 219 01 00 | H141: =H142 -> 78
A142: 30921901012 | B142: Выполнение функций государственными органами | C142: 004 | D142: 03 | E142: 09 | F142: 219 01 00 | G142: 012 | H142: 78
A143: 4 | B143: Национальная экономика | C143: 004 | D143: 04 | H143: =H144 -> 500000
A144: 412 | B144: Другие вопросы в области национальной экономики | C144: 004 | D144: 04 | E144: 12 | H144: =H145 -> 500000
A145: 412340 | B145: Реализация государственных функций в области национальной экономики | C145: 004 | D145: 04 | E145: 12 | F145: 340 00 00 | H145: =H146 -> 500000
A146: 41234004 | B146: Мероприятия в области гражданской промышленности | C146: 004 | D146: 04 | E146: 12 | F146: 340 04 00 | H146: =H147 -> 500000
A147: 41234004006 | B147: Субсидии юридическим лицам | C147: 004 | D147: 04 | E147: 12 | F147: 340 04 00 | G147: 006 | H147: 500000
A148: 5 | B148: Жилищно - коммунальное хозяйство | C148: 004 | D148: 05 | H148: =H149+H157+H162 -> 881399
A149: 501 | B149: Жилищное хозяйство | C149: 004 | D149: 05 | E149: 01 | H149: =H150+H154 -> 384531
A150: 501102 | B150: Бюджетные инвестиции в объекты капитального строительства, не включенные в целевые программы | C150: 004 | D150: 05 | E150: 01 | F150: 102 00 00 | H150: =H151 -> 190153
A151: 50110201 | B151: Бюджетные инвестиции в объекты капитального строительства государственной собственности субъектов Российской Федерации (объекты капитального строительства собственности муниципальных образований) | C151: 004 | D151: 05 | E151: 01 | F151: 102 01 00 | H151: =H152 -> 190153
A152: 5011020102 | B152: Бюджетные инвестиции в объекты капитального строительства собственности муниципальных образований | C152: 004 | D152: 05 | E152: 01 | F152: 102 01 02 | H152: =H153 -> 190153
A153: 5011020102003 | B153: Бюджетные инвестиции | C153: 004 | D153: 05 | E153: 01 | F153: 102 01 02 | G153: 003 | H153: 190153
A154: 501104 | B154: Федеральная целевая программа "Жилище" на 2002 - 2010 годы (второй этап) | C154: 004 | D154: 05 | E154: 01 | F154: 104 00 00 | H154: =H155 -> 194378
A155: 50110407 | B155: Расходы общепрограммного характера по федеральной целевой программе "Жилище" на 2002 - 2010 годы (второй этап) | C155: 004 | D155: 05 | E155: 01 | F155: 104 07 00 | H155: =H156 -> 194378
A156: 50110407012 | B156: Выполнение функций государственными органами | C156: 004 | D156: 05 | E156: 01 | F156: 104 07 00 | G156: 012 | H156: 194378
A157: 502 | B157: Коммунальное хозяйство | C157: 004 | D157: 05 | E157: 02 | H157: =H158 -> 143500
A158: 502522 | B158: Региональные целевые программы | C158: 004 | D158: 05 | E158: 02 | F158: 522 00 00 | H158: =H159 -> 143500
A159: 50252201 | B159: Областная целевая программа "Экология Подмосковья на 2007-2008 годы" | C159: 004 | D159: 05 | E159: 02 | F159: 522 01 00 | H159: =H160 -> 143500
A160: 5025220102 | B160: Подпрограмма "Строительство и реконструкция природоохранных объектов коммунального назначения" | C160: 004 | D160: 05 | E160: 02 | F160: 522 01 02 | H160: =H161 -> 143500
A161: 5025220102003 | B161: Бюджетные инвестиции | C161: 004 | D161: 05 | E161: 02 | F161: 522 01 02 | G161: 003 | H161: 143500
A162: 505 | B162: Другие вопросы в области жилищно-коммунального хозяйства | C162: 004 | D162: 05 | E162: 05 | H162: =H163+H168 -> 353368
A163: 505002 | B163: Руководство и управление в сфере установленных функций органов государственной власти субъектов Российской Федерации и органов местного самоуправления | C163: 004 | D163: 05 | E163: 05 | F163: 002 00 00 | H163: =H164+H166 -> 346710
A164: 50500204 | B164: Центральный аппарат | C164: 004 | D164: 05 | E164: 05 | F164: 002 04 00 | H164: =H165 -> 205458
A165: 50500204012 | B165: Выполнение функций государственными органами | C165: 004 | D165: 05 | E165: 05 | F165: 002 04 00 | G165: 012 | H165: =182658+22800 -> 205458
A166: 50500299 | B166: Обеспечение деятельности подведомственных учреждений | C166: 004 | D166: 05 | E166: 05 | F166: 002 99 00 | H166: =H167 -> 141252
A167: 50500299001 | B167: Выполнение функций бюджетными учреждениями | C167: 004 | D167: 05 | E167: 05 | F167: 002 99 00 | G167: 001 | H167: 141252
A168: 505806 | B168: Прочие расходы, не отнесенные к другим целевым статьям | C168: 004 | D168: 05 | E168: 05 | F168: 806 00 00 | H168: =H169 -> 6658
A169: 505806006 | B169: Субсидии юридическим лицам | C169: 004 | D169: 05 | E169: 05 | F169: 806 00 00 | G169: 006 | H169: 6658
A170: 7 | B170: Образование | C170: 004 | D170: 07 | H170: =H171 -> 44
A171: 707 | B171: Молодежная политика и оздоровление детей | C171: 004 | D171: 07 | E171: 07 | H171: =H172 -> 44
A172: 707432 | B172: Мероприятия по проведению оздоровительной кампании детей | C172: 004 | D172: 07 | E172: 07 | F172: 432 00 00 | H172: =H173 -> 44
A173: 70743202 | B173: Оздоровление детей | C173: 004 | D173: 07 | E173: 07 | F173: 432 02 00 | H173: =H174 -> 44
A174: 70743202001 | B174: Выполнение функций бюджетными учреждениями | C174: 004 | D174: 07 | E174: 07 | F174: 432 02 00 | G174: 001 | H174: 44
A176: 0 | B176: Министерство промышленности и науки Московской области | C176: 005 | H176: =H177+H182+H187+H192+H211 -> 226908
A177: 1 | B177: Общегосударственные вопросы | C177: 005 | D177: 01 | H177: =H178 -> 72
A178: 114 | B178: Другие общегосударственные вопросы | C178: 005 | D178: 01 | E178: 14 | H178: =H179 -> 72
A179: 114001 | B179: Руководство и управление в сфере установленных функций | C179: 005 | D179: 01 | E179: 14 | F179: 001 00 00 | H179: =H180 -> 72
A180: 11400164 | B180: Взносы Московской области в общественные организации, фонды, ассоциации | C180: 005 | D180: 01 | E180: 14 | F180: 001 64 00 | H180: =H181 -> 72
A181: 11400164013 | B181: Прочие расходы | C181: 005 | D181: 01 | E181: 14 | F181: 001 64 00 | G181: 013 | H181: 72
A182: 2 | B182: Национальная оборона | C182: 005 | D182: 02 | H182: =H183 -> 750
A183: 204 | B183: Мобилизационная подготовка экономики | C183: 005 | D183: 02 | E183: 04 | H183: =H184 -> 750
A184: 204209 | B184: Реализация государственных функций по мобилизационной подготовке экономики | C184: 005 | D184: 02 | E184: 04 | F184: 209 00 00 | H184: =H185 -> 750
A185: 20420901 | B185: Мероприятия по обеспечению мобилизационной готовности экономики | C185: 005 | D185: 02 | E185: 04 | F185: 209 01 00 | H185: =H186 -> 750
A186: 20420901012 | B186: Выполнение функций государственными органами | C186: 005 | D186: 02 | E186: 04 | F186: 209 01 00 | G186: 012 | H186: 750
A187: 3 | B187: Национальная безопасность и правоохранительная деятельность | C187: 005 | D187: 03 | H187: =H188 -> 615
A188: 309 | B188: Защита населения и территории от последствий чрезвычайных ситуаций природного и техногенного характера, гражданская оборона | C188: 005 | D188: 03 | E188: 09 | H188: =H189 -> 615
A189: 309219 | B189: Мероприятия по гражданской обороне | C189: 005 | D189: 03 | E189: 09 | F189: 219 00 00 | H189: =H190 -> 615
A190: 30921901 | B190: Подготовка населения и организаций к действиям в чрезвычайной ситуации в мирное и военное время | C190: 005 | D190: 03 | E190: 09 | F190: 219 01 00 | H190: =H191 -> 615
A191: 30921901012 | B191: Выполнение функций государственными органами | C191: 005 | D191: 03 | E191: 09 | F191: 219 01 00 | G191: 012 | H191: 615
A192: 4 | B192: Национальная экономика | C192: 005 | D192: 04 | H192: =H193+H198+H202 -> 225371
A193: 401 | B193: Общеэкономические вопросы | C193: 005 | D193: 04 | E193: 01 | H193: =H194 -> 120224
A194: 401002 | B194: Руководство и управление в сфере установленных функций органов государственной власти субъектов Российской Федерации и органов местного самоуправления | C194: 005 | D194: 04 | E194: 01 | F194: 002 00 00 | H194: =H195 -> 120224
A195: 40100204 | B195: Центральный аппарат | C195: 005 | D195: 04 | E195: 01 | F195: 002 04 00 | H195: =H196+H197 -> 120224
A196: 40100204012 | B196: Выполнение функций государственными органами | C196: 005 | D196: 04 | E196: 01 | F196: 002 04 00 | G196: 012 | H196: 119724
A197: 40100204902 | B197: Проведение мероприятий по защите информации, обеспечению безопасности информационных систем и баз данных, содержащих конфиденциальную информацию, в том числе персональные данные населения Московской области | C197: 005 | D197: 04 | E197: 01 | F197: 002 04 00 | G197: 902 | H197: 500
A198: 411 | B198: Прикладные научные исследования в области национальной экономики | C198: 005 | D198: 04 | E198: 11 | H198: =H199 -> 53000
A199: 411081 | B199: Прикладные научные исследования и разработки | C199: 005 | D199: 04 | E199: 11 | F199: 081 00 00 | H199: =H200 -> 53000
A200: 41108169 | B200: Выполнение научно- исследовательских и опытно-конструкторских работ по государственным контрактам | C200: 005 | D200: 04 | E200: 11 | F200: 081 69 00 | H200: =H201 -> 53000
A201: 41108169012 | B201: Выполнение функций государственными органами | C201: 005 | D201: 04 | E201: 11 | F201: 081 69 00 | G201: 012 | H201: 53000
A202: 412 | B202: Другие вопросы в области национальной экономики | C202: 005 | D202: 04 | E202: 12 | H202: =H203 -> 52147
A203: 412340 | B203: Реализация государственных функций в области национальной экономики | C203: 005 | D203: 04 | E203: 12 | F203: 340 00 00 | H203: =H204 -> 52147
A204: 41234083 | B204: Государственная поддержка отдельных отраслей промышленности и топливно-энергетического комплекса | C204: 005 | D204: 04 | E204: 12 | F204: 340 83 00 | H204: =H205+H207+H209 -> 52147
A205: 4123408303 | B205: Субсидии организациям легкой и текстильной промышленности на возмещение части затрат на уплату процентов по кредитам, полученным в российских кредитных организациях в 2007-2010 годах, на осуществление сезонных закупок сырья и материалов для производства товаров народного потребления и продукции производственно-технического назначения | C205: 005 | D205: 04 | E205: 12 | F205: 340 83 03 | H205: =H206 -> 40000
A206: 4123408303006 | B206: Субсидии юридическим лицам | C206: 005 | D206: 04 | E206: 12 | F206: 340 83 03 | G206: 006 | H206: 40000
A207: 4123408304 | B207: Субсидии организациям легкой и текстильной промышленности на возмещение части затрат на уплату процентов по кредитам, полученным в российских кредитных организациях в 2008-2010 годах, на осуществление технического перевооружения | C207: 005 | D207: 04 | E207: 12 | F207: 340 83 04 | H207: =H208 -> 10000
A208: 4123408304006 | B208: Субсидии юридическим лицам | C208: 005 | D208: 04 | E208: 12 | F208: 340 83 04 | G208: 006 | H208: 10000
A209: 4123408320 | B209: Расходы на проведение мероприятий, общегосударственных праздников и юбилейных дат Московской области в области промышленности | C209: 005 | D209: 04 | E209: 12 | F209: 340 83 20 | H209: =H210 -> 2147
... 2361 more rows

Sheet коды (hidden)
A2: ЦСР | D2: ВР
D3: 901 | E3: Взносы Московской области в общественные организации, фонды, ассоциации
D4: 701-823 | E4: Софинансирование дорожных объектов
A5: 802 00 00 | B5: Прочие учреждения в области образования | D5: 902 | E5: Проведение мероприятий по защите информации, обеспечению безопасности информационных систем и баз данных, содержащих конфиденциальную информацию, в том числе персональные данные населения Московской области
A6: 803 00 00 | B6: Расходы на страхование | D6: 903 | E6: Бюджетные инвестиции в объекты капитального строительства собственности муниципальных образований, софинансирование которых осуществляется за счет средств федерального бюджета
A7: 803 00 01 | B7: Расходы на страхование имущества, находящегося в государственной собственности Московской области | D7: 904 | E7: Обеспечение деятельности подразделений УГИБДД ГУВД по Московской области
A8: 803 00 02 | B8: Расходы на страхование гражданской ответственности учреждений, находящихся в государственной собственности Московской области | D8: 905 | E8: Страховые взносы по обязательному медицинскому страхованию неработающего населения
A9: 803 00 03 | B9: Расходы на обязательное страхование гражданской ответственности владельцев транспортных средств | D9: 906 | E9: Работы по гидрометеорологии и мониторингу окружающей среды
A10: 803 00 04 | B10: Расходы на добровольное страхование гражданской ответственности владельцев транспортных средств | D10: 907 | E10: Проведение государственной экологической экспертизы объектов регионального уровня на территории Московской области
A11: 803 00 05 | B11: Расходы на страхование жизни и здоровья медицинских, фармацевтических и других работников государственных учреждений здравоохранения Московской области, работа которых связана с угрозой их жизни и здоровью | D11: 908 | E11: Софинансирование строительства объектов газификации собственности муниципальных образований
A12: 803 00 06 | B12: Расходы на страхование жизни и здоровья членов сборных команд Московской области | D12: 909 | E12: Софинансирование строительства объектов водоснабжения собственности муниципальных образований
A13: 803 00 07 | B13: Расходы на страхование на случай причинения вреда жизни и здоровью лиц, замещающих государственные должности Московской области и государственных гражданских служащих Московской области | D13: 910 | E13: Финансирование расходов, осуществляемое за счет средств, поступающих от сдачи в аренду имущества, закрепленного за государственными организациями
A14: 804 00 00 | B14: Приобретение земельных участков в государственную собственность Московской области | D14: 917 | E14: Субсидии на возмещение за счет средств фонда стимулирования организаций легкой и текстильной промышленности, состоящих на учете в налоговых органах по Московской области, части процентных ставок по кредитам, предоставляемых российскими кредитными организациями
A15: 806 00 00 | B15: Прочие расходы, не отнесенные к другим целевым статьям | D15: 919 | E15: Финансирование транспортным организациям выпадающих доходов, возникающих в связи с предоставлением мер социальной поддержки по проезду отдельных категорий граждан, имеющих место жительства в Московской области, за исключением ветеранов труда, тружеников тыла, реабилитированных лиц и лиц, признанных пострадавшими от политических репрессий, финансирование выпадающих доходов по перевозке отдельных категорий граждан на внутреннем водном транспорте пригородного сообщения
A16: 806 01 00 | B16: Подготовка врачебных кадров | D16: 921 | E16: Финансирование транспортным организациям выпадающих доходов, возникающих в связи с реализацией мер социальной поддержки в части транспортного обслуживания отдельных категорий граждан, имеющих место жительства в городе Москве, паасажирским транспортом общего пользования Московской области
A17: 806 02 00 | B17: Подготовка кадров в сфере культуры и искусства
A18: 806 00 30 | B18: Создание финансового резерва для обеспечения выплаты дополнительных пенсий работникам государственных учреждений Московской области, вышедшим на пенсию
A19: 806 00 31 | B19: Компенсация расходов адвокатам, оказывающим гражданам Российской Федерации на территории Московской области юридическую помощь бесплатно
A20: 806 00 32 | B20: Проведение мероприятий в сфере социальной защиты населения, посвященных знаменательным событиям и памятным датам, установленным в Российской Федерации и Московской области
A21: 806 00 33 | B21: Возмещение стоимости услуг, согласно гарантированному перечню услуг по погребению умерших
A22: 807 00 00 | B22: Меры социальной поддержки по обеспечению проездом граждан
A23: 808 00 00 | B23: Расходы на оценку имущества, подлежащего страхованию
A24: 522 01 00 | B24: Областная целевая программа "Экология Подмосковья на 2007-2008 годы"
A25: 522 02 00 | B25: Областная целевая программа "Жилище" на 2006-2010 годы
A26: 522 02 01 | B26: Подпрограмма "Модернизация объектов коммунальной инфраструктуры"
A27: 522 02 02 | B27: Подпрограмма "Переселение граждан из ветхого и аварийного жилищного фонда"
A28: 522 02 03 | B28: Подпрограмма "Обеспечение земельных участков коммунальной инфраструктурой в целях жилищного строительства"
A29: 522 02 04 | B29: Подпрограмма "Обеспечение жильем молодых семей"
A30: 522 03 00 | B30: Областная целевая программа "Разработка Генерального плана развития Московской области на период до 2020 года"
A31: 522 04 00 | B31: Областная целевая программа "Электронное Подмосковье на период 2006-2009 годы"
A32: 522 05 00 | B32: Областная целевая программа "Сохранение объектов культурного наследия (памятников истории и культуры) в Московской области на 2006-2008 годы"
A33: 522 05 01 | B33: Раздел 1 "Сохранение объектов культурного наследия"
A34: 522 05 02 | B34: Раздел 2 "Государственная охрана объектов культурного наследия"
A35: 522 05 03 | B35: Раздел 3 "Оказание поддержки религиозным организациям в проведении работ по сохранению памятников истории и культуры религиозного назначения"
A36: 522 05 04 | B36: Раздел 4 "Установка памятника создателям славянской азбуки, просветителям славянских народов, святым братьям Кириллу и Мефодию"
A37: 522 06 00 | B37: Областная целевая программа "Развитие образования в Московской области на период 2006-2010 годов"
A38: 522 07 00 | B38: Областная целевая программа "Молодое поколение Подмосковья на 2006-2008 годы"
A39: 522 08 00 | B39: Областная целевая программа "Радиационная безопасность Московской области на 2006-2010 годы"
A40: 522 09 00 | B40: Областная целевая программа "Поддержка Московской областью соотечественников за рубежом на 2007-2010 годы"
A41: 522 10 00 | B41: Областная целевая программа "Обеспечение безопасности дорожного движения на территории Московской области в 2007-2010 годах"
A42: 522 10 01 | B42: Раздел "Предупреждение опасного поведения участников дорожного движения"
A43: 522 10 02 | B43: Раздел "Организационно-планировочные и инженерные меры, направленные на совершенствование организации движения транспортных средств и пешеходов"
A44: 522 10 03 | B44: Раздел "Совершенствование системы подготовки и переподготовки водительского, ремонтного и инженерно-технического персонала"
A45: 522 10 05 | B45: Раздел "Совершенствование контрольно-надзорной деятельности и деятельности по ликвидации последствий и снижению тяжести ДТП"
A46: 522 11 00 | B46: Областная целевая программа "Совершенствование медицинской помощи новорожденным, беременным женщинам и матерям в Московской области на период 2008-2011 годов"
A47: 522 12 00 | B47: Областная целевая программа "Предупреждение и борьба с заболеваниями социального характера в Московской области на период 2008-2011 годов"
A48: 522 12 01 | B48: Подпрограмма "Сахарный диабет"
A49: 522 12 02 | B49: Подпрограмма "Неотложные меры борьбы с туберкулезом"
A50: 522 12 03 | B50: Подпрограмма "О мерах по предупреждению распространения заболевания, вызываемого вирусом иммунодефицита человека (ВИЧ - инфекции)"
A51: 522 12 04 | B51: Подпрограмма "О мерах по развитию онкологической помощи"
A52: 522 12 05 | B52: Подпрограмма "О мерах по предупреждению дальнейшего распространения заболеваний, передаваемых половым путем"
A53: 522 12 06 | B53: Подпрограмма "Вирусные гепатиты"
A54: 522 12 07 | B54: Подпрограмма "Развитие психиатрической помощи"
A55: 522 12 08 | B55: Подпрограмма "Вакцинопрофилактика"
A56: 522 12 09 | B56: Подпрограмма "Профилактика и лечение артериальной гипертонии"
A57: 522 12 10 | B57: Подпрограмма "Общая врачебная практика"

Sheet разделы (hidden)
B1: проект
A2: Код | B2: Наименование раздела и подраздела
D3: фуккцион | E3: свод
A4: 0100 | B4: ОБЩЕГОСУДАРСТВЕННЫЕ ВОПРОСЫ | C4: =SUM(C5:C18) -> 23580617 | D4: =C4-'ведом. 2022-2024'!G15 -> 23580617 | E4: =C4-[1]свод!$E$203 -> 0
A5: 0101 | B5: Функционирование Президента Российской Федерации
A6: 0102 | B6: Функционирование высшего должностного лица субъекта Российской Федерации и муниципального образования | C6: 2114 | D6: =C6-'ведом. 2022-2024'!G16 -> 2114
A7: 0103 | B7: Функционирование законодательных (представительных) органов государственной власти и представительных органов муниципальных образований | C7: =8479+797591 -> 806070 | D7: =C7-'ведом. 2022-2024'!#REF! -> 
A8: 0104 | B8: Функционирование Правительства Российской Федерации, высших исполнительных органов государственной власти субъектов Российской Федерации, местных администраций | C8: 902951 | D8: =C8-'ведом. 2022-2024'!G23 -> 902951
A9: 0105 | B9: Судебная система | C9: 1163086 | D9: =C9-'ведом. 2022-2024'!#REF! -> 
A10: 0106 | B10: Обеспечение деятельности финансовых, налоговых и таможенных органов и органов финансового (финансово-бюджетного) надзора | C10: =5050+2170797+3000+141000 -> 2319847 | D10: =C10-'ведом. 2022-2024'!#REF! -> 
A11: 0107 | B11: Обеспечение проведения выборов и референдумов | C11: 67921 | D11: =C11-'ведом. 2022-2024'!#REF! -> 
A12: 0108 | B12: Международные отношения и международное сотрудничество | C12: =203700+5800 -> 209500 | D12: =C12-'ведом. 2022-2024'!#REF! -> 
A13: 0109 | B13: Государственный материальный резерв
A14: 0110 | B14: Фундаментальные исследования
A15: 0111 | B15: Обслуживание государственного и муниципального долга | C15: 8537000 | D15: =C15-'ведом. 2022-2024'!G541 -> 8537000
A16: 0112 | B16: Резервные фонды | C16: =1500000+55107 -> 1555107 | D16: =C16-'ведом. 2022-2024'!G80 -> 1555107
A17: 0113 | B17: Прикладные научные исследования в области общегосударственных вопросов
A18: 0114 | B18: Другие общегосударственные вопросы | C18: =26190+27274+720000+375064+3754446+10000+3099047-8621+8621+2000+3000 -> 8017021 | D18: =C18-'ведом. 2022-2024'!G88 -> 8017021
A20: 0200 | B20: НАЦИОНАЛЬНАЯ ОБОРОНА | C20: =SUM(C21:C29) -> 12972 | D20: =C20-'ведом. 2022-2024'!G162 -> 12972 | E20: =C20-[1]свод!$E$204 -> 0
A21: 0201 | B21: Вооруженные Силы Российской Федерации
A22: 0202 | B22: Модернизация Вооруженных Сил Российской Федерации и воинских формирований
A23: 0203 | B23: Мобилизационная и вневойсковая подготовка
A24: 0204 | B24: Мобилизационная подготовка экономики | C24: 12972 | D24: =C24-'ведом. 2022-2024'!#REF! -> 
A25: 0205 | B25: Подготовка и участие в обеспечении коллективной безопасности и миротворческой деятельности;
A26: 0206 | B26: Ядерно-оружейный комплекс
A27: 0207 | B27: Реализация международных обязательств в сфере военно-технического сотрудничества
A28: 0208 | B28: Прикладные научные исследования в области национальной обороны
A29: 0209 | B29: Другие вопросы в области национальной обороны
A31: 0300 | B31: НАЦИОНАЛЬНАЯ БЕЗОПАСНОСТЬ И ПРАВООХРАНИТЕЛЬНАЯ ДЕЯТЕЛЬНОСТЬ | C31: =SUM(C32:C45) -> 16669168 | D31: =C31-'ведом. 2022-2024'!G177 -> 16669168 | E31: =C31-[1]свод!$E$205 -> 0
A32: 0301 | B32: Органы прокуратуры
A33: 0302 | B33: Органы внутренних дел | C33: =315585+11659394+26106 -> 12001085 | D33: =C33-'ведом. 2022-2024'!#REF! -> 
A34: 0303 | B34: Внутренние войска
A35: 0304 | B35: Органы юстиции
A36: 0305 | B36: Система исполнения наказаний | C36: 177958 | D36: =C36-'ведом. 2022-2024'!#REF! -> 
A37: 0306 | B37: Органы безопасности
A38: 0307 | B38: Органы пограничной службы
A39: 0308 | B39: Органы по контролю за оборотом наркотических средств и психотропных веществ | C39: 67662 | D39: =C39-'ведом. 2022-2024'!#REF! -> 
A40: 0309 | B40: Предупреждение и ликвидация последствий чрезвычайных ситуаций природного и техногенного характера, гражданская оборона | C40: 996190 | D40: =C40-'ведом. 2022-2024'!G178 -> 996190
A41: 0310 | B41: Обеспечение пожарной безопасности | C41: =46851+3225689+100000+53733 -> 3426273 | D41: =C41-'ведом. 2022-2024'!#REF! -> 
A42: 0311 | B42: Миграционная политика
A43: 0312 | B43: Модернизация внутренних войск, войск гражданской обороны, а также правоохранительных и иных органов
A44: 0313 | B44: Прикладные научные исследования в области национальной безопасности и правоохранительной деятельности
A45: 0314 | B45: Другие вопросы в области национальной безопасности и правоохранительной деятельности
A47: 0400 | B47: НАЦИОНАЛЬНАЯ ЭКОНОМИКА | C47: =SUM(C48:C59) -> 47268313 | D47: =C47-'ведом. 2022-2024'!G245 -> 47268313 | E47: =C47-[1]свод!$E$206 -> 0
A48: 0401 | B48: Общеэкономические вопросы | C48: =449106+1060+723785 -> 1173951 | D48: =C48-'ведом. 2022-2024'!#REF! -> 
A49: 0402 | B49: Топливно-энергетический комплекс | C49: =139180+153 -> 139333 | D49: =C49-'ведом. 2022-2024'!#REF! -> 
A50: 0403 | B50: Исследование и использование космического пространства
A51: 0404 | B51: Воспроизводство минерально-сырьевой базы
A52: 0405 | B52: Сельское хозяйство и рыболовство | C52: =121513+1781175+10276+669+22224 -> 1935857 | D52: =C52-'ведом. 2022-2024'!#REF! -> 
A53: 0406 | B53: Водные ресурсы | C53: 36721 | D53: =C53-'ведом. 2022-2024'!#REF! -> 
A54: 0407 | B54: Лесное хозяйство
A55: 0408 | B55: Транспорт | C55: =1712331+442920 -> 2155251 | D55: =C55-'ведом. 2022-2024'!G246 -> 2155251
A56: 0409 | B56: Дорожное хозяйство | C56: 35016518 | D56: =C56-'ведом. 2022-2024'!#REF! -> 
A57: 0410 | B57: Связь и информатика | C57: =391523+82000 -> 473523 | D57: =C57-'ведом. 2022-2024'!#REF! -> 
A58: 0411 | B58: Прикладные научные исследования в области национальной экономики | C58: =101000+19000 -> 120000 | D58: =C58-'ведом. 2022-2024'!#REF! -> 
A59: 0412 | B59: Другие вопросы в области национальной экономики | C59: =10506+256+53397+1278437+377300+3110389+6896+537478+800000+42500 -> 6217159 | D59: =C59-'ведом. 2022-2024'!#REF! -> 
A61: 0500 | B61: ЖИЛИЩНО-КОММУНАЛЬНОЕ ХОЗЯЙСТВО | C61: =SUM(C62:C66) -> 2711709 | D61: =C61-'ведом. 2022-2024'!#REF! ->  | E61: =C61-[1]свод!$E$207 -> 0
A62: 0501 | B62: Жилищное хозяйство | C62: =659378+190153 -> 849531 | D62: =C62-'ведом. 2022-2024'!#REF! -> 
A63: 0502 | B63: Коммунальное хозяйство | C63: =371840+283200+143500 -> 798540 | D63: =C63-'ведом. 2022-2024'!#REF! -> 
A64: 0503 | B64: Благоустройство
A65: 0504 | B65: Прикладные научные исследования в области жилищно- коммунального хозяйства
A66: 0505 | B66: Другие вопросы в области жилищно-коммунального хозяйства | C66: =500+3969+147910+888459+22800 -> 1063638 | D66: =C66-'ведом. 2022-2024'!#REF! -> 
A68: 0600 | B68: ОХРАНА ОКРУЖАЮЩЕЙ СРЕДЫ | C68: =SUM(C69:C73) -> 487816 | D68: =C68-'ведом. 2022-2024'!#REF! ->  | E68: =C68-[1]свод!$E$208 -> 0
A69: 0601 | B69: Экологический контроль
A70: 0602 | B70: Сбор, удаление отходов и очистка сточных вод
A71: 0603 | B71: Охрана объектов растительного и животного мира и среды их обитания | C71: =5794-669 -> 5125 | D71: =C71-'ведом. 2022-2024'!#REF! -> 
A72: 0604 | B72: Прикладные научные исследования в области охраны окружающей среды
A73: 0605 | B73: Другие вопросы в области охраны окружающей среды | C73: =850+190719+291122 -> 482691 | D73: =C73-'ведом. 2022-2024'!#REF! -> 
A75: 0700 | B75: ОБРАЗОВАНИЕ | C75: =SUM(C76:C84) -> 15977562 | D75: =C75-'ведом. 2022-2024'!G375 -> 15977562 | E75: =C75-[1]свод!$E$209 -> 0
A76: 0701 | B76: Дошкольное образование | C76: 45109 | D76: =C76-'ведом. 2022-2024'!#REF! -> 
A77: 0702 | B77: Общее образование | C77: =16320+1579553+35000-120708 -> 1510165 | D77: =C77-'ведом. 2022-2024'!#REF! -> 
A78: 0703 | B78: Начальное профессиональное образование | C78: 4671918 | D78: =C78-'ведом. 2022-2024'!#REF! -> 
A79: 0704 | B79: Среднее профессиональное образование | C79: =30220+3196696+9500-18000 -> 3218416 | D79: =C79-'ведом. 2022-2024'!#REF! -> 
A80: 0705 | B80: Профессиональная подготовка, переподготовка и повышение квалификации | C80: 419843 | D80: =C80-'ведом. 2022-2024'!#REF! -> 
A81: 0706 | B81: Высшее и послевузовское профессиональное образование | C81: =507500+3215131 -> 3722631 | D81: =C81-'ведом. 2022-2024'!#REF! -> 
A82: 0707 | B82: Молодежная политика и оздоровление детей | C82: =73808+458+39313+268054 -> 381633 | D82: =C82-'ведом. 2022-2024'!G406 -> 381633
A83: 0708 | B83: Прикладные научные исследования в области образования | C83: 5625 | D83: =C83-'ведом. 2022-2024'!#REF! -> 
A84: 0709 | B84: Другие вопросы в области образования | C84: =520+80550+787674+1057879+75599 -> 2002222 | D84: =C84-'ведом. 2022-2024'!#REF! -> 
A86: 0800 | B86: КУЛЬТУРА, КИНЕМАТОГРАФИЯ И СРЕДСТВА МАССОВОЙ ИНФОРМАЦИИ | C86: =SUM(C87:C92) -> 4620983 | D86: =C86-'ведом. 2022-2024'!G437 -> 4620983 | E86: =C86-[1]свод!$E$210 -> 0
A87: 0801 | B87: Культура | C87: =2049557+253950+3000 -> 2306507 | D87: =C87-'ведом. 2022-2024'!G438 -> 2306507
A88: 0802 | B88: Кинематография
A89: 0803 | B89: Телевидение и радиовещание | C89: 915009 | D89: =C89-'ведом. 2022-2024'!#REF! -> 
A90: 0804 | B90: Периодическая печать и издательства | C90: 482232 | D90: =C90-'ведом. 2022-2024'!#REF! -> 
A91: 0805 | B91: Прикладные научные исследования в области культуры, кинематографии и средств массовой информации
A92: 0806 | B92: Другие вопросы в области культуры, кинематографии и средств массовой информации | C92: =1210+12189+1700+611492+290644 -> 917235 | D92: =C92-'ведом. 2022-2024'!#REF! -> 
A94: 0900 | B94: ЗДРАВООХРАНЕНИЕ, ФИЗИЧЕСКАЯ КУЛЬТУРА И СПОРТ | C94: =SUM(C95:C104) -> 37148428 | D94: =C94-'ведом. 2022-2024'!#REF! ->  | E94: =C94-[1]свод!$E$211 -> 0
A95: 0901 | B95: Стационарная медицинская помощь | C95: =820590+7752658+2890840+2783923 -> 14248011 | D95: =C95-'ведом. 2022-2024'!#REF! -> 
A96: 0902 | B96: Амбулаторная помощь | C96: 662232 | D96: =C96-'ведом. 2022-2024'!#REF! -> 
A97: 0903 | B97: Медицинская помощь в дневных стационарах всех типов
A98: 0904 | B98: Скорая медицинская помощь
A99: 0905 | B99: Санаторно-оздоровительная помощь | C99: 724098 | D99: =C99-'ведом. 2022-2024'!#REF! -> 
A100: 0906 | B100: Заготовка, переработка, хранение и обеспечение безопасности донорской крови и её компонентов | C100: 377981 | D100: =C100-'ведом. 2022-2024'!#REF! -> 
A101: 0907 | B101: Санитарно-эпидемиологическое благополучие
A102: 0908 | B102: Физическая культура и спорт | C102: =7800+1408321+370000+6700 -> 1792821 | D102: =C102-'ведом. 2022-2024'!#REF! -> 
A103: 0909 | B103: Прикладные научные исследования в области здравоохранения, физической культуры и спорта | C103: 269728 | D103: =C103-'ведом. 2022-2024'!#REF! -> 
A104: 0910 | B104: Другие вопросы в области здравоохранения, физической культуры и спорта | C104: =700+77619-4704+1061358+45000+20330903+21267+285337+40000-2783923 -> 19073557 | D104: =C104-'ведом. 2022-2024'!#REF! -> 
A106: 1000 | B106: СОЦИАЛЬНАЯ ПОЛИТИКА | C106: =SUM(C107:C112) -> 43410314 | D106: =C106-'ведом. 2022-2024'!G499 -> 43410314 | E106: =C106-[1]свод!$E$212 -> 0
A107: 1001 | B107: Пенсионное обеспечение | C107: 142633 | D107: =C107-'ведом. 2022-2024'!G500 -> 142633
A108: 1002 | B108: Социальное обслуживание населения | C108: =6842258-285000+384800 -> 6942058 | D108: =C108-'ведом. 2022-2024'!#REF! -> 
A109: 1003 | B109: Социальное обеспечение населения | C109: =12882130+394827+10076960+5733862+51761+768117+120000-5045+375914+84409+52500+415975 -> 30951410 | D109: =C109-'ведом. 2022-2024'!G506 -> 30951410
A110: 1004 | B110: Охрана семьи и детства | C110: =580+2000+2871367 -> 2873947 | D110: =C110-'ведом. 2022-2024'!#REF! -> 
A111: 1005 | B111: Прикладные научные исследования в области социальной политики
A112: 1006 | B112: Другие вопросы в области социальной политики | C112: =78766+7647+85664+1988045+285000+55144 -> 2500266 | D112: =C112-'ведом. 2022-2024'!#REF! -> 
A114: 1100 | B114: МЕЖБЮДЖЕТНЫЕ ТРАНСФЕРТЫ | C114: =SUM(C115:C119) -> 58232166 | D114: =C114-'ведом. 2022-2024'!#REF! ->  | E114: =C114-[1]свод!$E$213 -> 0
A115: 1101 | B115: Дотации бюджетам субъектов Российской Федерации и муниципальных образований | C115: =5289811-576383 -> 4713428 | D115: =C115-'ведом. 2022-2024'!#REF! ->  | E115: =C115-[1]свод!$E$215 -> 0
A116: 1102 | B116: Субсидии бюджетам субъектов Российской Федерации и муниципальных образований (межбюджетные субсидии) | C116: =45137+1422412-8000+3516363+1120817+115530+4450200+25040+1454659+1115615+610471+973579+151146+160000+297200+281+400000+1000000 -> 16850450 | D116: =C116-'ведом. 2022-2024'!#REF! ->  | E116: =C116-[1]свод!$E$222 -> 0
A117: 1103 | B117: Субвенции бюджетам субъектов Российской Федерации и муниципальных образований | C117: =4668019+281+70477+805870+159381+90840+27834+1551298+281597+26495709+21661+8000+146682-281+175000+7400+37+2088 -> 34511893 | D117: =C117-'ведом. 2022-2024'!#REF! ->  | E117: =C117-[1]свод!$E$261 -> 0
A118: 1104 | B118: Иные межбюджетные трансферты | C118: =200000+23893+6013666-141000-21267-7647-3911250 -> 2156395 | D118: =C118-'ведом. 2022-2024'!#REF! ->  | E118: =C118-[1]свод!$E$292 -> 0
A119: 1105 | B119: Межбюджетные трансферты бюджетам государственных внебюджетных фондов
A120: ВСЕГО | C120: =C4+C20+C31+C47+C61+C68+C75+C86+C94+C106+C114 -> 250120048 | D120: =C120-'ведом. 2022-2024'!#REF! ->  | E120: =C120-[1]свод!$E$300 -> 0
B122: ведомственная | C122: =C120-'Ведомственная 2008'!H2619 -> 0
B123: функцион | C123: =C120-'ведом. 2022-2024'!#REF! -> 
B125: Резерв было всего | C125: 6013666 | D125: 3911250
C126: -141000
C127: -21267
C128: -7647
B129: Остаток в Думу | C129: =C125+C126+C127+C128 -> 5843752
B130: спец продукция, для допуска транспортных средст ГУВД МО | C130: -26106
B131: выплата надбавок к денежному довольствию личного состава Гл. упр. региональной безопасности МО | C131: -100000
B132: замены электропроводки и установки противопожарной сигнализации для Лобненского техникума строительной индустрии и предпринимательства предусмотреть Министерству строительного комплекса | C132: -9500
B133: проведение капитального ремонта комплекса зданий, в котором располагается министерство жилищно-коммунального хозяйства | C133: -22800
B134: открытие пяти отделений на базе государственного учреждения Московской области «Детская юношеская спортивная школа олимпийского резерва по футболу» (Комитет физ-ры) | C134: -15000
B135: открытие государственного учреждения дополнительного образования «Детско-юношеская спортивная школа по гандболу» на 500 человек (Комитет физ-ры) | C135: -2000
B136: проведение спортивных соревнований на призы Правительства Московской области в рамках международных соревнований мемориала братьев Знаменских (Комитет физ-ры) | C136: -6700
B137: Мин. Потребительского рынка | C137: -42500
B138: Премия Думы | C138: -8621
B139: АПК | C139: -17956
B142: Минус с остатка | C142: =SUM(C130:C141) -> -251183
B143: Остаток резерва | C143: =C129+C142 -> 5592569

Sheet Функц. 2022-2024
K1: Приложение 2
J2: к изменениям и дополнениям
I3: к бюджету городского округа Лыткарино на 2022 год
G4: и на плановый период 2023 и 2024 годов
F6: (Приложение 2
H7: к бюджету городского округа Лыткарино на 2022 год
F8: и на плановый период 2023 и 2024 годов)
A12: Распределение бюджетных ассигнований по разделам, подразделам, целевым статьям (муниципальным программам городского округа Лыткарино и непрограммным направлениям деятельности), группам и подгруппам видов расходов классификации расходов бюджета городского округа Лыткарино на 2022 год и на плановый период 2023 и 2024 годов
K13: (тыс.руб.)
A14: Наименования | B14: Рз | C14: ПР | D14: ЦСР | E14: ВР | F14: Сумма на 2022 год | G14: В т.ч. Субвенции, субсидии, иные межбюджет-ные трансферты | H14: Сумма на 2023 год | I14: В т.ч. Субвенции, субсидии, иные межбюджет-ные трансферты | J14: Сумма на 2024 год | K14: В т.ч. Субвенции, субсидии, иные межбюджет-ные трансферты
A15: 1 | B15: 2 | C15: 3 | D15: 4 | E15: 5 | F15: 6 | G15: 7 | H15: 8 | I15: 9 | J15: 10 | K15: 11
A16: Общегосударственные вопросы | B16: 01 | F16: =F17+F24+F57+F114+F158+F178+F186 -> 286794.1 | G16: 5616.8 | H16: 324876 | I16: 5262 | J16: 244492.8 | K16: 5222
A17: Функционирование высшего должностного лица субъекта Российской Федерации и муниципального образования | B17: 01 | C17: 02 | F17: =F18 -> 2602.5 | H17: =H18 -> 2602.5 | J17: =J18 -> 2602.5
A18: Муниципальная программа «Управление имуществом и муниципальными финансами» | B18: 01 | C18: 02 | D18: 12 0 00 00000 | F18: =F19 -> 2602.5 | H18: =H19 -> 2602.5 | J18: 2602.5
A19: Обеспечивающая подпрограмма | B19: 01 | C19: 02 | D19: 12 5 00 00000 | F19: =F20 -> 2602.5 | H19: =H20 -> 2602.5 | J19: 2602.5
A20: Основное мероприятие «Создание условий для реализации полномочий органов местного самоуправления» | B20: 01 | C20: 02 | D20: 12 5 01 00000 | F20: =F21 -> 2602.5 | H20: =H21 -> 2602.5 | J20: 2602.5
A21: Функционирование высшего должностного лица | B21: 01 | C21: 02 | D21: 12 5 01 00110 | F21: ='ведом. 2022-2024'!AD20 -> 2602.5 | H21: ='ведом. 2022-2024'!AE20 -> 2602.5 | J21: 2602.5
A22: Расходы на выплаты персоналу в целях обеспечения выполнения функций государственными (муниципальными) органами, казенными учреждениями, органами управления государственными внебюджетными фондами | B22: 01 | C22: 02 | D22: 12 5 01 00110 | E22: 100 | F22: =F23 -> 2602.5 | H22: =H23 -> 2602.5 | J22: 2602.5
A23: Расходы на выплаты персоналу государственных (муниципальных) органов | B23: 01 | C23: 02 | D23: 12 5 01 00110 | E23: 120 | F23: ='ведом. 2022-2024'!AD22 -> 2602.5 | H23: ='ведом. 2022-2024'!AE22 -> 2602.5 | J23: ='ведом. 2022-2024'!AF22 -> 2602.5
A24: Функционирование законодательных (представительных) органов государственной власти и представительных органов муниципальных образований | B24: 01 | C24: 03 | F24: =F32+F38+F25 -> 12437.3 | H24: =H32+H38+H25 -> 12137.3 | J24: =J32+J38+J25 -> 12261.3
A25: Функционирование законодательных (представительных) органов государственной власти и представительных органов муниципальных образований | B25: 01 | C25: 03 | F25: =F26 -> 0 | H25: =H26 -> 0 | J25: =J26 -> 124
A26: Муниципальная программа «Культура» | B26: 01 | C26: 03 | D26: 02 0 00 00000 | F26: 0 | H26: 0 | J26: 124
A27: Подпрограмма «Развитие архивного дела в Московской области» | B27: 01 | C27: 03 | D27: 02 7 00 00000 | F27: 0 | H27: 0 | J27: 124
A28: Основное мероприятие «Хранение, комплектование, учет и использование архивных документов в муниципальных архивах» | B28: 01 | C28: 03 | D28: 02 7 01 00000 | F28: 0 | H28: 0 | J28: 124
A29: Расходы на обеспечение деятельности (оказание услуг) муниципальных архивов | B29: 01 | C29: 03 | D29: 02 7 01 06160 | F29: 0 | H29: 0 | J29: 124
A30: Закупка товаров, работ и услуг для обеспечения государственных (муниципальных) нужд | B30: 01 | C30: 03 | D30: 02 7 01 06160 | E30: 200 | F30: 0 | H30: 0 | J30: 124
A31: Иные закупки товаров, работ и услуг для обеспечения государственных (муниципальных) нужд | B31: 01 | C31: 03 | D31: 02 7 01 06160 | E31: 240 | F31: ='ведом. 2022-2024'!AD556 -> 0 | H31: ='ведом. 2022-2024'!AE556 -> 0 | J31: ='ведом. 2022-2024'!AF556 -> 124
A32: Муниципальная программа «Развитие институтов гражданского общества, повышение эффективности местного самоуправления и реализации молодежной политики» | B32: 01 | C32: 03 | D32: 13 0 00 00000 | F32: =F33 -> 10 | H32: =H33 -> 10 | J32: =J33 -> 10
A33: Подпрограмма «Развитие системы информирования населения о деятельности органов местного самоуправления Московской области, создание доступной современной медиасреды» | B33: 01 | C33: 03 | D33: 13 1 00 00000 | F33: =F34 -> 10 | H33: =H34 -> 10 | J33: =J34 -> 10
A34: Основное мероприятие «Информирование населения об основных событиях социально-экономического развития и общественно-политической жизни» | B34: 01 | C34: 03 | D34: 13 1 01 00000 | F34: =F35 -> 10 | H34: =H35 -> 10 | J34: =J35 -> 10
A35: Информирование населения о деятельности, о положении дел на территории муниципального образования, опубликование муниципальных правовых актов, обсуждение проектов муниципальных правовых актов по вопросам местного значения, доведение до сведения жителей муниципального образования официальной информации о социально-экономическом и культурном развитии муниципального образования, о развитии его общественной инфраструктуры и иной официальной информации | B35: 01 | C35: 03 | D35: 13 1 01 00820 | F35: =F36 -> 10 | H35: =H36 -> 10 | J35: =J36 -> 10
A36: Закупка товаров, работ и услуг для обеспечения государственных (муниципальных) нужд | B36: 01 | C36: 03 | D36: 13 1 01 00820 | E36: 200 | F36: =F37 -> 10 | H36: =H37 -> 10 | J36: =J37 -> 10
A37: Иные закупки товаров, работ и услуг для обеспечения государственных (муниципальных) нужд | B37: 01 | C37: 03 | D37: 13 1 01 00820 | E37: 240 | F37: ='ведом. 2022-2024'!AD562 -> 10 | H37: ='ведом. 2022-2024'!AE562 -> 10 | J37: ='ведом. 2022-2024'!AF562 -> 10
A38: Руководство и управление в сфере установленных функций органов местного самоуправления | B38: 01 | C38: 03 | D38: 95 0 00 00000 | F38: =F39+F42+F45 -> 12427.3 | H38: =H39+H42+H45 -> 12127.3 | J38: =J39+J42+J45 -> 12127.3
A39: Председатель представительного органа местного самоуправления | B39: 01 | C39: 03 | D39: 95 0 00 00010 | F39: =F40 -> 2272 | H39: =H40 -> 2272 | J39: =J40 -> 2272
A40: Расходы на выплаты персоналу в целях обеспечения выполнения функций государственными (муниципальными) органами, казенными учреждениями, органами управления государственными внебюджетными фондами | B40: 01 | C40: 03 | D40: 95 0 00 00010 | E40: 100 | F40: =F41 -> 2272 | H40: =H41 -> 2272 | J40: =J41 -> 2272
A41: Расходы на выплаты персоналу государственных (муниципальных) органов | B41: 01 | C41: 03 | D41: 95 0 00 00010 | E41: 120 | F41: ='ведом. 2022-2024'!AD566 -> 2272 | H41: ='ведом. 2022-2024'!AE566 -> 2272 | J41: ='ведом. 2022-2024'!AF566 -> 2272
A42: Депутат представительного органа местного самоуправления на постоянной основе | B42: 01 | C42: 03 | D42: 95 0 00 00020 | F42: =F44 -> 1761.2 | H42: =H44 -> 1761.2 | J42: =J44 -> 1761.2
A43: Расходы на выплаты персоналу в целях обеспечения выполнения функций государственными (муниципальными) органами, казенными учреждениями, органами управления государственными внебюджетными фондами | B43: 01 | C43: 03 | D43: 95 0 00 00020 | E43: 100 | F43: =F44 -> 1761.2 | H43: =H44 -> 1761.2 | J43: =J44 -> 1761.2
A44: Расходы на выплаты персоналу государственных (муниципальных) органов | B44: 01 | C44: 03 | D44: 95 0 00 00020 | E44: 120 | F44: ='ведом. 2022-2024'!AD569 -> 1761.2 | H44: ='ведом. 2022-2024'!AE569 -> 1761.2 | J44: ='ведом. 2022-2024'!AF569 -> 1761.2
A45: Расходы на содержание представительного органа муниципального образования | B45: 01 | C45: 03 | D45: 95 0 00 00030 | F45: =F46+F51+F54 -> 8394.1 | H45: =H46+H51+H54 -> 8094.1 | J45: =J46+J51+J54 -> 8094.1
A46: Расходы на содержание представительного органа муниципального образования( обеспечение деятельности) | B46: 01 | C46: 03 | D46: 95 0 00 00031 | F46: =F47+F49 -> 1884.1 | H46: =H47 -> 1584.1 | J46: 1584.1
A47: Закупка товаров, работ и услуг для обеспечения государственных (муниципальных) нужд | B47: 01 | C47: 03 | D47: 95 0 00 00031 | E47: 200 | F47: =F48 -> 1884 | H47: =H48 -> 1584.1 | J47: =J48 -> 1584.1
A48: Иные закупки товаров, работ и услуг для обеспечения государственных (муниципальных) нужд | B48: 01 | C48: 03 | D48: 95 0 00 00031 | E48: 240 | F48: ='ведом. 2022-2024'!AD573 -> 1884 | H48: ='ведом. 2022-2024'!AE573 -> 1584.1 | J48: ='ведом. 2022-2024'!AF573 -> 1584.1
A49: Иные бюджетные ассигнования | B49: 01 | C49: 03 | D49: 95 0 00 00031 | E49: 800 | F49: =F50 -> 0.1 | H49: =H50 -> 0 | J49: 0
A50: Уплата налогов, сборов и иных платежей | B50: 01 | C50: 03 | D50: 95 0 00 00031 | E50: 850 | F50: ='ведом. 2022-2024'!AD575 -> 0.1 | H50: ='ведом. 2022-2024'!AE575 -> 0 | J50: ='ведом. 2022-2024'!AF575 -> 0
A51: Расходы на содержание представительного органа муниципального образования (расходы на содержание лиц, замещающих должности, не являющиеся должностями муниципальной службы) | B51: 01 | C51: 03 | D51: 95 0 00 00032 | F51: =F52 -> 3177.8 | H51: =H52 -> 3177.8 | J51: =J52 -> 3177.8
A52: Расходы на выплаты персоналу в целях обеспечения выполнения функций государственными (муниципальными) органами, казенными учреждениями, органами управления государственными внебюджетными фондами | B52: 01 | C52: 03 | D52: 95 0 00 00032 | E52: 100 | F52: =F53 -> 3177.8 | H52: =H53 -> 3177.8 | J52: =J53 -> 3177.8
A53: Расходы на выплаты персоналу государственных (муниципальных) органов | B53: 01 | C53: 03 | D53: 95 0 00 00032 | E53: 120 | F53: ='ведом. 2022-2024'!AD578 -> 3177.8 | H53: ='ведом. 2022-2024'!AE578 -> 3177.8 | J53: ='ведом. 2022-2024'!AF578 -> 3177.8
A54: Расходы на содержание представительного органа муниципального образования (расходы на содержание лиц, замещающих должности муниципальной службы) | B54: 01 | C54: 03 | D54: 95 0 00 00033 | F54: =F55 -> 3332.2 | H54: =H55 -> 3332.2 | J54: =J55 -> 3332.2
A55: Расходы на выплаты персоналу в целях обеспечения выполнения функций государственными (муниципальными) органами, казенными учреждениями, органами управления государственными внебюджетными фондами | B55: 01 | C55: 03 | D55: 95 0 00 00033 | E55: 100 | F55: =F56 -> 3332.2 | H55: =H56 -> 3332.2 | J55: =J56 -> 3332.2
A56: Расходы на выплаты персоналу государственных (муниципальных) органов | B56: 01 | C56: 03 | D56: 95 0 00 00033 | E56: 120 | F56: ='ведом. 2022-2024'!AD581 -> 3332.2 | H56: ='ведом. 2022-2024'!AE581 -> 3332.2 | J56: ='ведом. 2022-2024'!AF581 -> 3332.2
A57: Функционирование Правительства Российской Федерации, высших исполнительных органов государственной власти субъектов Российской Федерации, местных администраций | B57: 01 | C57: 04 | F57: =F58+F70+F78+F100+F106 -> 69438.8 | G57: =G58+G70+G78+G100+G106 -> 4333.8 | H57: 69569 | I57: 4401 | J57: 64114 | K57: 4402
A58: Муниципальная программа «Культура» | B58: 01 | C58: 04 | D58: 02 0 00 00000 | F58: =F59 -> 1634 | G58: 1606 | H58: 2025 | I58: 1619 | J58: 1620 | K58: 1620
A59: Подпрограмма «Развитие архивного дела в Московской области» | B59: 01 | C59: 04 | D59: 02 7 00 00000 | F59: =F60+F64 -> 1634 | G59: 1606 | H59: 2025 | I59: 1619 | J59: 1620 | K59: 1620
A60: Основное мероприятие «Хранение, комплектование, учет и использование архивных документов в муниципальных архивах» | B60: 01 | C60: 04 | D60: 02 7 01 00000 | F60: =F61 -> 28 | H60: =H61 -> 406 | J60: =J61 -> 0
A61: Расходы на обеспечение деятельности (оказание услуг) муниципальных архивов | B61: 01 | C61: 04 | D61: 02 7 01 06160 | F61: =F62 -> 28 | H61: =H62 -> 406 | J61: =J62 -> 0
A62: Закупка товаров, работ и услуг для обеспечения государственных (муниципальных) нужд | B62: 01 | C62: 04 | D62: 02 7 01 06160 | E62: 200 | F62: =F63 -> 28 | H62: =H63 -> 406 | J62: =J63 -> 0
A63: Иные закупки товаров, работ и услуг для обеспечения государственных (муниципальных) нужд | B63: 01 | C63: 04 | D63: 02 7 01 06160 | E63: 240 | F63: ='ведом. 2022-2024'!AD29 -> 28 | H63: ='ведом. 2022-2024'!AE29 -> 406 | J63: ='ведом. 2022-2024'!AF29 -> 0
A64: Основное мероприятие «Временное хранение, комплектование, учет и использование архивных документов, относящихся к собственности Московской области и временно хранящихся в муниципальных архивах» | B64: 01 | C64: 04 | D64: 02 7 02 00000 | F64: =F65 -> 1606 | G64: 1606 | H64: 1619 | I64: 1619 | J64: 1620 | K64: 1620
A65: Осуществление переданных полномочий по временному хранению, комплектованию, учету и использованию архивных документов, относящихся к собственности Московской области и временно хранящихся в муниципальных архивах | B65: 01 | C65: 04 | D65: 02 7 02 60690 | F65: =F66+F68 -> 1606 | G65: 1606 | H65: 1619 | I65: 1619 | J65: 1620 | K65: 1620
A66: Расходы на выплаты персоналу в целях обеспечения выполнения функций государственными (муниципальными) органами, казенными учреждениями, органами управления государственными внебюджетными фондами | B66: 01 | C66: 04 | D66: 02 7 02 60690 | E66: 100 | F66: =F67 -> 1540 | G66: 1540 | H66: 1540 | I66: 1540 | J66: 1540 | K66: 1540
A67: Расходы на выплаты персоналу государственных (муниципальных) органов | B67: 01 | C67: 04 | D67: 02 7 02 60690 | E67: 120 | F67: ='ведом. 2022-2024'!AD33 -> 1540 | G67: =F67 -> 1540 | H67: ='ведом. 2022-2024'!AE33 -> 1540 | I67: =H67 -> 1540 | J67: ='ведом. 2022-2024'!AF33 -> 1540 | K67: =J67 -> 1540
A68: Закупка товаров, работ и услуг для обеспечения государственных (муниципальных) нужд | B68: 01 | C68: 04 | D68: 02 7 02 60690 | E68: 200 | F68: =F69 -> 66 | G68: 66 | H68: 79 | I68: 79 | J68: 80 | K68: 80
A69: Иные закупки товаров, работ и услуг для обеспечения государственных (муниципальных) нужд | B69: 01 | C69: 04 | D69: 02 7 02 60690 | E69: 240 | F69: ='ведом. 2022-2024'!AD35 -> 66 | G69: =F69 -> 66 | H69: ='ведом. 2022-2024'!AE35 -> 79 | I69: =H69 -> 79 | J69: ='ведом. 2022-2024'!AF35 -> 80 | K69: =J69 -> 80
A70: Муниципальная программа «Социальная защита населения» | B70: 01 | C70: 04 | D70: 04 0 00 00000 | F70: =F71 -> 2288 | G70: 2288 | H70: 2288 | I70: 2288 | J70: 2288 | K70: 2288
A71: Обеспечивающая подпрограмма | B71: 01 | C71: 04 | D71: 04 5 00 00000 | F71: 2288 | G71: 2288 | H71: 2288 | I71: 2288 | J71: 2288 | K71: 2288
A72: Основное мероприятие «Создание условий для реализации полномочий органов государственной власти Московской области и государственных органов Московской области» | B72: 01 | C72: 04 | D72: 04 5 01 00000 | F72: 2288 | G72: 2288 | H72: 2288 | I72: 2288 | J72: 2288 | K72: 2288
A73: Обеспечение переданного государственного полномочия Московской области по созданию комиссий по делам несовершеннолетних и защите их прав муниципальных образований Московской области | B73: 01 | C73: 04 | D73: 04 5 01 60680 | F73: =F74+F76 -> 2288 | G73: 2288 | H73: 2288 | I73: 2288 | J73: 2288 | K73: 2288
A74: Расходы на выплаты персоналу в целях обеспечения выполнения функций государственными (муниципальными) органами, казенными учреждениями, органами управления государственными внебюджетными фондами | B74: 01 | C74: 04 | D74: 04 5 01 60680 | E74: 100 | F74: =F75 -> 1978 | G74: 1978 | H74: 1895.9 | I74: 1895.9 | J74: 1895.9 | K74: 1895.9
A75: Расходы на выплаты персоналу государственных (муниципальных) органов | B75: 01 | C75: 04 | D75: 04 5 01 60680 | E75: 120 | F75: ='ведом. 2022-2024'!AD41 -> 1978 | G75: =F75 -> 1978 | H75: ='ведом. 2022-2024'!AE41 -> 1895.9 | I75: =H75 -> 1895.9 | J75: ='ведом. 2022-2024'!AF41 -> 1895.9 | K75: =J75 -> 1895.9
A76: Закупка товаров, работ и услуг для обеспечения государственных (муниципальных) нужд | B76: 01 | C76: 04 | D76: 04 5 01 60680 | E76: 200 | F76: =F77 -> 310 | G76: 310 | H76: 392.1 | I76: 392.1 | J76: 392.1 | K76: 392.1
A77: Иные закупки товаров, работ и услуг для обеспечения государственных (муниципальных) нужд | B77: 01 | C77: 04 | D77: 04 5 01 60680 | E77: 240 | F77: ='ведом. 2022-2024'!AD43 -> 310 | G77: =F77 -> 310 | H77: ='ведом. 2022-2024'!AE43 -> 392.1 | I77: =H77 -> 392.1 | J77: ='ведом. 2022-2024'!AF43 -> 392.1 | K77: =J77 -> 392.1
A78: Муниципальная программа «Управление имуществом и муниципальными финансами» | B78: 01 | C78: 04 | D78: 12 0 00 00000 | F78: =F84+F79 -> 56302 | H78: =H84+H79 -> 56287 | J78: 56237
A79: Подпрограмма "Совершенствование муниципальной службы Московской области" | B79: 01 | C79: 04 | D79: 12 3 00 00000 | F79: =F80 -> 50 | H79: =H80 -> 50 | J79: 0
A80: Основное мероприятие "Организация профессионального развития муниципальных служащих Московской области" | B80: 01 | C80: 04 | D80: 12 3 01 00000 | F80: =F81 -> 50 | H80: =H81 -> 50 | J80: 0
A81: Организация профессионального образования и дополнительного профессионального образования выборных должностных лиц местного самоуправления, членов выборных органов местного самоуправления, депутатов представительных органов муниципальных образований, муниципальных служащих и работников муниципальных учреждений, организация подготовки кадров для муниципальной службы | B81: 01 | C81: 04 | D81: 12 3 01 00830 | F81: =F82 -> 50 | H81: =H82 -> 50 | J81: 0
A82: Закупка товаров, работ и услуг для обеспечения государственных (муниципальных) нужд | B82: 01 | C82: 04 | D82: 12 3 01 00830 | E82: 200 | F82: =F83 -> 50 | H82: =H83 -> 50 | J82: 0
A83: Иные закупки товаров, работ и услуг для обеспечения государственных (муниципальных) нужд | B83: 01 | C83: 04 | D83: 12 3 01 00830 | E83: 240 | F83: ='ведом. 2022-2024'!AD49 -> 50 | H83: ='ведом. 2022-2024'!AE49 -> 50 | J83: ='ведом. 2022-2024'!AF49 -> 0
A84: Обеспечивающая подпрограмма | B84: 01 | C84: 04 | D84: 12 5 00 00000 | F84: =F85 -> 56252 | H84: =H85 -> 56237 | J84: =J85 -> 56237
A85: Основное мероприятие «Создание условий для реализации полномочий органов местного самоуправления» | B85: 01 | C85: 04 | D85: 12 5 01 00000 | F85: =F86 -> 56252 | H85: =H86 -> 56237 | J85: =J86 -> 56237
A86: Обеспечение деятельности администрации | B86: 01 | C86: 04 | D86: 12 5 01 00120 | F86: =F87+F94+F97 -> 56252 | H86: =H87+H94+H97 -> 56237 | J86: =J87+J94+J97 -> 56237
A87: Обеспечение деятельности администрации (расходы на обеспечение деятельности органов местного самоуправления) | B87: 01 | C87: 04 | D87: 12 5 01 00121 | F87: =F90+F92+F88 -> 7725.8 | H87: =H90+H92 -> 7710.8 | J87: 7710.8
A88: Расходы на выплаты персоналу в целях обеспечения выполнения функций государственными (муниципальными) органами, казенными учреждениями, органами управления государственными внебюджетными фондами | B88: 01 | C88: 04 | D88: 12 5 01 00121 | E88: 100 | F88: =F89 -> 6.4 | H88: =H89 -> 0 | J88: 0
A89: Расходы на выплаты персоналу государственных (муниципальных) органов | B89: 01 | C89: 04 | D89: 12 5 01 00121 | E89: 120 | F89: ='ведом. 2022-2024'!AD55 -> 6.4 | H89: ='ведом. 2022-2024'!AE55 -> 0 | J89: ='ведом. 2022-2024'!AF55 -> 0
A90: Закупка товаров, работ и услуг для обеспечения государственных (муниципальных) нужд | B90: 01 | C90: 04 | D90: 12 5 01 00121 | E90: 200 | F90: =F91 -> 7702.5 | H90: =H91 -> 7710.8 | J90: =J91 -> 7710.8
A91: Иные закупки товаров, работ и услуг для обеспечения государственных (муниципальных) нужд | B91: 01 | C91: 04 | D91: 12 5 01 00121 | E91: 240 | F91: ='ведом. 2022-2024'!AD57 -> 7702.5 | H91: ='ведом. 2022-2024'!AE57 -> 7710.8 | J91: ='ведом. 2022-2024'!AF57 -> 7710.8
A92: Иные бюджетные ассигнования | B92: 01 | C92: 04 | D92: 12 5 01 00121 | E92: 800 | F92: =F93 -> 16.9 | H92: =H93 -> 0 | J92: 0
A93: Уплата налогов, сборов и иных платежей | B93: 01 | C93: 04 | D93: 12 5 01 00121 | E93: 850 | F93: ='ведом. 2022-2024'!AD59 -> 16.9 | H93: ='ведом. 2022-2024'!AE59 -> 0 | J93: ='ведом. 2022-2024'!AF59 -> 0
A94: Обеспечение деятельности администрации (расходы на содержание лиц, замещающих должности, не являющиеся должностями муниципальной службы) | B94: 01 | C94: 04 | D94: 12 5 01 00122 | F94: =F95 -> 16437.9 | H94: =H95 -> 16437.9 | J94: =J95 -> 16437.9
A95: Расходы на выплаты персоналу в целях обеспечения выполнения функций государственными (муниципальными) органами, казенными учреждениями, органами управления государственными внебюджетными фондами | B95: 01 | C95: 04 | D95: 12 5 01 00122 | E95: 100 | F95: =F96 -> 16437.9 | H95: =H96 -> 16437.9 | J95: =J96 -> 16437.9
A96: Расходы на выплаты персоналу государственных (муниципальных) органов | B96: 01 | C96: 04 | D96: 12 5 01 00122 | E96: 120 | F96: ='ведом. 2022-2024'!AD62 -> 16437.9 | H96: ='ведом. 2022-2024'!AE62 -> 16437.9 | J96: ='ведом. 2022-2024'!AF62 -> 16437.9
A97: Обеспечение деятельности администрации (расходы на содержание лиц, замещающих должности муниципальной службы) | B97: 01 | C97: 04 | D97: 12 5 01 00123 | F97: =F98 -> 32088.3 | H97: =H98 -> 32088.3 | J97: =J98 -> 32088.3
A98: Расходы на выплаты персоналу в целях обеспечения выполнения функций государственными (муниципальными) органами, казенными учреждениями, органами управления государственными внебюджетными фондами | B98: 01 | C98: 04 | D98: 12 5 01 00123 | E98: 100 | F98: =F99 -> 32088.3 | H98: =H99 -> 32088.3 | J98: =J99 -> 32088.3
A99: Расходы на выплаты персоналу государственных (муниципальных) органов | B99: 01 | C99: 04 | D99: 12 5 01 00123 | E99: 120 | F99: ='ведом. 2022-2024'!AD65 -> 32088.3 | H99: ='ведом. 2022-2024'!AE65 -> 32088.3 | J99: ='ведом. 2022-2024'!AF65 -> 32088.3
A100: Муниципальная программа «Развитие институтов гражданского общества, повышение эффективности местного самоуправления и реализации молодежной политики» | B100: 01 | C100: 04 | D100: 13 0 00 00000 | F100: =F101 -> 8775 | H100: =H101 -> 8475 | J100: =J101 -> 3475
A101: Подпрограмма «Развитие системы информирования населения о деятельности органов местного самоуправления Московской области, создание доступной современной медиасреды» | B101: 01 | C101: 04 | D101: 13 1 00 00000 | F101: =F102 -> 8775 | H101: =H102 -> 8475 | J101: =J102 -> 3475
A102: Основное мероприятие «Информирование населения об основных событиях социально-экономического развития и общественно-политической жизни» | B102: 01 | C102: 04 | D102: 13 1 01 00000 | F102: =F103 -> 8775 | H102: =H103 -> 8475 | J102: =J103 -> 3475
A103: Информирование населения о деятельности, о положении дел на территории муниципального образования, опубликование муниципальных правовых актов, обсуждение проектов муниципальных правовых актов по вопросам местного значения, доведение до сведения жителей муниципального образования официальной информации о социально-экономическом и культурном развитии муниципального образования, о развитии его общественной инфраструктуры и иной официальной информации | B103: 01 | C103: 04 | D103: 13 1 01 00820 | F103: =F104 -> 8775 | H103: =H104 -> 8475 | J103: =J104 -> 3475
A104: Закупка товаров, работ и услуг для обеспечения государственных (муниципальных) нужд | B104: 01 | C104: 04 | D104: 13 1 01 00820 | E104: 200 | F104: =F105 -> 8775 | H104: =H105 -> 8475 | J104: =J105 -> 3475
A105: Иные закупки товаров, работ и услуг для обеспечения государственных (муниципальных) нужд | B105: 01 | C105: 04 | D105: 13 1 01 00820 | E105: 240 | F105: ='ведом. 2022-2024'!AD71 -> 8775 | H105: ='ведом. 2022-2024'!AE71 -> 8475 | J105: ='ведом. 2022-2024'!AF71 -> 3475
A106: Муниципальная программа «Архитектура и градостроительство» | B106: 01 | C106: 04 | D106: 16 0 00 00000 | F106: =F107 -> 439.8 | G106: =G107 -> 439.8 | H106: 494 | I106: 494 | J106: 494 | K106: 494
A107: Подпрограмма «Реализация политики пространственного развития городского округа» | B107: 01 | C107: 04 | D107: 16 2 00 00000 | F107: =F108 -> 439.8 | G107: =G108 -> 439.8 | H107: 494 | I107: 494 | J107: 494 | K107: 494
A108: Основное мероприятие "Финансовое обеспечение выполнения отдельных государственных полномочий в сфере архитектуры и градостроительства, переданных органам местного самоуправления муниципальных образований Московской области" | B108: 01 | C108: 04 | D108: 16 2 03 00000 | F108: =F109 -> 439.8 | G108: =G109 -> 439.8 | H108: 494 | I108: 494 | J108: 494 | K108: 494
A109: Осуществление отдельных государственных полномочий в части присвоения адресов объектам адресации, изменения и аннулирования адресов, присвоения наименований элементам улично-дорожной сети (за исключением автомобильных дорог федерального значения, автомобильных дорог регионального или межмуниципального значения, местного значения муниципального района), наименований элементам планировочной структуры, изменения, аннулирования таких наименований, согласования переустройства и перепланировки помещений в многоквартирном доме | B109: 01 | C109: 04 | D109: 16 2 03 60700 | F109: =F110+F112 -> 439.8 | G109: =G110+G112 -> 439.8 | H109: 494 | I109: 494 | J109: 494 | K109: 494
A110: Расходы на выплаты персоналу в целях обеспечения выполнения функций государственными (муниципальными) органами, казенными учреждениями, органами управления государственными внебюджетными фондами | B110: 01 | C110: 04 | D110: 16 2 03 60700 | E110: 100 | F110: =F111 -> 356.4 | G110: =G111 -> 356.4 | H110: 410.6 | I110: 410.6 | J110: 410.6 | K110: 410.6
A111: Расходы на выплаты персоналу государственных (муниципальных) органов | B111: 01 | C111: 04 | D111: 16 2 03 60700 | E111: 120 | F111: ='ведом. 2022-2024'!AD77 -> 356.4 | G111: =F111 -> 356.4 | H111: ='ведом. 2022-2024'!AF77 -> 410.6 | I111: =H111 -> 410.6 | J111: =I111 -> 410.6 | K111: 410.6
A112: Закупка товаров, работ и услуг для обеспечения государственных (муниципальных) нужд | B112: 01 | C112: 04 | D112: 16 2 03 60700 | E112: 200 | F112: =F113 -> 83.4 | G112: =G113 -> 83.4 | H112: 83.4 | I112: 83.4 | J112: 83.4 | K112: 83.4
A113: Иные закупки товаров, работ и услуг для обеспечения государственных (муниципальных) нужд | B113: 01 | C113: 04 | D113: 16 2 03 60700 | E113: 240 | F113: ='ведом. 2022-2024'!AD79 -> 83.4 | G113: =F113 -> 83.4 | H113: ='ведом. 2022-2024'!AE79 -> 83.4 | I113: =H113 -> 83.4 | J113: ='ведом. 2022-2024'!AF79 -> 83.4 | K113: =J113 -> 83.4
A114: Обеспечение деятельности финансовых, налоговых и таможенных органов и органов финансового (финансово-бюджетного) надзора | B114: 01 | C114: 06 | F114: =F121+F142+F136+F115 -> 27724.3 | H114: =H121+H142+H136+H115 -> 27020.8 | J114: =J121+J142+J136+J115 -> 27182.8
A115: Муниципальная программа «Культура» | B115: 01 | C115: 06 | D115: 02 0 00 00000 | F115: =F116 -> 0 | H115: 0 | J115: =J116 -> 162
A116: Подпрограмма «Развитие архивного дела в Московской области» | B116: 01 | C116: 06 | D116: 02 7 00 00000 | F116: 0 | H116: 0 | J116: =J117 -> 162
A117: Основное мероприятие «Хранение, комплектование, учет и использование архивных документов в муниципальных архивах» | B117: 01 | C117: 06 | D117: 02 7 01 00000 | F117: 0 | H117: 0 | J117: =J118 -> 162
A118: Расходы на обеспечение деятельности (оказание услуг) муниципальных архивов | B118: 01 | C118: 06 | D118: 02 7 01 06160 | F118: 0 | H118: 0 | J118: =J119 -> 162
A119: Закупка товаров, работ и услуг для обеспечения государственных (муниципальных) нужд | B119: 01 | C119: 06 | D119: 02 7 01 06160 | E119: 200 | F119: 0 | H119: 0 | J119: =J120 -> 162
A120: Иные закупки товаров, работ и услуг для обеспечения государственных (муниципальных) нужд | B120: 01 | C120: 06 | D120: 02 7 01 06160 | E120: 240 | F120: ='ведом. 2022-2024'!AD598+'ведом. 2022-2024'!AD1153 -> 0 | H120: ='ведом. 2022-2024'!AE598+'ведом. 2022-2024'!AE1153 -> 0 | J120: ='ведом. 2022-2024'!AF598+'ведом. 2022-2024'!AF1153 -> 162
A121: Муниципальная программа «Управление имуществом и муниципальными финансами» | B121: 01 | C121: 06 | D121: 12 0 00 00000 | F121: =F122 -> 19717.8 | H121: =H122 -> 19309.1 | J121: =J122 -> 19309.1
A122: Обеспечивающая подпрограмма | B122: 01 | C122: 06 | D122: 12 5 00 00000 | F122: =F123 -> 19717.8 | H122: =H123 -> 19309.1 | J122: =J123 -> 19309.1
A123: Основное мероприятие «Создание условий для реализации полномочий органов местного самоуправления» | B123: 01 | C123: 06 | D123: 12 5 01 00000 | F123: =F124 -> 19717.8 | H123: =H124 -> 19309.1 | J123: =J124 -> 19309.1
A124: Обеспечение деятельности финансового органа | B124: 01 | C124: 06 | D124: 12 5 01 00160 | F124: =F125+F130+F133 -> 19717.8 | H124: =H125+H130+H133 -> 19309.1 | J124: =J125+J130+J133 -> 19309.1
A125: Обеспечение деятельности финансового органа (расходы на обеспечение деятельности органов местного самоуправления) | B125: 01 | C125: 06 | D125: 12 5 01 00161 | F125: =F126+F128 -> 3079.8 | H125: =H126+H128 -> 3079.8 | J125: 3079.8
A126: Закупка товаров, работ и услуг для обеспечения государственных (муниципальных) нужд | B126: 01 | C126: 06 | D126: 12 5 01 00161 | E126: 200 | F126: =F127 -> 3075.4 | H126: =H127 -> 3079.8 | J126: =J127 -> 3079.8
A127: Иные закупки товаров, работ и услуг для обеспечения государственных (муниципальных) нужд | B127: 01 | C127: 06 | D127: 12 5 01 00161 | E127: 240 | F127: ='ведом. 2022-2024'!AD605 -> 3075.4 | H127: ='ведом. 2022-2024'!AE605 -> 3079.8 | J127: ='ведом. 2022-2024'!AF605 -> 3079.8
A128: Социальное обеспечение и иные выплаты населению | B128: 01 | C128: 06 | D128: 12 5 01 00161 | E128: 300 | F128: =F129 -> 4.4 | H128: =H129 -> 0 | J128: 0
A129: Социальные выплаты гражданам, кроме публичных нормативных социальных выплат | B129: 01 | C129: 06 | D129: 12 5 01 00161 | E129: 320 | F129: ='ведом. 2022-2024'!AD607 -> 4.4 | H129: ='ведом. 2022-2024'!AE607 -> 0 | J129: ='ведом. 2022-2024'!AF607 -> 0
A130: Обеспечение деятельности финансового органа (расходы на содержание лиц, замещающих должности, не являющиеся должностями муниципальной службы) | B130: 01 | C130: 06 | D130: =D131 -> 12 5 01 00162 | F130: =F132 -> 10111.2 | H130: =H132 -> 10111.2 | J130: =J132 -> 10111.2
A131: Расходы на выплаты персоналу в целях обеспечения выполнения функций государственными (муниципальными) органами, казенными учреждениями, органами управления государственными внебюджетными фондами | B131: 01 | C131: 06 | D131: =D132 -> 12 5 01 00162 | E131: 100 | F131: =F132 -> 10111.2 | H131: =H132 -> 10111.2 | J131: =J132 -> 10111.2
A132: Расходы на выплаты персоналу государственных (муниципальных) органов | B132: 01 | C132: 06 | D132: 12 5 01 00162 | E132: 120 | F132: ='ведом. 2022-2024'!AD610 -> 10111.2 | H132: ='ведом. 2022-2024'!AE610 -> 10111.2 | J132: ='ведом. 2022-2024'!AF610 -> 10111.2
A133: Обеспечение деятельности финансового органа (расходы на содержание лиц, замещающих должности муниципальной службы) | B133: 01 | C133: 06 | D133: =D134 -> 12 5 01 00163 | F133: =F134 -> 6526.8 | H133: =H134 -> 6118.1 | J133: =J134 -> 6118.1
A134: Расходы на выплаты персоналу в целях обеспечения выполнения функций государственными (муниципальными) органами, казенными учреждениями, органами управления государственными внебюджетными фондами | B134: 01 | C134: 06 | D134: =D135 -> 12 5 01 00163 | E134: 100 | F134: =F135 -> 6526.8 | H134: =H135 -> 6118.1 | J134: =J135 -> 6118.1
A135: Расходы на выплаты персоналу государственных (муниципальных) органов | B135: 01 | C135: 06 | D135: 12 5 01 00163 | E135: 120 | F135: ='ведом. 2022-2024'!AD613 -> 6526.8 | H135: ='ведом. 2022-2024'!AE613 -> 6118.1 | J135: ='ведом. 2022-2024'!AF613 -> 6118.1
A136: Муниципальная программа «Развитие институтов гражданского общества, повышение эффективности местного самоуправления и реализации молодежной политики» | B136: 01 | C136: 06 | D136: 13 0 00 00000 | F136: =F137 -> 4.5 | H136: =H137 -> 4.5 | J136: =J137 -> 4.5
A137: Подпрограмма «Развитие системы информирования населения о деятельности органов местного самоуправления Московской области, создание доступной современной медиасреды» | B137: 01 | C137: 06 | D137: 13 1 00 00000 | F137: =F138 -> 4.5 | H137: =H138 -> 4.5 | J137: =J138 -> 4.5
A138: Основное мероприятие «Информирование населения об основных событиях социально-экономического развития и общественно-политической жизни» | B138: 01 | C138: 06 | D138: 13 1 01 00000 | F138: =F139 -> 4.5 | H138: =H139 -> 4.5 | J138: =J139 -> 4.5
A139: Информирование населения о деятельности, о положении дел на территории муниципального образования, опубликование муниципальных правовых актов, обсуждение проектов муниципальных правовых актов по вопросам местного значения, доведение до сведения жителей муниципального образования официальной информации о социально-экономическом и культурном развитии муниципального образования, о развитии его общественной инфраструктуры и иной официальной информации | B139: 01 | C139: 06 | D139: 13 1 01 00820 | F139: =F140 -> 4.5 | H139: =H140 -> 4.5 | J139: =J140 -> 4.5
A140: Закупка товаров, работ и услуг для обеспечения государственных (муниципальных) нужд | B140: 01 | C140: 06 | D140: 13 1 01 00820 | E140: 200 | F140: =F141 -> 4.5 | H140: =H141 -> 4.5 | J140: =J141 -> 4.5
A141: Иные закупки товаров, работ и услуг для обеспечения государственных (муниципальных) нужд | B141: 01 | C141: 06 | D141: 13 1 01 00820 | E141: 240 | F141: ='ведом. 2022-2024'!AD1159 -> 4.5 | H141: ='ведом. 2022-2024'!AE1159 -> 4.5 | J141: ='ведом. 2022-2024'!AF1159 -> 4.5
A142: Руководство и управление в сфере установленных функций органов местного самоуправления | B142: 01 | C142: 06 | D142: 95 0 00 00000 | F142: =F143 -> 8002 | H142: =H143 -> 7707.2 | J142: 7707.2
A143: Обеспечение деятельности контрольно-счетной палаты | B143: 01 | C143: 06 | D143: 95 0 00 00150 | F143: =F144+F149+F152+F155 -> 8002 | H143: =H144+H149+H152+H155 -> 7707.2 | J143: 7707.2
A144: Обеспечение деятельности контрольно-счетной палаты (обеспечение деятельности) | B144: 01 | C144: 06 | D144: 95 0 00 00151 | F144: =F145+F147 -> 1030.3 | H144: =H145+H147 -> 1030.3 | J144: 1030.3
A145: Закупка товаров, работ и услуг для обеспечения государственных (муниципальных) нужд | B145: 01 | C145: 06 | D145: 95 0 00 00151 | E145: 200 | F145: =F146 -> 1022.6 | H145: =H146 -> 1030.3 | J145: =J146 -> 1030.3
A146: Иные закупки товаров, работ и услуг для обеспечения государственных (муниципальных) нужд | B146: 01 | C146: 06 | D146: 95 0 00 00151 | E146: 240 | F146: ='ведом. 2022-2024'!AD1164 -> 1022.6 | H146: ='ведом. 2022-2024'!AE1164 -> 1030.3 | J146: ='ведом. 2022-2024'!AF1164 -> 1030.3
A147: Иные бюджетные ассигнования | B147: 01 | C147: 06 | D147: 95 0 00 00151 | E147: 800 | F147: =F148 -> 7.7 | H147: =H148 -> 0 | J147: 0
A148: Уплата налогов, сборов и иных платежей | B148: 01 | C148: 06 | D148: 95 0 00 00151 | E148: 850 | F148: ='ведом. 2022-2024'!AD1166 -> 7.7 | H148: ='ведом. 2022-2024'!AE1166 -> 0 | J148: ='ведом. 2022-2024'!AF1166 -> 0
A149: Обеспечение деятельности контрольно-счетной палаты(расходы на содержание лиц, замещающих должности, не являющиеся должностями муниципальной службы) | B149: 01 | C149: 06 | D149: 95 0 00 00152 | F149: =F150 -> 1617.8 | H149: =H150 -> 1617.8 | J149: =J150 -> 1617.8
A150: Расходы на выплаты персоналу в целях обеспечения выполнения функций государственными (муниципальными) органами, казенными учреждениями, органами управления государственными внебюджетными фондами | B150: 01 | C150: 06 | D150: 95 0 00 00152 | E150: 100 | F150: =F151 -> 1617.8 | H150: =H151 -> 1617.8 | J150: =J151 -> 1617.8
A151: Расходы на выплаты персоналу государственных (муниципальных) органов | B151: 01 | C151: 06 | D151: 95 0 00 00152 | E151: 120 | F151: ='ведом. 2022-2024'!AD1169 -> 1617.8 | H151: ='ведом. 2022-2024'!AE1169 -> 1617.8 | J151: ='ведом. 2022-2024'!AF1169 -> 1617.8
A152: Обеспечение деятельности контрольно-счетной палаты (расходы на содержание лиц, замещающих должности муниципальной службы) | B152: 01 | C152: 06 | D152: 95 0 00 00153 | F152: =F153 -> 2412 | H152: =H153 -> 3098.3 | J152: =J153 -> 3098.3
A153: Расходы на выплаты персоналу в целях обеспечения выполнения функций государственными (муниципальными) органами, казенными учреждениями, органами управления государственными внебюджетными фондами | B153: 01 | C153: 06 | D153: 95 0 00 00153 | E153: 100 | F153: =F154 -> 2412 | H153: =H154 -> 3098.3 | J153: =J154 -> 3098.3
A154: Расходы на выплаты персоналу государственных (муниципальных) органов | B154: 01 | C154: 06 | D154: 95 0 00 00153 | E154: 120 | F154: ='ведом. 2022-2024'!AD1172 -> 2412 | H154: ='ведом. 2022-2024'!AE1172 -> 3098.3 | J154: ='ведом. 2022-2024'!AF1172 -> 3098.3
A155: Обеспечение деятельности контрольно-счетной палаты (расходы на содержание лиц, замещающих муниципальные должности ) | B155: 01 | C155: 06 | D155: 95 0 00 00154 | F155: =F156 -> 2941.9 | H155: =H156 -> 1960.8 | J155: 1960.8
A156: Расходы на выплаты персоналу в целях обеспечения выполнения функций государственными (муниципальными) органами, казенными учреждениями, органами управления государственными внебюджетными фондами | B156: 01 | C156: 06 | D156: 95 0 00 00154 | E156: 100 | F156: =F157 -> 2941.9 | H156: =H157 -> 1960.8 | J156: 1960.8
A157: Расходы на выплаты персоналу государственных (муниципальных) органов | B157: 01 | C157: 06 | D157: 95 0 00 00154 | E157: 120 | F157: ='ведом. 2022-2024'!AD1175 -> 2941.9 | H157: ='ведом. 2022-2024'!AE1175 -> 1960.8 | J157: ='ведом. 2022-2024'!AF1175 -> 1960.8
A158: Обеспечение проведения выборов и референдумов | B158: 01 | C158: 07 | F158: =F159+F165 -> 4590.6 | H158: =H159+H165 -> 4590.6 | J158: =J159+J165 -> 4590.6
A159: Муниципальная программа «Развитие институтов гражданского общества, повышение эффективности местного самоуправления и реализации молодежной политики» | B159: 01 | C159: 07 | D159: 13 0 00 00000 | F159: =F160 -> 1.3 | H159: =H160 -> 1 | J159: =J160 -> 1
A160: Подпрограмма «Развитие системы информирования населения о деятельности органов местного самоуправления Московской области, создание доступной современной медиасреды» | B160: 01 | C160: 07 | D160: 13 1 00 00000 | F160: =F161 -> 1.3 | H160: =H161 -> 1 | J160: =J161 -> 1
A161: Основное мероприятие «Информирование населения об основных событиях социально-экономического развития и общественно-политической жизни» | B161: 01 | C161: 07 | D161: 13 1 01 00000 | F161: =F162 -> 1.3 | H161: =H162 -> 1 | J161: =J162 -> 1
A162: Информирование населения о деятельности, о положении дел на территории муниципального образования, опубликование муниципальных правовых актов, обсуждение проектов муниципальных правовых актов по вопросам местного значения, доведение до сведения жителей муниципального образования официальной информации о социально-экономическом и культурном развитии муниципального образования, о развитии его общественной инфраструктуры и иной официальной информации | B162: 01 | C162: 07 | D162: 13 1 01 00820 | F162: =F163 -> 1.3 | H162: =H163 -> 1 | J162: =J163 -> 1
A163: Закупка товаров, работ и услуг для обеспечения государственных (муниципальных) нужд | B163: 01 | C163: 07 | D163: 13 1 01 00820 | E163: 200 | F163: =F164 -> 1.3 | H163: =H164 -> 1 | J163: =J164 -> 1
A164: Иные закупки товаров, работ и услуг для обеспечения государственных (муниципальных) нужд | B164: 01 | C164: 07 | D164: 13 1 01 00820 | E164: 240 | F164: ='ведом. 2022-2024'!AD1192 -> 1.3 | H164: ='ведом. 2022-2024'!AE1192 -> 1 | J164: ='ведом. 2022-2024'!AF1192 -> 1
A165: Руководство и управление в сфере установленных функций органов местного самоуправления | B165: 01 | C165: 07 | D165: 95 0 00 00000 | F165: =F166 -> 4589.3 | H165: =H166 -> 4589.6 | J165: =J166 -> 4589.6
A166: Обеспечение деятельности избирательной комиссии муниципального образования | B166: 01 | C166: 07 | D166: 95 0 00 00050 | F166: =F167+F172+F175 -> 4589.3 | H166: =H167+H172+H175 -> 4589.6 | J166: =J167+J172+J175 -> 4589.6
A167: Обеспечение деятельности избирательной комиссии муниципального образования (расходы на обеспечение деятельности) | B167: 01 | C167: 07 | D167: 95 0 00 00051 | F167: =F168+F170 -> 429.2 | H167: =H168 -> 429.5 | J167: =J168 -> 429.5
A168: Закупка товаров, работ и услуг для обеспечения государственных (муниципальных) нужд | B168: 01 | C168: 07 | D168: 95 0 00 00051 | E168: 200 | F168: =F169 -> 427.7 | H168: =H169 -> 429.5 | J168: =J169 -> 429.5
A169: Иные закупки товаров, работ и услуг для обеспечения государственных (муниципальных) нужд | B169: 01 | C169: 07 | D169: 95 0 00 00051 | E169: 240 | F169: ='ведом. 2022-2024'!AD1197 -> 427.7 | H169: ='ведом. 2022-2024'!AE1197 -> 429.5 | J169: ='ведом. 2022-2024'!AF1197 -> 429.5
A170: Иные бюджетные ассигнования | B170: 01 | C170: 07 | D170: 95 0 00 00051 | E170: 800 | F170: =F171 -> 1.5 | H170: =H171 -> 0 | J170: 0
A171: Уплата налогов, сборов и иных платежей | B171: 01 | C171: 07 | D171: 95 0 00 00051 | E171: 850 | F171: ='ведом. 2022-2024'!AD1199 -> 1.5 | H171: ='ведом. 2022-2024'!AE1199 -> 0 | J171: ='ведом. 2022-2024'!AF1199 -> 0
A172: Обеспечение деятельности избирательной комиссии муниципального образования(расходы на содержание лиц, замещающих должности, не являющиеся должностями муниципальной службы) | B172: 01 | C172: 07 | D172: 95 0 00 00052 | F172: =F173 -> 1959.7 | H172: =H173 -> 1959.7 | J172: =J173 -> 1959.7
A173: Расходы на выплаты персоналу в целях обеспечения выполнения функций государственными (муниципальными) органами, казенными учреждениями, органами управления государственными внебюджетными фондами | B173: 01 | C173: 07 | D173: 95 0 00 00052 | E173: 100 | F173: =F174 -> 1959.7 | H173: =H174 -> 1959.7 | J173: =J174 -> 1959.7
A174: Расходы на выплаты персоналу государственных (муниципальных) органов | B174: 01 | C174: 07 | D174: 95 0 00 00052 | E174: 120 | F174: ='ведом. 2022-2024'!AD1202 -> 1959.7 | H174: ='ведом. 2022-2024'!AE1202 -> 1959.7 | J174: ='ведом. 2022-2024'!AF1202 -> 1959.7
A175: Обеспечение деятельности избирательной комиссии муниципального образования (расходы на содержание лиц, замещающих должности муниципальной службы) | B175: 01 | C175: 07 | D175: 95 0 00 00053 | F175: =F176 -> 2200.4 | H175: =H176 -> 2200.4 | J175: =J176 -> 2200.4
A176: Расходы на выплаты персоналу в целях обеспечения выполнения функций государственными (муниципальными) органами, казенными учреждениями, органами управления государственными внебюджетными фондами | B176: 01 | C176: 07 | D176: 95 0 00 00053 | E176: 100 | F176: =F177 -> 2200.4 | H176: =H177 -> 2200.4 | J176: =J177 -> 2200.4
A177: Расходы на выплаты персоналу государственных (муниципальных) органов | B177: 01 | C177: 07 | D177: 95 0 00 00053 | E177: 120 | F177: ='ведом. 2022-2024'!AD1205 -> 2200.4 | H177: ='ведом. 2022-2024'!AF1205 -> 2200.4 | J177: ='ведом. 2022-2024'!AF1205 -> 2200.4
A178: Резервные фонды | B178: 01 | C178: 11 | F178: =F179 -> 5138.5 | H178: =H179 -> 50910.5 | J178: =J179 -> 3414.8
A179: Непрограммные расходы | B179: 01 | C179: 11 | D179: 99 0 00 00000 | F179: =F180+F183 -> 5138.5 | H179: =H180+H183 -> 50910.5 | J179: =J180+J183 -> 3414.8
A180: Резервный фонд администрации | B180: 01 | C180: 11 | D180: 99 0 00 00060 | F180: =F181 -> 4138.5 | H180: =H181 -> 49910.5 | J180: =J181 -> 2414.8
A181: Иные бюджетные ассигнования | B181: 01 | C181: 11 | D181: 99 0 00 00060 | E181: 800 | F181: =F182 -> 4138.5 | H181: =H182 -> 49910.5 | J181: =J182 -> 2414.8
A182: Резервные средства | B182: 01 | C182: 11 | D182: 99 0 00 00060 | E182: 870 | F182: ='ведом. 2022-2024'!AD84 -> 4138.5 | H182: ='ведом. 2022-2024'!AE84 -> 49910.5 | J182: ='ведом. 2022-2024'!AF84 -> 2414.8
A183: Резервный фонд на предупреждение и ликвидацию чрезвычайных ситуаций и последствий стихийных бедствий | B183: 01 | C183: 11 | D183: 99 0 00 00070 | F183: =F184 -> 1000 | H183: =H184 -> 1000 | J183: =J184 -> 1000
A184: Иные бюджетные ассигнования | B184: 01 | C184: 11 | D184: 99 0 00 00070 | E184: 800 | F184: =F185 -> 1000 | H184: =H185 -> 1000 | J184: =J185 -> 1000
A185: Резервные средства | B185: 01 | C185: 11 | D185: 99 0 00 00070 | E185: 870 | F185: ='ведом. 2022-2024'!AD87 -> 1000 | H185: ='ведом. 2022-2024'!AE87 -> 1000 | J185: ='ведом. 2022-2024'!AF87 -> 1000
A186: Другие общегосударственные вопросы | B186: 01 | C186: 13 | F186: =F193+F250+F261+F271+F187 -> 164862.1 | G186: 1283 | H186: 158045.3 | I186: 861 | J186: 130326.8 | K186: 820
A187: Муниципальная программа «Культура» | B187: 01 | C187: 13 | D187: 02 0 00 00000 | F187: =F188 -> 102 | H187: =H188 -> 115 | J187: =J188 -> 80
A188: Подпрограмма «Развитие архивного дела в Московской области» | B188: 01 | C188: 13 | D188: 02 7 00 00000 | F188: =F189 -> 102 | H188: =H189 -> 115 | J188: =J189 -> 80
A189: Основное мероприятие «Хранение, комплектование, учет и использование архивных документов в муниципальных архивах» | B189: 01 | C189: 13 | D189: 02 7 01 00000 | F189: =F190 -> 102 | H189: =H190 -> 115 | J189: =J190 -> 80
A190: Расходы на обеспечение деятельности (оказание услуг) муниципальных архивов | B190: 01 | C190: 13 | D190: 02 7 01 06160 | F190: =F191 -> 102 | H190: =H191 -> 115 | J190: =J191 -> 80
A191: Закупка товаров, работ и услуг для обеспечения государственных (муниципальных) нужд | B191: 01 | C191: 13 | D191: 02 7 01 06160 | E191: 200 | F191: =F192 -> 102 | H191: =H192 -> 115 | J191: =J192 -> 80
A192: Иные закупки товаров, работ и услуг для обеспечения государственных (муниципальных) нужд | B192: 01 | C192: 13 | D192: 02 7 01 06160 | E192: 240 | F192: ='ведом. 2022-2024'!AD94 -> 102 | H192: ='ведом. 2022-2024'!AE94+'ведом. 2022-2024'!AE630 -> 115 | J192: ='ведом. 2022-2024'!AF94+'ведом. 2022-2024'!AF630 -> 80
A193: Муниципальная программа «Управление имуществом и муниципальными финансами» | B193: 01 | C193: 13 | D193: 12 0 00 00000 | F193: =F194+F222 -> 120431.4 | G193: 511 | H193: 118633.3 | I193: 511 | J193: 97770.8 | K193: 511
A194: Подпрограмма «Развитие имущественного комплекса» | B194: 01 | C194: 13 | D194: 12 1 00 00000 | F194: =F195+F203+F209 -> 28936 | G194: 511 | H194: 27231.4 | I194: 511 | J194: 27131.4 | K194: 511
A195: Основное мероприятие «Управление имуществом, находящимся в муниципальной собственности, и выполнение кадастровых работ» | B195: 01 | C195: 13 | D195: 12 1 02 00000 | F195: =F196 -> 11656.6 | H195: =H196 -> 9952 | J195: =J196 -> 9852
A196: Владение, пользование и распоряжение имуществом, находящимся в муниципальной собственности городского округа | B196: 01 | C196: 13 | D196: 12 1 02 00170 | F196: =F197+F201+F199 -> 11656.6 | H196: =H197+H201+H199 -> 9952 | J196: =J197+J201+J199 -> 9852
A197: Закупка товаров, работ и услуг для обеспечения государственных (муниципальных) нужд | B197: 01 | C197: 13 | D197: 12 1 02 00170 | E197: 200 | F197: =F198 -> 1760 | H197: =H198 -> 1660 | J197: =J198 -> 1560
A198: Иные закупки товаров, работ и услуг для обеспечения государственных (муниципальных) нужд | B198: 01 | C198: 13 | D198: 12 1 02 00170 | E198: 240 | F198: ='ведом. 2022-2024'!AD100+'ведом. 2022-2024'!AD636+'ведом. 2022-2024'!AD912 -> 1760 | H198: ='ведом. 2022-2024'!AE100+'ведом. 2022-2024'!AE636+'ведом. 2022-2024'!AE912 -> 1660 | J198: ='ведом. 2022-2024'!AF100+'ведом. 2022-2024'!AF636 -> 1560
A199: Социальное обеспечение и иные выплаты населению | B199: 01 | C199: 13 | D199: 12 1 02 00170 | E199: 300 | F199: =F200 -> 2296.6 | H199: =H200 -> 2292 | J199: =J200 -> 2292
A200: Иные выплаты населению | B200: 01 | C200: 13 | D200: 12 1 02 00170 | E200: 360 | F200: ='ведом. 2022-2024'!AD102 -> 2296.6 | H200: ='ведом. 2022-2024'!AE102 -> 2292 | J200: ='ведом. 2022-2024'!AF102 -> 2292
A201: Предоставление субсидий бюджетным, автономным учреждениям и иным некоммерческим организациям | B201: 01 | C201: 13 | D201: 12 1 02 00170 | E201: 600 | F201: =F202 -> 7600 | H201: =H202 -> 6000 | J201: =J202 -> 6000
A202: Субсидии бюджетным учреждениям | B202: 01 | C202: 13 | D202: 12 1 02 00170 | E202: 610 | F202: ='ведом. 2022-2024'!AD104 -> 7600 | H202: ='ведом. 2022-2024'!AE104 -> 6000 | J202: ='ведом. 2022-2024'!AF104 -> 6000
A203: Основное мероприятие «Создание условий для реализации государственных полномочий в области земельных отношений» | B203: 01 | C203: 13 | D203: 12 1 03 00000 | F203: =F204 -> 511 | G203: 511 | H203: 511 | I203: 511 | J203: 511 | K203: 511
A204: Осуществление государственных полномочий Московской области в области земельных отношений | B204: 01 | C204: 13 | D204: 12 1 03 60830 | F204: =F205+F207 -> 511 | G204: 511 | H204: 511 | I204: 511 | J204: 511 | K204: 511
... 835 more rows

Sheet Целевые 2022-2024
A2: Приложение
A3: к распоряжению начальника
A4: Финансового управления г.Лыткарино
A5: от 31.08.2022 № 42
A6: "О внесении изменений и дополнений в перечень и коды целевых статей расходов бюджета городского округа Лыткарино на 2022 год и плановый период 2023 и 2024 годов"
A13: Перечень и коды целевых статей расходов бюджета городского округа Лыткарино на 2022 год и плановый период 2023 и 2024 годов
F15: (тыс.руб.)
A16: Наименования | B16: ЦСР | D16: Сумма на 2022год | E16: Сумма на 2023 год | F16: Сумма на 2024 год
A17: 1 | B17: 2 | D17: 4 | E17: 5 | F17: 6
A18: Муниципальная программа «Здравоохранение» | B18: 01 0 00 00000 | D18: =D19 -> 332.9 | E18: 0 | F18: 0
A19: Подпрограмма «Финансовое обеспечение системы организации медицинской помощи» | B19: 01 5 00 00000 | D19: 332.9 | E19: 0 | F19: 0
A20: Основное мероприятие «Развитие мер социальной поддержки медицинских работников» | B20: 01 5 03 00000 | D20: 332.9 | E20: 0 | F20: 0
A21: Создание условий для оказания медицинской помощи населению на территории городского округа в соответствии с территориальной программой государственных гарантий бесплатного оказания гражданам медицинской помощи | B21: 01 5 03 00420 | D21: 332.9 | E21: 0 | F21: 0
A22: Социальное обеспечение и иные выплаты населению | B22: 01 5 03 00420 | C22: 300 | D22: 332.9 | E22: 0 | F22: 0
A23: Социальные выплаты гражданам, кроме публичных нормативных социальных выплат | B23: 01 5 03 00420 | C23: 320 | D23: ='Функц. 2022-2024'!F934 -> 332.9 | E23: ='Функц. 2022-2024'!H934 -> 0 | F23: ='Функц. 2022-2024'!J934 -> 0
A24: Муниципальная программа «Культура» | B24: 02 0 00 00000 | D24: =D25+D30+D41+D65+D60 -> 149622.6 | E24: =E25+E30+E41+E65+E60 -> 148304.1 | F24: 137308.5
A25: Подпрограмма «Развитие музейного дела в Московской области» | B25: 02 2 00 00000 | D25: =D26 -> 16604.5 | E25: 16604.5 | F25: 14804.5
A26: Основное мероприятие «Обеспечение выполнения функций муниципальных музеев» | B26: 02 2 01 00000 | D26: 16604.5 | E26: 16604.5 | F26: 14804.5
A27: Расходы на обеспечение деятельности (оказание услуг) муниципальных учреждений - музеи, галереи | B27: 02 2 01 06130 | D27: 16604.5 | E27: 16604.5 | F27: 14804.5
A28: Предоставление субсидий бюджетным, автономным учреждениям и иным некоммерческим организациям | B28: 02 2 01 06130 | C28: 600 | D28: 16604.5 | E28: 16604.5 | F28: 14804.5
A29: Субсидии бюджетным учреждениям | B29: 02 2 01 06130 | C29: 610 | D29: ='Функц. 2022-2024'!F880 -> 16604.5 | E29: ='Функц. 2022-2024'!H880 -> 16604.5 | F29: ='Функц. 2022-2024'!J880 -> 14804.5
A30: Подпрограмма «Развитие библиотечного дела в Московской области» | B30: 02 3 00 00000 | D30: =D31 -> 27388.5 | E30: =E31 -> 27407 | F30: =F31 -> 24410.4
A31: Основное мероприятие «Организация библиотечного обслуживания населения муниципальными библиотеками Московской области» | B31: 02 3 01 00000 | D31: =D32+D35+D38 -> 27388.5 | E31: =E32+E35+E38 -> 27407 | F31: 24410.4
A32: Организация библиотечного обслуживания населения, комплектование и обеспечение сохранности библиотечных фондов библиотек городского округа | B32: 02 3 01 00450 | D32: =D33 -> 1000.1 | E32: 1000.1 | F32: 1000.1
A33: Предоставление субсидий бюджетным, автономным учреждениям и иным некоммерческим организациям | B33: 02 3 01 00450 | C33: 600 | D33: 1000.1 | E33: 1000.1 | F33: 1000.1
A34: Субсидии бюджетным учреждениям | B34: 02 3 01 00450 | C34: 610 | D34: ='Функц. 2022-2024'!F885 -> 1000.1 | E34: ='Функц. 2022-2024'!H885 -> 1000.1 | F34: ='Функц. 2022-2024'!J885 -> 1000.1
A35: Расходы на обеспечение деятельности (оказание услуг) муниципальных учреждений - библиотеки | B35: 02 3 01 06100 | D35: =D36 -> 26000 | E35: 26000 | F35: 23000
A36: Предоставление субсидий бюджетным, автономным учреждениям и иным некоммерческим организациям | B36: 02 3 01 06100 | C36: 600 | D36: 26000 | E36: 26000 | F36: 23000
A37: Субсидии бюджетным учреждениям | B37: 02 3 01 06100 | C37: 610 | D37: ='Функц. 2022-2024'!F888 -> 26000 | E37: ='Функц. 2022-2024'!H888 -> 26000 | F37: ='Функц. 2022-2024'!J888 -> 23000
A38: Государственная поддержка отрасли культуры (модернизация библиотек в части комплектования книжных фондов муниципальных общедоступных библиотек и государственной общедоступной библиотеки Московской области) | B38: 02 3 01 L5198 | D38: =D39 -> 388.4 | E38: =E39 -> 406.9 | F38: 410.3
A39: Предоставление субсидий бюджетным, автономным учреждениям и иным некоммерческим организациям | B39: 02 3 01 L5198 | C39: 600 | D39: =D40 -> 388.4 | E39: =E40 -> 406.9 | F39: 410.3
A40: Субсидии бюджетным учреждениям | B40: 02 3 01 L5198 | C40: 610 | D40: ='Функц. 2022-2024'!F891 -> 388.4 | E40: ='Функц. 2022-2024'!H891 -> 406.9 | F40: ='Функц. 2022-2024'!J891 -> 410.3
A41: Подпрограмма «Развитие профессионального искусства, гастрольно-концертной и культурно-досуговой деятельности, кинематографии Московской области» | B41: 02 4 00 00000 | D41: =D42+D52 -> 58543.5 | E41: =E42+E52 -> 57193.5 | F41: =F42+F52 -> 50993.5
A42: Основное мероприятие "Обеспечение функций театрально-концертных учреждений, муниципальных учреждений культуры Московской области " | B42: 02 4 01 00000 | D42: =D43 -> 8656 | E42: =E43 -> 7306 | F42: =F43 -> 6514
A43: Мероприятия в сфере культуры | B43: 02 4 01 00500 | D43: =D44+D49 -> 8656 | E43: =E44+E49 -> 7306 | F43: =F44+F49 -> 6514
A44: Мероприятия в сфере культуры (проведение культурно-массовых и праздничных мероприятий в сфере культуры в городе Лыткарино) | B44: 02 4 01 00501 | D44: =D47+D45 -> 8221 | E44: =E47+E45 -> 6871 | F44: =F47+F45 -> 6079
A45: Закупка товаров, работ и услуг для обеспечения государственных (муниципальных) нужд | B45: 02 4 01 00501 | C45: 200 | D45: =D46 -> 1200 | E45: =E46 -> 850 | F45: =F46 -> 850
A46: Иные закупки товаров, работ и услуг для обеспечения государственных (муниципальных) нужд | B46: 02 4 01 00501 | C46: 240 | D46: ='Функц. 2022-2024'!F897 -> 1200 | E46: ='Функц. 2022-2024'!H897 -> 850 | F46: ='Функц. 2022-2024'!J897 -> 850
A47: Предоставление субсидий бюджетным, автономным учреждениям и иным некоммерческим организациям | B47: 02 4 01 00501 | C47: 600 | D47: =D48 -> 7021 | E47: =E48 -> 6021 | F47: =F48 -> 5229
A48: Субсидии бюджетным учреждениям | B48: 02 4 01 00501 | C48: 610 | D48: ='Функц. 2022-2024'!F899 -> 7021 | E48: ='Функц. 2022-2024'!H899 -> 6021 | F48: ='Функц. 2022-2024'!J899 -> 5229
A49: Мероприятия в сфере культуры (проведение мероприятий по духовно-нравственному воспитанию) | B49: 02 4 01 00502 | D49: =D50 -> 435 | E49: 435 | F49: 435
A50: Предоставление субсидий бюджетным, автономным учреждениям и иным некоммерческим организациям | B50: 02 4 01 00502 | C50: 600 | D50: 435 | E50: 435 | F50: 435
A51: Субсидии бюджетным учреждениям | B51: 02 4 01 00502 | C51: 610 | D51: ='Функц. 2022-2024'!F902 -> 435 | E51: ='Функц. 2022-2024'!H902 -> 435 | F51: ='Функц. 2022-2024'!J902 -> 435
A52: Основное мероприятие "Обеспечение функций культурно-досуговых учреждений" | B52: 02 4 05 00000 | D52: =D53 -> 49887.5 | E52: =E53 -> 49887.5 | F52: =F53 -> 44479.5
A53: Расходы на обеспечение деятельности(оказание услуг) муниципальных учреждений-культурно-досуговые учреждения | B53: 02 4 05 06110 | D53: =D54+D57 -> 49887.5 | E53: =E54+E57 -> 49887.5 | F53: =F54+F57 -> 44479.5
A54: ='Функц. 2022-2024'!A905 -> Расходы на обеспечение деятельности (оказание услуг) муниципальных учреждений - культурно-досуговые учреждения (Расходы на выполнение муниципального задания муниципальных учреждений- МУ ДК "Мир") | B54: ='ведом. 2022-2024'!AB469 -> 02 4 05 06111 | D54: =D55 -> 26493.5 | E54: 26493.5 | F54: 23621.5
A55: ='Функц. 2022-2024'!A906 -> Предоставление субсидий бюджетным, автономным учреждениям и иным некоммерческим организациям | B55: ='ведом. 2022-2024'!AB470 -> 02 4 05 06111 | C55: 600 | D55: 26493.5 | E55: 26493.5 | F55: 23621.5
A56: ='Функц. 2022-2024'!A907 -> Субсидии бюджетным учреждениям | B56: ='ведом. 2022-2024'!AB471 -> 02 4 05 06111 | C56: 610 | D56: ='ведом. 2022-2024'!AD471 -> 26493.5 | E56: ='ведом. 2022-2024'!AE471 -> 26493.5 | F56: ='ведом. 2022-2024'!AF471 -> 23621.5
A57: ='Функц. 2022-2024'!A908 -> Расходы на обеспечение деятельности (оказание услуг) муниципальных учреждений - культурно-досуговые учреждения (Расходы на выполнение муниципального задания муниципальных учреждений- МУ ДК "Центр молодежи") | B57: ='ведом. 2022-2024'!AB472 -> 02 4 05 06112 | D57: =D58 -> 23394 | E57: 23394 | F57: 20858
A58: ='Функц. 2022-2024'!A909 -> Предоставление субсидий бюджетным, автономным учреждениям и иным некоммерческим организациям | B58: ='ведом. 2022-2024'!AB473 -> 02 4 05 06112 | C58: 600 | D58: 23394 | E58: 23394 | F58: 20858
A59: ='Функц. 2022-2024'!A910 -> Субсидии бюджетным учреждениям | B59: ='ведом. 2022-2024'!AB474 -> 02 4 05 06112 | C59: 610 | D59: ='ведом. 2022-2024'!AD474 -> 23394 | E59: ='ведом. 2022-2024'!AE474 -> 23394 | F59: ='ведом. 2022-2024'!AF474 -> 20858
A60: Подпрограмма "Развитие образования в сфере культуры Московской области" | B60: 02 6 00 00000 | D60: =D61 -> 44959.1 | E60: 44959.1 | F60: 44959.1
A61: Основное мероприятие "Обеспечение функций муниципальных организаций дополнительного образования сферы культуры" | B61: 02 6 01 00000 | D61: 44959.1 | E61: 44959.1 | F61: 44959.1
A62: Расходы на обеспечение деятельности (оказание услуг) муниципальных организаций дополнительного образования сферы культуры | B62: 02 6 01 06260 | D62: 44959.1 | E62: 44959.1 | F62: 44959.1
A63: Предоставление субсидий бюджетным, автономным учреждениям и иным некоммерческим организациям | B63: 02 6 01 06260 | C63: 600 | D63: 44959.1 | E63: 44959.1 | F63: 44959.1
A64: Субсидии бюджетным учреждениям | B64: 02 6 01 06260 | C64: 610 | D64: ='Функц. 2022-2024'!F742 -> 44959.1 | E64: ='Функц. 2022-2024'!H742 -> 44959.1 | F64: ='Функц. 2022-2024'!J742 -> 44959.1
A65: Подпрограмма «Развитие архивного дела в Московской области» | B65: 02 7 00 00000 | D65: =D66+D70 -> 2127 | E65: =E66+E70 -> 2140 | F65: =F66+F70 -> 2141
A66: Основное мероприятие «Хранение, комплектование, учет и использование архивных документов в муниципальных архивах» | B66: 02 7 01 00000 | D66: =D67 -> 521 | E66: 521 | F66: 521
A67: Расходы на обеспечение деятельности (оказание услуг) муниципальных архивов | B67: 02 7 01 06160 | D67: 521 | E67: 521 | F67: 521
A68: Закупка товаров, работ и услуг для обеспечения государственных (муниципальных) нужд | B68: 02 7 01 06160 | C68: 200 | D68: 521 | E68: 521 | F68: 521
A69: Иные закупки товаров, работ и услуг для обеспечения государственных (муниципальных) нужд | B69: 02 7 01 06160 | C69: 240 | D69: ='Функц. 2022-2024'!F31+'Функц. 2022-2024'!F63+'Функц. 2022-2024'!F120+'Функц. 2022-2024'!F192+'Функц. 2022-2024'!F807 -> 521 | E69: ='Функц. 2022-2024'!H31+'Функц. 2022-2024'!H63+'Функц. 2022-2024'!H120+'Функц. 2022-2024'!H192+'Функц. 2022-2024'!H807+'ведом. 2022-2024'!AI21 -> 521 | F69: ='Функц. 2022-2024'!J31+'Функц. 2022-2024'!J63+'Функц. 2022-2024'!J120+'Функц. 2022-2024'!J192+'Функц. 2022-2024'!J807 -> 521
A70: Основное мероприятие «Временное хранение, комплектование, учет и использование архивных документов, относящихся к собственности Московской области и временно хранящихся в муниципальных архивах» | B70: 02 7 02 00000 | D70: =D71 -> 1606 | E70: =E71 -> 1619 | F70: =F71 -> 1620
A71: Осуществление переданных полномочий по временному хранению, комплектованию, учету и использованию архивных документов, относящихся к собственности Московской области и временно хранящихся в муниципальных архивах | B71: 02 7 02 60690 | D71: =D72+D74 -> 1606 | E71: =E72+E74 -> 1619 | F71: =F72+F74 -> 1620
A72: Расходы на выплаты персоналу в целях обеспечения выполнения функций государственными (муниципальными) органами, казенными учреждениями, органами управления государственными внебюджетными фондами | B72: 02 7 02 60690 | C72: 100 | D72: =D73 -> 1540 | E72: =E73 -> 1540 | F72: =F73 -> 1540
A73: Расходы на выплаты персоналу государственных (муниципальных) органов | B73: 02 7 02 60690 | C73: 120 | D73: ='Функц. 2022-2024'!F67 -> 1540 | E73: ='Функц. 2022-2024'!H67 -> 1540 | F73: ='Функц. 2022-2024'!J67 -> 1540
A74: Закупка товаров, работ и услуг для обеспечения государственных (муниципальных) нужд | B74: 02 7 02 60690 | C74: 200 | D74: =D75 -> 66 | E74: =E75 -> 79 | F74: =F75 -> 80
A75: Иные закупки товаров, работ и услуг для обеспечения государственных (муниципальных) нужд | B75: 02 7 02 60690 | C75: 240 | D75: ='Функц. 2022-2024'!F69 -> 66 | E75: ='Функц. 2022-2024'!H69 -> 79 | F75: ='Функц. 2022-2024'!J69 -> 80
A76: Муниципальная программа «Образование» | B76: 03 0 00 00000 | D76: =D77+D93+D142+D164 -> 1123940 | E76: =E77+E93+E142+E164 -> 1409423.6 | F76: =F77+F93+F142+F164 -> 1073907.1
A77: Подпрограмма «Дошкольное образование» | B77: 03 1 00 00000 | D77: =D78 -> 172158.8 | E77: =E78 -> 172468.8 | F77: =F78 -> 172468.8
A78: Основное мероприятие «Финансовое обеспечение реализации прав граждан на получение общедоступного и бесплатного дошкольного образования» | B78: 03 1 02 00000 | D78: =D79+D86 -> 172158.8 | E78: =E79+E86 -> 172468.8 | F78: 172468.8
A79: Расходы на обеспечение деятельности (оказание услуг) муниципальных учреждений - дошкольные образовательные организации | B79: 03 1 02 06040 | D79: =D80+D83 -> 153547.8 | E79: =E80+E83 -> 153857.8 | F79: =F80+F83 -> 153857.8
A80: Расходы на обеспечение деятельности (оказание услуг) муниципальных учреждений - дошкольные образовательные организации (выполнение муниципального задания) | B80: 03 1 02 06041 | D80: =D81 -> 153497.8 | E80: 153497.8 | F80: 153497.8
A81: Предоставление субсидий бюджетным, автономным учреждениям и иным некоммерческим организациям | B81: 03 1 02 06041 | C81: 600 | D81: 153497.8 | E81: 153497.8 | F81: 153497.8
A82: Субсидии бюджетным учреждениям | B82: 03 1 02 06041 | C82: 610 | D82: ='Функц. 2022-2024'!F654 -> 153497.8 | E82: ='Функц. 2022-2024'!H654 -> 153497.8 | F82: ='Функц. 2022-2024'!J654 -> 153497.8
A83: Расходы на обеспечение деятельности (оказание услуг) муниципальных учреждений - дошкольные образовательные организации (мероприятия в сфере образования) | B83: 03 1 02 06042 | D83: =D84 -> 50 | E83: 360 | F83: 360
A84: Предоставление субсидий бюджетным, автономным учреждениям и иным некоммерческим организациям | B84: 03 1 02 06042 | C84: 600 | D84: 50 | E84: 360 | F84: 360
A85: Субсидии бюджетным учреждениям | B85: 03 1 02 06042 | C85: 610 | D85: ='Функц. 2022-2024'!F657 -> 50 | E85: ='Функц. 2022-2024'!H657 -> 360 | F85: ='Функц. 2022-2024'!J657 -> 360
A86: Выплата компенсации родительской платы за присмотр и уход за детьми, осваивающими образовательные программы дошкольного образования в организациях Московской области, осуществляющих образовательную деятельность | B86: 03 1 02 62140 | D86: =D89+D87+D91 -> 18611 | E86: =E89+E87+E91 -> 18611 | F86: =F89+F87+F91 -> 18611
A87: Закупка товаров, работ и услуг для обеспечения государственных (муниципальных) нужд | B87: 03 1 02 62140 | C87: 200 | D87: =D88 -> 176 | E87: =E88 -> 176 | F87: =F88 -> 176
A88: Иные закупки товаров, работ и услуг для обеспечения государственных (муниципальных) нужд | B88: 03 1 02 62140 | C88: 240 | D88: ='Функц. 2022-2024'!F971 -> 176 | E88: ='Функц. 2022-2024'!H971 -> 176 | F88: ='Функц. 2022-2024'!J971 -> 176
A89: Социальное обеспечение и иные выплаты населению | B89: 03 1 02 62140 | C89: 300 | D89: =D90 -> 17577 | E89: =E90 -> 17577 | F89: =F90 -> 17577
A90: Публичные нормативные социальные выплаты гражданам | B90: 03 1 02 62140 | C90: 310 | D90: ='Функц. 2022-2024'!F973 -> 17577 | E90: ='Функц. 2022-2024'!H973 -> 17577 | F90: ='Функц. 2022-2024'!J973 -> 17577
A91: Предоставление субсидий бюджетным, автономным учреждениям и иным некоммерческим организациям | B91: 03 1 02 62140 | C91: 600 | D91: =D92 -> 858 | E91: =E92 -> 858 | F91: =F92 -> 858
A92: Субсидии бюджетным учреждениям | B92: 03 1 02 62140 | C92: 610 | D92: ='Функц. 2022-2024'!F975 -> 858 | E92: ='Функц. 2022-2024'!H975 -> 858 | F92: ='Функц. 2022-2024'!J975 -> 858
A93: Подпрограмма «Общее образование» | B93: 03 2 00 00000 | D93: =D94+D121+D125+D135+D108 -> 858631 | E93: =E94+E121+E125+E135+E108 -> 1150174.2 | F93: =F94+F121+F125+F135+F108 -> 814657.7
A94: Основное мероприятие «Финансовое обеспечение деятельности образовательных организаций» | B94: 03 2 01 00000 | D94: =D95+D105+D102 -> 807228.1 | E94: =E95+E105+E102 -> 744094.1 | F94: =F95+F105+F102 -> 744607.1
A95: Расходы на обеспечение деятельности (оказание услуг) муниципальных учреждений - общеобразовательные организации | B95: 03 2 01 06050 | D95: =D96+D99 -> 81508.1 | E95: =E96+E99 -> 71808.1 | F95: =F96+F99 -> 71808.1
A96: Расходы на обеспечение деятельности (оказание услуг) муниципальных учреждений - общеобразовательные организации(выполнение муниципального задания) | B96: 03 2 01 06051 | D96: =D97 -> 69974 | E96: 69974 | F96: 69974
A97: Предоставление субсидий бюджетным, автономным учреждениям и иным некоммерческим организациям | B97: 03 2 01 06051 | C97: 600 | D97: 69974 | E97: 69974 | F97: 69974
A98: Субсидии бюджетным учреждениям | B98: 03 2 01 06051 | C98: 610 | D98: ='Функц. 2022-2024'!F681 -> 69974 | E98: ='Функц. 2022-2024'!H681 -> 69974 | F98: ='Функц. 2022-2024'!J681 -> 69974
A99: Расходы на обеспечение деятельности (оказание услуг) муниципальных учреждений - общеобразовательные организации (мероприятия в сфере образования) | B99: 03 2 01 06052 | D99: =D100 -> 11534.1 | E99: =E100 -> 1834.1 | F99: =F100 -> 1834.1
A100: Предоставление субсидий бюджетным, автономным учреждениям и иным некоммерческим организациям | B100: 03 2 01 06052 | C100: 600 | D100: =D101 -> 11534.1 | E100: 1834.1 | F100: 1834.1
A101: Субсидии бюджетным учреждениям | B101: 03 2 01 06052 | C101: 610 | D101: ='Функц. 2022-2024'!F684 -> 11534.1 | E101: ='Функц. 2022-2024'!H684 -> 1834.1 | F101: ='Функц. 2022-2024'!J684 -> 1834.1
A102: Ежемесячное денежное вознаграждение за классное руководство педагогическим работникам государственных и муниципальных общеобразовательных организаций (Финансовое обеспечение государственных гарантий реализации прав на получение общедоступного и бесплатного дошкольного образования в муниципальных дошкольных образовательных организациях в Московской области, общедоступного и бесплатного дошкольного, начального общего, основного общего, среднего общего образования в муниципальных общеобразовательных организациях в Московской области, обеспечение дополнительного образования детей в муниципальных общеобразовательных организациях в Московской области, включая расходы на оплату труда, приобретение учебников и учебных пособий, средств обучения, игр, игрушек (за исключением расходов на содержание зданий и оплату коммунальных услуг) | B102: 03 2 01 53031 | D102: =D103 -> 18358 | E102: 18358 | F102: 18871
A103: Предоставление субсидий бюджетным, автономным учреждениям и иным некоммерческим организациям | B103: 03 2 01 53031 | C103: 600 | D103: 18358 | E103: 18358 | F103: 18871
A104: Субсидии бюджетным учреждениям | B104: 03 2 01 53031 | C104: 610 | D104: ='Функц. 2022-2024'!F687 -> 18358 | E104: ='Функц. 2022-2024'!H687 -> 18358 | F104: ='Функц. 2022-2024'!J687 -> 18871
A105: Финансовое обеспечение государственных гарантий реализации прав на получение общедоступного и бесплатного дошкольного образования в муниципальных дошкольных образовательных организациях в Московской области, общедоступного и бесплатного дошкольного, начального общего, основного общего, среднего общего образования в муниципальных общеобразовательных организациях в Московской области, обеспечение дополнительного образования детей в муниципальных общеобразовательных организациях в Московской области, включая расходы на оплату труда, приобретение учебников и учебных пособий, средств обучения, игр, игрушек (за исключением расходов на содержание зданий и оплату коммунальных услуг) | B105: 03 2 01 62010 | D105: =D106 -> 707362 | E105: 653928 | F105: 653928
A106: Предоставление субсидий бюджетным, автономным учреждениям и иным некоммерческим организациям | B106: 03 2 01 62010 | C106: 600 | D106: 707362 | E106: 653928 | F106: 653928
A107: Субсидии бюджетным учреждениям | B107: 03 2 01 62010 | C107: 610 | D107: ='Функц. 2022-2024'!F690+'Функц. 2022-2024'!F748+'Функц. 2022-2024'!F662 -> 707362 | E107: ='Функц. 2022-2024'!H662+'Функц. 2022-2024'!H690+'Функц. 2022-2024'!H748 -> 653928 | F107: ='Функц. 2022-2024'!J748+'Функц. 2022-2024'!J662+'Функц. 2022-2024'!J690 -> 653928
A108: Основное мероприятие «Реализация федеральных государственных образовательных стандартов общего образования, в том числе мероприятий по нормативному правовому и методическому сопровождению, обновлению содержания и технологий образования» | B108: 03 2 03 00000 | D108: =D114+D109+D117+D118 -> 50376.6 | E108: =E114+E109+E117+E118 -> 66266.2 | F108: 49224.7
A109: Оплата расходов, связанных с компенсацией проезда к месту учебы и обратно отдельным категориям обучающихся по очной форме обучения муниципальных общеобразовательных организаций в Московской области | B109: 03 2 03 62230 | D109: =D110 -> 78 | E109: 71 | F109: 71
A110: Предоставление субсидий бюджетным, автономным учреждениям и иным некоммерческим организациям | B110: =B111 -> 03 2 03 62230 | C110: 600 | D110: 78 | E110: 71 | F110: 71
A111: Субсидии бюджетным учреждениям | B111: 03 2 03 62230 | C111: 610 | D111: ='Функц. 2022-2024'!F694 -> 78 | E111: ='Функц. 2022-2024'!H694 -> 71 | F111: ='Функц. 2022-2024'!J694 -> 71
A112: Организация бесплатного горячего питания обучающихся, получающих начальное общее образование в государственных и муниципальных образовательных организациях | B112: 03 2 03 L3040 | D112: =D113 -> 31340.6 | E112: 30169.9 | F112: 31017.7
A113: Закупка товаров, работ и услуг для обеспечения государственных (муниципальных) нужд | B113: 03 2 03 L3040 | C113: 200 | D113: 31340.6 | E113: 30169.9 | F113: 31017.7
A114: Иные закупки товаров, работ и услуг для обеспечения государственных (муниципальных) нужд | B114: 03 2 03 L3040 | C114: 240 | D114: ='Функц. 2022-2024'!F697 -> 31340.6 | E114: ='Функц. 2022-2024'!H697 -> 30169.9 | F114: ='Функц. 2022-2024'!J697 -> 31017.7
A115: Организация питания обучающихся, получающих основное и среднее общее образование, и отдельных категорий обучающихся, получающих начальное общее образование, в муниципальных общеобразовательных организациях в Московской области | B115: 03 2 03 S2870 | D115: =D116 -> 18958 | E115: 18136 | F115: 18136
A116: Закупка товаров, работ и услуг для обеспечения государственных (муниципальных) нужд | B116: 03 2 03 S2870 | C116: 200 | D116: 18958 | E116: 18136 | F116: 18136
A117: Иные закупки товаров, работ и услуг для обеспечения государственных (муниципальных) нужд | B117: 03 2 03 S2870 | C117: 240 | D117: ='Функц. 2022-2024'!F700 -> 18958 | E117: ='Функц. 2022-2024'!H700 -> 18136 | F117: ='Функц. 2022-2024'!J700 -> 18136
A118: Реализация мероприятий по благоустройству территорий муниципальных образовательных организаций | B118: 03 2 03 S2950 | D118: =D119 -> 0 | E118: =E119 -> 17889.3 | F118: 0
A119: Предоставление субсидий бюджетным, автономным учреждениям и иным некоммерческим организациям | B119: 03 2 03 S2950 | C119: 600 | D119: =D120 -> 0 | E119: =E120 -> 17889.3 | F119: 0
A120: Субсидии бюджетным учреждениям | B120: 03 2 03 S2950 | C120: 610 | D120: ='Функц. 2022-2024'!F703 -> 0 | E120: ='Функц. 2022-2024'!H703 -> 17889.3 | F120: ='Функц. 2022-2024'!J703 -> 0
A121: Основное мероприятие «Обеспечение и проведение государственной итоговой аттестации обучающихся, освоивших образовательные программы основного общего и среднего общего образования, в том числе в форме единого государственного экзамена» | B121: 03 2 05 00000 | D121: =D122 -> 1026.3 | E121: 1026.3 | F121: 1026.3
A122: Расходы на обеспечение деятельности (оказание услуг) муниципальных учреждений - общеобразовательные организации | B122: 03 2 05 06050 | D122: 1026.3 | E122: 1026.3 | F122: 1026.3
A123: Предоставление субсидий бюджетным, автономным учреждениям и иным некоммерческим организациям | B123: 03 2 05 06050 | C123: 600 | D123: 1026.3 | E123: 1026.3 | F123: 1026.3
A124: Субсидии бюджетным учреждениям | B124: 03 2 05 06050 | C124: 610 | D124: ='Функц. 2022-2024'!F707 -> 1026.3 | E124: ='Функц. 2022-2024'!H707 -> 1026.3 | F124: ='Функц. 2022-2024'!J707 -> 1026.3
A125: Основное мероприятие «Модернизация школьных систем образования в рамках государственной программы Российской Федерации «Развитие образования» | B125: 03 2 08 00000 | D125: =D126+D129+D132 -> 0 | E125: =E126+E129+E132 -> 338787.6 | F125: =F126+F129+F132 -> 0
A126: Проведение работ по капитальному ремонту зданий региональных (муниципальных) общеобразовательных организаций | B126: 03 2 08 S3770 | D126: =D127 -> 0 | E126: =E127 -> 287742.6 | F126: 0
A127: Предоставление субсидий бюджетным, автономным учреждениям и иным некоммерческим организациям | B127: 03 2 08 S3770 | C127: 600 | D127: =D128 -> 0 | E127: =E128 -> 287742.6 | F127: 0
A128: Субсидии бюджетным учреждениям | B128: 03 2 08 S3770 | C128: 610 | D128: ='Функц. 2022-2024'!F711 -> 0 | E128: ='Функц. 2022-2024'!H711 -> 287742.6 | F128: ='Функц. 2022-2024'!J711 -> 0
A129: Оснащение отремонтированных зданий общеобразовательных организаций средствами обучения и воспитания | B129: 03 2 08 S3780 | D129: =D130 -> 0 | E129: =E130 -> 26000 | F129: 0
A130: Предоставление субсидий бюджетным, автономным учреждениям и иным некоммерческим организациям | B130: 03 2 08 S3780 | C130: 600 | D130: =D131 -> 0 | E130: 26000 | F130: 0
A131: Субсидии бюджетным учреждениям | B131: 03 2 08 S3780 | C131: 610 | D131: ='Функц. 2022-2024'!F714 -> 0 | E131: ='Функц. 2022-2024'!H713 -> 26000 | F131: ='Функц. 2022-2024'!J714 -> 0
A132: Мероприятия по разработке проектно-сметной документации на проведение капитального ремонта зданий муниципальных общеобразовательных организаций в Московской области | B132: 03 2 08 S3800 | D132: =D133 -> 0 | E132: =E133 -> 25045 | F132: 0
A133: Предоставление субсидий бюджетным, автономным учреждениям и иным некоммерческим организациям | B133: 03 2 08 S3800 | C133: 600 | D133: =D134 -> 0 | E133: =E134 -> 25045 | F133: 0
A134: Субсидии бюджетным учреждениям | B134: 03 2 08 S3800 | C134: 610 | D134: ='Функц. 2022-2024'!F717 -> 0 | E134: ='Функц. 2022-2024'!H717 -> 25045 | F134: ='Функц. 2022-2024'!J717 -> 0
A135: Федеральный проект «Современная школа» | B135: 03 2 E1 00000 | D135: =D136+D139 -> 0 | E135: =E136+E139 -> 0 | F135: 19799.6
A136: Создание и обеспечение функционирования центров образования естественно-научной и технологической направленностей в общеобразовательных организациях, расположенных в сельской местности и малых городах | B136: 03 2 E1 51690 | D136: =D137 -> 0 | E136: =E137 -> 0 | F136: 10762.5
A137: Предоставление субсидий бюджетным, автономным учреждениям и иным некоммерческим организациям | B137: 03 2 E1 51690 | C137: 600 | D137: =D138 -> 0 | E137: =E138 -> 0 | F137: 10762.5
A138: Субсидии бюджетным учреждениям | B138: 03 2 E1 51690 | C138: 610 | D138: ='Функц. 2022-2024'!F721 -> 0 | E138: ='Функц. 2022-2024'!H721 -> 0 | F138: ='Функц. 2022-2024'!J721 -> 10762.5
A139: Обновление материально-технической базы в организациях, осуществляющих образовательную деятельность исключительно по адаптированным основным общеобразовательным программам | B139: 03 2 E1 51870 | D139: =D140 -> 0 | E139: =E140 -> 0 | F139: 9037.1
A140: Предоставление субсидий бюджетным, автономным учреждениям и иным некоммерческим организациям | B140: 03 2 E1 51870 | C140: 600 | D140: =D141 -> 0 | E140: =E141 -> 0 | F140: 9037.1
A141: Субсидии бюджетным учреждениям | B141: 03 2 E1 51870 | C141: 610 | D141: ='Функц. 2022-2024'!F724 -> 0 | E141: ='Функц. 2022-2024'!H724 -> 0 | F141: ='Функц. 2022-2024'!J724 -> 9037.1
A142: Подпрограмма «Дополнительное образование, воспитание и психолого-социальное сопровождение детей» | B142: 03 3 00 00000 | D142: =D143+D156+D151 -> 76174.7 | E142: =E143+E156+E151 -> 69847.7 | F142: 69847.7
A143: Основное мероприятие «Финансовое обеспечение оказания услуг (выполнения работ) организациями дополнительного образования» | B143: 03 3 03 00000 | D143: =D144 -> 50913.8 | E143: =E144 -> 55552 | F143: =F144 -> 55552
A144: Расходы на обеспечение деятельности (оказание услуг) муниципальных учреждений - организации дополнительного образования | B144: 03 3 03 06060 | D144: =D148+D145 -> 50913.8 | E144: =E148+E145 -> 55552 | F144: =F148+F145 -> 55552
A145: Расходы на обеспечение деятельности (оказание услуг) муниципальных учреждений - организации дополнительного образования (выполнение муниципального задания ) | B145: 03 3 03 06061 | D145: =D147 -> 50673.8 | E145: =E147 -> 55312 | F145: =F147 -> 55312
A146: Предоставление субсидий бюджетным, автономным учреждениям и иным некоммерческим организациям | B146: 03 3 03 06061 | C146: 600 | D146: =D147 -> 50673.8 | E146: =E147 -> 55312 | F146: =F147 -> 55312
A147: Субсидии бюджетным учреждениям | B147: 03 3 03 06061 | C147: 610 | D147: ='ведом. 2022-2024'!AD793 -> 50673.8 | E147: ='Функц. 2022-2024'!H754 -> 55312 | F147: ='Функц. 2022-2024'!J754 -> 55312
A148: Расходы на обеспечение деятельности (оказание услуг) муниципальных учреждений - организации дополнительного образования (мероприятия в сфере образования) | B148: 03 3 03 06062 | D148: =D149 -> 240 | E148: 240 | F148: 240
A149: Предоставление субсидий бюджетным, автономным учреждениям и иным некоммерческим организациям | B149: 03 3 03 06062 | C149: 600 | D149: 240 | E149: 240 | F149: 240
A150: Субсидии бюджетным учреждениям | B150: 03 3 03 06062 | C150: 610 | D150: ='Функц. 2022-2024'!F757 -> 240 | E150: ='Функц. 2022-2024'!H757 -> 240 | F150: ='Функц. 2022-2024'!J757 -> 240
A151: Основное мероприятие "Реализация мер, направленных на повышение эффективности воспитательной деятельности в системе образования, физической культуры и спорта, культуры и уровня психолого-педагогической поддержки социализации детей" | B151: 03 3 04 00000 | D151: =D152 -> 6327 | E151: =E152 -> 0 | F151: 0
A152: Реализация отдельных мероприятий муниципальных программ в сфере образования | B152: 03 3 04 61110 | D152: =D154 -> 6327 | E152: =E154 -> 0 | F152: 0
A153: Реализация отдельных мероприятий муниципальных программ в сфере образования (на оплату труда педагогов дополнительного образования) | B153: 03 3 04 61111 | D153: =D154 -> 6327 | E153: =E154 -> 0 | F153: 0
A154: Предоставление субсидий бюджетным, автономным учреждениям и иным некоммерческим организациям | B154: 03 3 04 61111 | C154: 600 | D154: =D155 -> 6327 | E154: =E155 -> 0 | F154: 0
A155: Субсидии бюджетным учреждениям | B155: 03 3 04 61111 | C155: 610 | D155: ='Функц. 2022-2024'!F762 -> 6327 | E155: ='Функц. 2022-2024'!H762 -> 0 | F155: ='Функц. 2022-2024'!J762 -> 0
A156: Основное мероприятие «Обеспечение функционирования модели персонифицированного финансирования дополнительного образования детей» | B156: 03 3 06 00000 | D156: =D157 -> 18933.9 | E156: =E157 -> 14295.7 | F156: =F157 -> 14295.7
A157: Внедрение и обеспечение функционирования модели персонифицированного финансирования дополнительного образования детей | B157: 03 3 06 00940 | D157: =D158+D162 -> 18933.9 | E157: =E158+E162 -> 14295.7 | F157: =F158+F162 -> 14295.7
A158: Предоставление субсидий бюджетным, автономным учреждениям и иным некоммерческим организациям | B158: 03 3 06 00940 | C158: 600 | D158: =D159+D160+D161 -> 18557.6 | E158: =E159+E160+E161 -> 13919.4 | F158: =F159+F160+F161 -> 13919.4
A159: Субсидии бюджетным учреждениям | B159: 03 3 06 00940 | C159: 610 | D159: ='Функц. 2022-2024'!F766 -> 18087.2 | E159: ='Функц. 2022-2024'!H766 -> 13449 | F159: ='Функц. 2022-2024'!J766 -> 13449
A160: Субсидии автономным учреждениям | B160: 03 3 06 00940 | C160: 620 | D160: ='Функц. 2022-2024'!F767 -> 235.2 | E160: ='Функц. 2022-2024'!H767 -> 235.2 | F160: ='Функц. 2022-2024'!J767 -> 235.2
A161: Субсидии некоммерческим организациям (за исключением государственных (муниципальных) учреждений, государственных корпораций (компаний), публично-правовых компаний) | B161: 03 3 06 00940 | C161: 630 | D161: ='Функц. 2022-2024'!F768 -> 235.2 | E161: ='Функц. 2022-2024'!H768 -> 235.2 | F161: ='Функц. 2022-2024'!J768 -> 235.2
A162: Иные бюджетные ассигнования | B162: 03 3 06 00940 | C162: 800 | D162: =D163 -> 376.3 | E162: =E163 -> 376.3 | F162: =F163 -> 376.3
A163: Субсидии юридическим лицам (кроме некоммерческих организаций), индивидуальным предпринимателям, физическим лицам - производителям товаров, работ, услуг | B163: 03 3 06 00940 | C163: 810 | D163: ='Функц. 2022-2024'!F770 -> 376.3 | E163: ='Функц. 2022-2024'!H770 -> 376.3 | F163: ='Функц. 2022-2024'!J770 -> 376.3
A164: Подпрограмма "Обеспечивающая подпрограмма" | B164: 03 5 00 00000 | D164: =D165 -> 16975.5 | E164: =E165 -> 16932.9 | F164: =F165 -> 16932.9
A165: Основное мероприятие «Создание условий для реализации полномочий органов местного самоуправления» | B165: 03 5 01 00000 | D165: =D166+D178 -> 16975.5 | E165: =E166+E178 -> 16932.9 | F165: =F166+F178 -> 16932.9
A166: Обеспечение деятельности органов местного самоуправления | B166: 03 5 01 00130 | D166: =D167+D172+D175 -> 16787.6 | E166: =E167+E172+E175 -> 16745 | F166: =F167+F172+F175 -> 16745
A167: Обеспечение деятельности органов местного самоуправления (расходы на обеспечение деятельности органов местного самоуправления) | B167: 03 5 01 00131 | D167: =D168+D170 -> 1328.1 | E167: =E168+E170 -> 1285.5 | F167: 1285.5
A168: Закупка товаров, работ и услуг для обеспечения государственных (муниципальных) нужд | B168: 03 5 01 00131 | C168: 200 | D168: =D169 -> 1327.1 | E168: =E169 -> 1285.5 | F168: =F169 -> 1285.5
A169: Иные закупки товаров, работ и услуг для обеспечения государственных (муниципальных) нужд | B169: 03 5 01 00131 | C169: 240 | D169: ='Функц. 2022-2024'!F814 -> 1327.1 | E169: ='Функц. 2022-2024'!H814 -> 1285.5 | F169: ='Функц. 2022-2024'!J814 -> 1285.5
A170: Иные бюджетные ассигнования | B170: 03 5 01 00131 | C170: 800 | D170: =D171 -> 1 | E170: =E171 -> 0 | F170: 0
A171: Уплата налогов, сборов и иных платежей | B171: 03 5 01 00131 | C171: 850 | D171: ='Функц. 2022-2024'!F816 -> 1 | E171: ='Функц. 2022-2024'!H816 -> 0 | F171: ='Функц. 2022-2024'!J816 -> 0
A172: Обеспечение деятельности органов местного самоуправления (расходы на содержание лиц, замещающих должности не являющиеся должностями муниципальной службы) | B172: 03 5 01 00132 | D172: =D173 -> 6471.4 | E172: 6471.4 | F172: 6471.4
A173: Расходы на выплаты персоналу в целях обеспечения выполнения функций государственными (муниципальными) органами, казенными учреждениями, органами управления государственными внебюджетными фондами | B173: 03 5 01 00132 | C173: 100 | D173: 6471.4 | E173: 6471.4 | F173: 6471.4
A174: Расходы на выплаты персоналу государственных (муниципальных) органов | B174: 03 5 01 00132 | C174: 120 | D174: ='Функц. 2022-2024'!F819 -> 6471.4 | E174: ='Функц. 2022-2024'!H819 -> 6471.4 | F174: ='Функц. 2022-2024'!J819 -> 6471.4
A175: Обеспечение деятельности органов местного самоуправления (расходы на содержание лиц, замещающих должности муниципальной службы) | B175: 03 5 01 00133 | D175: =D176 -> 8988.1 | E175: 8988.1 | F175: 8988.1
A176: Расходы на выплаты персоналу в целях обеспечения выполнения функций государственными (муниципальными) органами, казенными учреждениями, органами управления государственными внебюджетными фондами | B176: 03 5 01 00133 | C176: 100 | D176: 8988.1 | E176: 8988.1 | F176: 8988.1
A177: Расходы на выплаты персоналу государственных (муниципальных) органов | B177: 03 5 01 00133 | C177: 120 | D177: ='Функц. 2022-2024'!F822 -> 8988.1 | E177: ='Функц. 2022-2024'!H822 -> 8988.1 | F177: ='Функц. 2022-2024'!J822 -> 8988.1
A178: Мероприятия в сфере образования | B178: 03 5 01 00950 | D178: =D179 -> 187.9 | E178: 187.9 | F178: 187.9
A179: Закупка товаров, работ и услуг для обеспечения государственных (муниципальных) нужд | B179: 03 5 01 00950 | C179: 200 | D179: 187.9 | E179: 187.9 | F179: 187.9
A180: Иные закупки товаров, работ и услуг для обеспечения государственных (муниципальных) нужд | B180: 03 5 01 00950 | C180: 240 | D180: ='Функц. 2022-2024'!F825 -> 187.9 | E180: ='Функц. 2022-2024'!H825 -> 187.9 | F180: ='Функц. 2022-2024'!J825 -> 187.9
A181: Муниципальная программа «Социальная защита населения» | B181: 04 0 00 00000 | D181: =D182+D206+D229+D198+D222 -> 30777.1 | E181: =E182+E206+E229+E198+E222 -> 16182.2 | F181: 19207
A182: Подпрограмма «Социальная поддержка граждан» | B182: 04 1 00 00000 | D182: =D183+D194 -> 22477.2 | E182: =E183+E194 -> 7977.2 | F182: =F183+F194 -> 7977.2
A183: Основное мероприятие «Предоставление мер социальной поддержки и субсидий по оплате жилого помещения и коммунальных услуг гражданам Российской Федерации, имеющим место жительства в Московской области» | B183: 04 1 03 00000 | D183: =D184+D189 -> 14500 | E183: =E184+E189 -> 0 | F183: =F184+F189 -> 0
A184: Предоставление гражданам субсидий на оплату жилого помещения и коммунальных услуг | B184: 04 1 03 61410 | D184: =D185+D187 -> 12276 | E184: =E185+E187 -> 0 | F184: =F185+F187 -> 0
A185: Закупка товаров, работ и услуг для обеспечения государственных (муниципальных) нужд | B185: 04 1 03 61410 | C185: 200 | D185: =D186 -> 97 | E185: =E186 -> 0 | F185: =F186 -> 0
A186: Иные закупки товаров, работ и услуг для обеспечения государственных (муниципальных) нужд | B186: 04 1 03 61410 | C186: 240 | D186: ='Функц. 2022-2024'!F949 -> 97 | E186: ='Функц. 2022-2024'!H949 -> 0 | F186: ='Функц. 2022-2024'!J949 -> 0
A187: Социальное обеспечение и иные выплаты населению | B187: 04 1 03 61410 | C187: 300 | D187: =D188 -> 12179 | E187: =E188 -> 0 | F187: =F188 -> 0
A188: Публичные нормативные социальные выплаты гражданам | B188: 04 1 03 61410 | C188: 310 | D188: ='Функц. 2022-2024'!F951 -> 12179 | E188: ='Функц. 2022-2024'!H951 -> 0 | F188: ='Функц. 2022-2024'!J951 -> 0
A189: Обеспечение предоставления гражданам субсидий на оплату жилого помещения и коммунальных услуг | B189: 04 1 03 61420 | D189: =D190+D192 -> 2224 | E189: =E190+E192 -> 0 | F189: =F190+F192 -> 0
A190: Расходы на выплаты персоналу в целях обеспечения выполнения функций государственными (муниципальными) органами, казенными учреждениями, органами управления государственными внебюджетными фондами | B190: 04 1 03 61420 | C190: 100 | D190: =D191 -> 2004 | E190: =E191 -> 0 | F190: =F191 -> 0
A191: Расходы на выплаты персоналу государственных (муниципальных) органов | B191: 04 1 03 61420 | C191: 120 | D191: ='Функц. 2022-2024'!F570 -> 2004 | E191: ='Функц. 2022-2024'!H570 -> 0 | F191: ='Функц. 2022-2024'!J570 -> 0
A192: Закупка товаров, работ и услуг для обеспечения государственных (муниципальных) нужд | B192: 04 1 03 61420 | C192: 200 | D192: =D193 -> 220 | E192: =E193 -> 0 | F192: =F193 -> 0
A193: Иные закупки товаров, работ и услуг для обеспечения государственных (муниципальных) нужд | B193: 04 1 03 61420 | C193: 240 | D193: ='Функц. 2022-2024'!F572 -> 220 | E193: ='Функц. 2022-2024'!H572 -> 0 | F193: ='Функц. 2022-2024'!J572 -> 0
A194: Основное мероприятие «Предоставление государственных гарантий муниципальным служащим, поощрение за муниципальную службу» | B194: 04 1 18 00000 | D194: =D195 -> 7977.2 | E194: 7977.2 | F194: 7977.2
A195: Предоставление доплаты за выслугу лет к трудовой пенсии муниципальным служащим за счет средств местного бюджета | B195: 04 1 18 00840 | D195: 7977.2 | E195: 7977.2 | F195: 7977.2
A196: Социальное обеспечение и иные выплаты населению | B196: 04 1 18 00840 | C196: 300 | D196: =D197 -> 7977.2 | E196: =E197 -> 7977.2 | F196: =F197 -> 7977.2
A197: Социальные выплаты гражданам, кроме публичных нормативных социальных выплат | B197: 04 1 18 00840 | C197: 320 | D197: ='Функц. 2022-2024'!F942 -> 7977.2 | E197: ='Функц. 2022-2024'!H942 -> 7977.2 | F197: ='Функц. 2022-2024'!J942 -> 7977.2
A198: Подпрограмма «Доступная среда» | B198: 04 2 00 00000 | D198: =D199 -> 950 | E198: =E199 -> 950 | F198: =F199 -> 3974.8
A199: Основное мероприятие «Создание безбарьерной среды на объектах социальной, инженерной и транспортной инфраструктуры в Московской области» | B199: 04 2 02 00000 | D199: =D200+D203 -> 950 | E199: =E200+E203 -> 950 | F199: =F200+F203 -> 3974.8
A200: Повышение доступности объектов культуры, спорта, образования для инвалидов и маломобильных групп населения | B200: 04 2 02 00960 | D200: =D201 -> 950 | E200: 950 | F200: 0
A201: Предоставление субсидий бюджетным, автономным учреждениям и иным некоммерческим организациям | B201: 04 2 02 00960 | C201: 600 | D201: 950 | E201: 950 | F201: 0
A202: Субсидии бюджетным учреждениям | B202: 04 2 02 00960 | C202: 610 | D202: ='Функц. 2022-2024'!F916 -> 950 | E202: ='Функц. 2022-2024'!H916 -> 950 | F202: ='Функц. 2022-2024'!J916 -> 0
A203: Реализация мероприятий по обеспечению доступности приоритетных объектов и услуг в приоритетных социальных сферах жизнедеятельности инвалидов и других маломобильных групп населения | B203: 04 2 02 S1560 | D203: =D204 -> 0 | E203: 0 | F203: 3974.8
A204: Предоставление субсидий бюджетным, автономным учреждениям и иным некоммерческим организациям | B204: 04 2 02 S1560 | C204: 600 | D204: 0 | E204: 0 | F204: 3974.8
A205: Субсидии бюджетным учреждениям | B205: 04 2 02 S1560 | C205: 610 | D205: ='Функц. 2022-2024'!F919 -> 0 | E205: ='Функц. 2022-2024'!H919 -> 0 | F205: ='Функц. 2022-2024'!J919+'Функц. 2022-2024'!J776 -> 3974.8
A206: Подпрограмма «Развитие системы отдыха и оздоровления детей» | B206: 04 3 00 00000 | D206: =D207 -> 4921.9 | E206: 4827 | F206: 4827
A207: Основное мероприятие «Мероприятия по организации отдыха детей в каникулярное время, проводимые муниципальными образованиями Московской области» | B207: 04 3 05 00000 | D207: =D211+D208 -> 4921.9 | E207: =E211+E208 -> 4827 | F207: 4827
A208: Осуществление в пределах своих полномочий мероприятий по обеспечению организации отдыха детей в каникулярное время, включая мероприятия по обеспечению безопасности их жизни и здоровья | B208: 04 3 05 00410 | D208: =D209 -> 72 | E208: =E209 -> 0 | F208: 0
... 602 more rows

Sheet Р., Пр.2022-2024
F1: Приложение 5
E2: к изменениям и дополнениям
D3: к бюджету городского округа Лыткарино на 2022 год
B4: и на плановый период 2023 и 2024 годов
B6: (Приложение 5
B7: к бюджету городского округа Лыткарино на 2022 год
B8: и на плановый период 2023 и 2024 годов)
A11: Расходы бюджета городского округа Лыткарино по разделам и подразделам классификации расходов бюджетов на 2022 год и плановый период 2023 и 2024 годов
F13: (тыс.руб.)
A14: Наименования | B14: Рз | C14: ПР | D14: Сумма на 2022год | E14: Сумма на 2023 год | F14: Сумма на 2024 год
A16: 1 | B16: 2 | C16: 3 | D16: 4 | E16: 5 | F16: 6
A17: Общегосударственные вопросы | B17: 01 | D17: =D18+D19+D20+D21+D22+D23+D24 -> 286794.1 | E17: =E18+E19+E20+E21+E22+E23+E24 -> 324876 | F17: =F18+F19+F20+F21+F22+F23+F24 -> 244492.8
A18: Функционирование высшего должностного лица субъекта Российской Федерации и муниципального образования | B18: 01 | C18: 02 | D18: ='Функц. 2022-2024'!F17 -> 2602.5 | E18: ='Функц. 2022-2024'!H17 -> 2602.5 | F18: ='Функц. 2022-2024'!J17 -> 2602.5
A19: Функционирование законодательных (представительных) органов государственной власти и представительных органов муниципальных образований | B19: 01 | C19: 03 | D19: ='Функц. 2022-2024'!F24 -> 12437.3 | E19: ='Функц. 2022-2024'!H24 -> 12137.3 | F19: ='Функц. 2022-2024'!J24 -> 12261.3
A20: Функционирование Правительства Российской Федерации, высших исполнительных органов государственной власти субъектов Российской Федерации, местных администраций | B20: 01 | C20: 04 | D20: ='Функц. 2022-2024'!F57 -> 69438.8 | E20: ='Функц. 2022-2024'!H57 -> 69569 | F20: ='Функц. 2022-2024'!J57 -> 64114
A21: Обеспечение деятельности финансовых,налоговых и таможенных органов и органов финансового (финансово-бюджетного) надзора | B21: 01 | C21: 06 | D21: ='Функц. 2022-2024'!F114 -> 27724.3 | E21: ='Функц. 2022-2024'!H114 -> 27020.8 | F21: ='Функц. 2022-2024'!J114 -> 27182.8
A22: Обеспечение проведения выборов и референдумов | B22: 01 | C22: 07 | D22: ='Функц. 2022-2024'!F158 -> 4590.6 | E22: ='Функц. 2022-2024'!H158 -> 4590.6 | F22: ='Функц. 2022-2024'!J158 -> 4590.6
A23: Резервные фонды | B23: 01 | C23: 11 | D23: ='Функц. 2022-2024'!F178 -> 5138.5 | E23: ='Функц. 2022-2024'!H178 -> 50910.5 | F23: ='Функц. 2022-2024'!J178 -> 3414.8
A24: Другие общегосударственные вопросы | B24: 01 | C24: 13 | D24: ='Функц. 2022-2024'!F186 -> 164862.1 | E24: ='Функц. 2022-2024'!H186 -> 158045.3 | F24: ='Функц. 2022-2024'!J186 -> 130326.8
A25: Национальная оборона | B25: 02 | D25: =D26+D27 -> 3940 | E25: =E26+E27 -> 4070 | F25: =F26+F27 -> 4205
A26: Мобилизационная и вневойсковая подготовка | B26: 02 | C26: 03 | D26: ='Функц. 2022-2024'!F283 -> 3740 | E26: ='Функц. 2022-2024'!H283 -> 3870 | F26: ='Функц. 2022-2024'!J283 -> 4005
A27: Мобилизационная подготовка экономики | B27: 02 | C27: 04 | D27: ='Функц. 2022-2024'!F290 -> 200 | E27: ='Функц. 2022-2024'!H290 -> 200 | F27: ='Функц. 2022-2024'!J290 -> 200
A28: Национальная безопасность и правоохранительная деятельность | B28: 03 | D28: =D29+D31+D30 -> 39263.3 | E28: =E29+E31+E30 -> 39355.6 | F28: =F29+F31+F30 -> 29722.8
A29: Гражданская оборона | B29: 03 | C29: 09 | D29: ='Функц. 2022-2024'!F298 -> 1590.7 | E29: ='Функц. 2022-2024'!H298 -> 1147.7 | F29: ='Функц. 2022-2024'!J298 -> 1147.7
A30: Защита населения и территории от чрезвычайных ситуаций природного и техногенного характера,пожарная безопасность | B30: 03 | C30: 10 | D30: ='Функц. 2022-2024'!F310 -> 23188.1 | E30: ='Функц. 2022-2024'!H310 -> 22374.5 | F30: ='Функц. 2022-2024'!J310 -> 22374.5
A31: Другие вопросы в области национальной безопасности и правоохранительной деятельности | B31: 03 | C31: 14 | D31: ='Функц. 2022-2024'!F345 -> 14484.5 | E31: ='Функц. 2022-2024'!H345 -> 15833.4 | F31: ='Функц. 2022-2024'!J345 -> 6200.6
A32: Национальная экономика | B32: 04 | D32: =D34+D37+D35+D36+D33 -> 103784.5 | E32: =E34+E37+E35+E36+E33 -> 95193.6 | F32: 41270.7
A33: Сельское хозяйство и рыболовство | B33: 04 | C33: 05 | D33: ='Функц. 2022-2024'!F372 -> 1260 | E33: ='Функц. 2022-2024'!H366 -> 1260 | F33: ='Функц. 2022-2024'!J366 -> 1260
A34: Транспорт | B34: 04 | C34: 08 | D34: ='Функц. 2022-2024'!F373 -> 21355.8 | E34: ='Функц. 2022-2024'!H373 -> 20955.8 | F34: ='Функц. 2022-2024'!J373 -> 10955.8
A35: Дорожное хозяйство (дорожные фонды) | B35: 04 | C35: 09 | D35: ='Функц. 2022-2024'!F391 -> 78611.2 | E35: ='Функц. 2022-2024'!H391 -> 71920.3 | F35: ='Функц. 2022-2024'!J391 -> 28728.9
A36: Связь и информатика | B36: 04 | C36: 10 | D36: ='Функц. 2022-2024'!F422 -> 1331.5 | E36: ='Функц. 2022-2024'!H422 -> 731.5 | F36: ='Функц. 2022-2024'!J422 -> 0
A37: Другие вопросы в области национальной экономики | B37: 04 | C37: 12 | D37: ='Функц. 2022-2024'!F437 -> 1226 | E37: ='Функц. 2022-2024'!H437 -> 326 | F37: ='Функц. 2022-2024'!J437 -> 326
A38: Жилищно-коммунальное хозяйство | B38: 05 | D38: =D39+D41+D42+D40 -> 415070 | E38: =E39+E41+E42+E40 -> 138021 | F38: =F39+F41+F42+F40 -> 252907.7
A39: Жилищное хозяйство | B39: 05 | C39: 01 | D39: ='Функц. 2022-2024'!F454 -> 173578.8 | E39: ='Функц. 2022-2024'!H454 -> 16402.5 | F39: ='Функц. 2022-2024'!J454 -> 17352.5
A40: Коммунальное хозяйство | B40: 05 | C40: 02 | D40: ='Функц. 2022-2024'!F477 -> 22023.9 | E40: ='Функц. 2022-2024'!H477 -> 25000 | F40: ='Функц. 2022-2024'!J477 -> 0
A41: Благоустройство | B41: 05 | C41: 03 | D41: ='Функц. 2022-2024'!F499 -> 194786.1 | E41: ='Функц. 2022-2024'!H499 -> 74987 | F41: ='Функц. 2022-2024'!J499 -> 213923.7
A42: Другие вопросы в области жилищно-коммунального хозяйства | B42: 05 | C42: 05 | D42: ='Функц. 2022-2024'!F564 -> 24681.2 | E42: ='Функц. 2022-2024'!H564 -> 21631.5 | F42: ='Функц. 2022-2024'!J564 -> 21631.5
A43: 1 | B43: 2 | C43: 3 | D43: 4 | E43: 5 | F43: 6
A44: Охрана окружающей среды | B44: 06 | D44: =D45+D46 -> 2719730.6 | E44: =E45+E46 -> 46.6 | F44: 36.6
A45: Сбор, удаление отходов и очистка сточных вод | B45: 06 | C45: 02 | D45: ='Функц. 2022-2024'!F624 -> 2719694 | E45: ='Функц. 2022-2024'!H630 -> 10 | F45: ='Функц. 2022-2024'!J624 -> 0
A46: Другие вопросы в области охраны окружающей среды | B46: 06 | C46: 05 | D46: ='Функц. 2022-2024'!F645 -> 36.6 | E46: ='Функц. 2022-2024'!H645 -> 36.6 | F46: ='Функц. 2022-2024'!J645 -> 36.6
A47: Образование | B47: 07 | D47: =D48+D49+D51+D52+D50 -> 1177298.1 | E47: =E48+E49+E51+E52+E50 -> 1457906.9 | F47: =F48+F49+F51+F52+F50 -> 1307227.1
A48: Дошкольное образование | B48: 07 | C48: 01 | D48: ='Функц. 2022-2024'!F647 -> 463602 | E48: ='Функц. 2022-2024'!H647 -> 436624.3 | F48: ='Функц. 2022-2024'!J647 -> 436528.2
A49: Общее образование | B49: 07 | C49: 02 | D49: ='Функц. 2022-2024'!F674 -> 543957 | E49: ='Функц. 2022-2024'!H674 -> 878112.4 | F49: ='Функц. 2022-2024'!J674 -> 723778.7
A50: Дополнительное образование детей | B50: 07 | C50: 03 | D50: ='Функц. 2022-2024'!F736 -> 125950.8 | E50: ='Функц. 2022-2024'!H736 -> 119444.8 | F50: ='Функц. 2022-2024'!J736 -> 122083.8
A51: Молодежная политика | B51: 07 | C51: 07 | D51: ='Функц. 2022-2024'!F782 -> 1852.2 | E51: ='Функц. 2022-2024'!H782 -> 1540 | F51: ='Функц. 2022-2024'!J782 -> 1040
A52: Другие вопросы в области образования | B52: 07 | C52: 09 | D52: ='Функц. 2022-2024'!F801 -> 41936.1 | E52: ='Функц. 2022-2024'!H801 -> 22185.4 | F52: ='Функц. 2022-2024'!J801 -> 23796.4
A53: Культура, кинематография | B53: 08 | D53: =D54 -> 103591.5 | E53: =E54 -> 102155 | F53: =F54 -> 91544.2
A54: Культура | B54: 08 | C54: 01 | D54: ='Функц. 2022-2024'!F874 -> 103591.5 | E54: ='Функц. 2022-2024'!H874 -> 102155 | F54: ='Функц. 2022-2024'!J874 -> 91544.2
A55: Здравоохранение | B55: 09 | D55: =D56 -> 332.9 | E55: =E56 -> 0 | F55: =F56 -> 0
A56: Другие вопросы в области здравоохранения | B56: 09 | C56: 09 | D56: ='Функц. 2022-2024'!F928 -> 332.9 | E56: ='Функц. 2022-2024'!H928 -> 0 | F56: ='Функц. 2022-2024'!J928 -> 0
A57: Социальная политика | B57: 10 | D57: =D58+D59+D61+D60 -> 92628.4 | E57: =E58+E59+E61+E60 -> 50591.2 | F57: =F58+F59+F61+F60 -> 59363.2
A58: Пенсионное обеспечение | B58: 10 | C58: 01 | D58: ='Функц. 2022-2024'!F936 -> 7977.2 | E58: ='Функц. 2022-2024'!H936 -> 7977.2 | F58: ='Функц. 2022-2024'!J936 -> 7977.2
A59: Социальное обеспечение населения | B59: 10 | C59: 03 | D59: ='Функц. 2022-2024'!F943 -> 19711 | E59: ='Функц. 2022-2024'!H943 -> 1366 | F59: ='Функц. 2022-2024'!J943 -> 2836
A60: Охрана семьи и детства | B60: 10 | C60: 04 | D60: ='Функц. 2022-2024'!F965 -> 64800.2 | E60: ='Функц. 2022-2024'!H965 -> 41108 | F60: ='Функц. 2022-2024'!J965 -> 48410
A61: Другие вопросы в области социальной политики | B61: 10 | C61: 06 | D61: ='Функц. 2022-2024'!F987 -> 140 | E61: ='Функц. 2022-2024'!H987 -> 140 | F61: ='Функц. 2022-2024'!J987 -> 140
A62: Физическая культура и спорт | B62: 11 | D62: =D64+D63 -> 157054.8 | E62: =E64+E63 -> 89845.7 | F62: =F64+F63 -> 74015.7
A63: Физическая культура | B63: 11 | C63: 01 | D63: ='Функц. 2022-2024'!F995 -> 35654 | E63: ='Функц. 2022-2024'!H995 -> 35000 | F63: ='Функц. 2022-2024'!J995 -> 20000
A64: Массовый спорт | B64: 11 | C64: 02 | D64: ='Функц. 2022-2024'!F1002 -> 121400.8 | E64: ='Функц. 2022-2024'!H1002 -> 54845.7 | F64: ='Функц. 2022-2024'!J1002 -> 54015.7
A65: Обслуживание государственного и муниципального долга | B65: 13 | D65: =D66 -> 491.3 | E65: =E66 -> 8500 | F65: =F66 -> 15000
A66: Обслуживание государственного внутреннего и муниципального долга | B66: 13 | C66: 01 | D66: ='Функц. 2022-2024'!F1032 -> 491.3 | E66: ='Функц. 2022-2024'!H1037 -> 8500 | F66: ='Функц. 2022-2024'!J1037 -> 15000
A67: ВСЕГО | D67: =D65+D62+D57+D55+D53+D47+D38+D32+D28+D25+D17+D44 -> 5099979.5 | E67: =E65+E62+E57+E55+E53+E47+E38+E32+E28+E25+E17+E44 -> 2310561.6 | F67: =F65+F62+F57+F55+F53+F47+F38+F32+F28+F25+F17+F44 -> 2119785.8

Sheet ведом. 2022-2024
AF2: Приложение 3
AE3: к изменениям и дополнениям
AD4: к бюджету городского округа Лыткарино на 2022 год
AB5: и на плановый период 2023 и 2024 годов
AF6: (Приложение 3
AD7: к бюджету городского округа Лыткарино на 2022 год
AB8: и на плановый период 2023 и 2024 годов)
X10: Ведомственная структура расходов бюджета городского округа Лыткарино на 2022 год и плановый период 2023 и 2024 годов
X12: Наименования | Y12: Код главного распоря- дителя | Z12: Рз | AA12: ПР | AB12: ЦСР | AC12: ВР | AD12: Сумма на 2022 год | AE12: Сумма на 2023 год | AF12: Сумма на 2024 год
X13: 1 | Y13: 2 | Z13: 3 | AA13: 4 | AB13: 5 | AC13: 6 | AD13: 7 | AE13: 8 | AF13: 9
X14: Администрация городского округа Лыткарино | Y14: 001 | AD14: =AD15+AD162+AD177+AD245+AD302+AD375+AD437+AD491+AD499+AD514+AD540 -> 602443.4 | AE14: =AE15+AE162+AE177+AE245+AE302+AE375+AE437+AE491+AE499+AE514+AE540 -> 667135.4 | AF14: =AF15+AF162+AF177+AF245+AF302+AF375+AF437+AF491+AF499+AF514+AF540 -> 507195.1
X15: Общегосударственные вопросы | Y15: 001 | Z15: 01 | AD15: =AD16+AD23+AD80+AD88 -> 199813.8 | AE15: =AE16+AE23+AE80+AE88 -> 242100.4 | AF15: =AF16+AF23+AF80+AF88 -> 161646.2
X16: Функционирование высшего должностного лица субъекта Российской Федерации и муниципального образования | Y16: 001 | Z16: 01 | AA16: 02 | AD16: =AD17 -> 2602.5 | AE16: 2602.5 | AF16: 2602.5
X17: Муниципальная программа «Управление имуществом и муниципальными финансами» | Y17: 001 | Z17: 01 | AA17: 02 | AB17: 12 0 00 00000 | AD17: =AD18 -> 2602.5 | AE17: =AE18 -> 2602.5 | AF17: =AF18 -> 2602.5
X18: Обеспечивающая подпрограмма | Y18: 001 | Z18: 01 | AA18: 02 | AB18: 12 5 00 00000 | AD18: 2602.5 | AE18: 2602.5 | AF18: 2602.5
X19: Основное мероприятие «Создание условий для реализации полномочий органов местного самоуправления» | Y19: 001 | Z19: 01 | AA19: 02 | AB19: 12 5 01 00000 | AD19: 2602.5 | AE19: 2602.5 | AF19: 2602.5
X20: Функционирование высшего должностного лица | Y20: 001 | Z20: 01 | AA20: 02 | AB20: 12 5 01 00110 | AD20: =AD21 -> 2602.5 | AE20: 2602.5 | AF20: 2602.5
X21: Расходы на выплаты персоналу в целях обеспечения выполнения функций государственными (муниципальными) органами, казенными учреждениями, органами управления государственными внебюджетными фондами | Y21: 001 | Z21: 01 | AA21: 02 | AB21: 12 5 01 00110 | AC21: 100 | AD21: 2602.5 | AE21: 2602.5 | AF21: 2602.5
X22: Расходы на выплаты персоналу государственных (муниципальных) органов | Y22: 001 | Z22: 01 | AA22: 02 | AB22: 12 5 01 00110 | AC22: 120 | AD22: 2602.5 | AE22: 2602.5 | AF22: 2602.5
X23: Функционирование Правительства Российской Федерации, высших исполнительных органов государственной власти субъектов Российской Федерации, местных администраций | Y23: 001 | Z23: 01 | AA23: 04 | AD23: =AD24+AD36+AD44+AD66+AD72 -> 69438.8 | AE23: =AE24+AE36+AE44+AE66+AE72 -> 69569 | AF23: 64114
X24: Муниципальная программа «Культура» | Y24: 001 | Z24: 01 | AA24: 04 | AB24: 02 0 00 00000 | AD24: =AD25 -> 1634 | AE24: =AE25 -> 2025 | AF24: =AF25 -> 1620
X25: Подпрограмма «Развитие архивного дела в Московской области» | Y25: 001 | Z25: 01 | AA25: 04 | AB25: 02 7 00 00000 | AD25: =AD26+AD30 -> 1634 | AE25: =AE26+AE30 -> 2025 | AF25: =AF26+AF30 -> 1620
X26: Основное мероприятие «Хранение, комплектование, учет и использование архивных документов в муниципальных архивах» | Y26: 001 | Z26: 01 | AA26: 04 | AB26: 02 7 01 00000 | AD26: =AD27 -> 28 | AE26: 406 | AF26: 0
X27: Расходы на обеспечение деятельности (оказание услуг) муниципальных архивов | Y27: 001 | Z27: 01 | AA27: 04 | AB27: 02 7 01 06160 | AD27: 28 | AE27: 406 | AF27: 0
X28: Закупка товаров, работ и услуг для обеспечения государственных (муниципальных) нужд | Y28: 001 | Z28: 01 | AA28: 04 | AB28: 02 7 01 06160 | AC28: 200 | AD28: 28 | AE28: 406 | AF28: 0
X29: Иные закупки товаров, работ и услуг для обеспечения государственных (муниципальных) нужд | Y29: 001 | Z29: 01 | AA29: 04 | AB29: 02 7 01 06160 | AC29: 240 | AD29: 28 | AE29: =316+90 -> 406 | AF29: 0
X30: Основное мероприятие «Временное хранение, комплектование, учет и использование архивных документов, относящихся к собственности Московской области и временно хранящихся в муниципальных архивах» | Y30: 001 | Z30: 01 | AA30: 04 | AB30: 02 7 02 00000 | AD30: =AD31 -> 1606 | AE30: =AE31 -> 1619 | AF30: =AF31 -> 1620
X31: Осуществление переданных полномочий по временному хранению, комплектованию, учету и использованию архивных документов, относящихся к собственности Московской области и временно хранящихся в муниципальных архивах | Y31: 001 | Z31: 01 | AA31: 04 | AB31: 02 7 02 60690 | AD31: =AD32+AD34 -> 1606 | AE31: =AE32+AE34 -> 1619 | AF31: =AF32+AF34 -> 1620
X32: Расходы на выплаты персоналу в целях обеспечения выполнения функций государственными (муниципальными) органами, казенными учреждениями, органами управления государственными внебюджетными фондами | Y32: 001 | Z32: 01 | AA32: 04 | AB32: 02 7 02 60690 | AC32: 100 | AD32: =AD33 -> 1540 | AE32: =AE33 -> 1540 | AF32: =AF33 -> 1540
X33: Расходы на выплаты персоналу государственных (муниципальных) органов | Y33: 001 | Z33: 01 | AA33: 04 | AB33: 02 7 02 60690 | AC33: 120 | AD33: 1540 | AE33: 1540 | AF33: 1540
X34: Закупка товаров, работ и услуг для обеспечения государственных (муниципальных) нужд | Y34: 001 | Z34: 01 | AA34: 04 | AB34: 02 7 02 60690 | AC34: 200 | AD34: =AD35 -> 66 | AE34: =AE35 -> 79 | AF34: =AF35 -> 80
X35: Иные закупки товаров, работ и услуг для обеспечения государственных (муниципальных) нужд | Y35: 001 | Z35: 01 | AA35: 04 | AB35: 02 7 02 60690 | AC35: 240 | AD35: 66 | AE35: 79 | AF35: 80
X36: Муниципальная программа «Социальная защита населения» | Y36: 001 | Z36: 01 | AA36: 04 | AB36: 04 0 00 00000 | AD36: =AD37 -> 2288 | AE36: 2288 | AF36: 2288
X37: Обеспечивающая подпрограмма | Y37: 001 | Z37: 01 | AA37: 04 | AB37: 04 5 00 00000 | AD37: 2288 | AE37: 2288 | AF37: 2288
X38: Основное мероприятие «Создание условий для реализации полномочий органов государственной власти Московской области и государственных органов Московской области» | Y38: 001 | Z38: 01 | AA38: 04 | AB38: 04 5 01 00000 | AD38: 2288 | AE38: 2288 | AF38: 2288
X39: Обеспечение переданного государственного полномочия Московской области по созданию комиссий по делам несовершеннолетних и защите их прав муниципальных образований Московской области | Y39: 001 | Z39: 01 | AA39: 04 | AB39: 04 5 01 60680 | AD39: =AD40+AD42 -> 2288 | AE39: =AE40+AE42 -> 2288 | AF39: =AF40+AF42 -> 2288
X40: Расходы на выплаты персоналу в целях обеспечения выполнения функций государственными (муниципальными) органами, казенными учреждениями, органами управления государственными внебюджетными фондами | Y40: 001 | Z40: 01 | AA40: 04 | AB40: 04 5 01 60680 | AC40: 100 | AD40: =AD41 -> 1978 | AE40: =AE41 -> 1895.9 | AF40: =AF41 -> 1895.9
X41: Расходы на выплаты персоналу государственных (муниципальных) органов | Y41: 001 | Z41: 01 | AA41: 04 | AB41: 04 5 01 60680 | AC41: 120 | AD41: =1895.9+82.1 -> 1978 | AE41: 1895.9 | AF41: 1895.9
X42: Закупка товаров, работ и услуг для обеспечения государственных (муниципальных) нужд | Y42: 001 | Z42: 01 | AA42: 04 | AB42: 04 5 01 60680 | AC42: 200 | AD42: =AD43 -> 310 | AE42: =AE43 -> 392.1 | AF42: =AF43 -> 392.1
X43: Иные закупки товаров, работ и услуг для обеспечения государственных (муниципальных) нужд | Y43: 001 | Z43: 01 | AA43: 04 | AB43: 04 5 01 60680 | AC43: 240 | AD43: =392.1-82.1 -> 310 | AE43: 392.1 | AF43: 392.1
X44: Муниципальная программа «Управление имуществом и муниципальными финансами» | Y44: 001 | Z44: 01 | AA44: 04 | AB44: 12 0 00 00000 | AD44: =AD50+AD45 -> 56302 | AE44: =AE50+AE45 -> 56287 | AF44: 56237
X45: Подпрограмма "Совершенствование муниципальной службы Московской области" | Y45: 001 | Z45: 01 | AA45: 04 | AB45: 12 3 00 00000 | AD45: =AD46 -> 50 | AE45: =AE46 -> 50 | AF45: 0
X46: Основное мероприятие "Организация профессионального развития муниципальных служащих Московской области" | Y46: 001 | Z46: 01 | AA46: 04 | AB46: 12 3 01 00000 | AD46: =AD47 -> 50 | AE46: =AE47 -> 50 | AF46: 0
X47: Организация профессионального образования и дополнительного профессионального образования выборных должностных лиц местного самоуправления, членов выборных органов местного самоуправления, депутатов представительных органов муниципальных образований, муниципальных служащих и работников муниципальных учреждений, организация подготовки кадров для муниципальной службы | Y47: 001 | Z47: 01 | AA47: 04 | AB47: 12 3 01 00830 | AD47: =AD48 -> 50 | AE47: =AE48 -> 50 | AF47: 0
X48: Закупка товаров, работ и услуг для обеспечения государственных (муниципальных) нужд | Y48: 001 | Z48: 01 | AA48: 04 | AB48: 12 3 01 00830 | AC48: 200 | AD48: =AD49 -> 50 | AE48: =AE49 -> 50 | AF48: 0
X49: Иные закупки товаров, работ и услуг для обеспечения государственных (муниципальных) нужд | Y49: 001 | Z49: 01 | AA49: 04 | AB49: 12 3 01 00830 | AC49: 240 | AD49: 50 | AE49: 50 | AF49: 0
X50: Обеспечивающая подпрограмма | Y50: 001 | Z50: 01 | AA50: 04 | AB50: 12 5 00 00000 | AD50: =AD51 -> 56252 | AE50: 56237 | AF50: 56237
X51: Основное мероприятие «Создание условий для реализации полномочий органов местного самоуправления» | Y51: 001 | Z51: 01 | AA51: 04 | AB51: 12 5 01 00000 | AD51: 56252 | AE51: 56237 | AF51: 56237
X52: Обеспечение деятельности администрации | Y52: 001 | Z52: 01 | AA52: 04 | AB52: 12 5 01 00120 | AD52: =AD53+AD60+AD63 -> 56252 | AE52: =AE53+AE60+AE63 -> 56237 | AF52: =AF53+AF60+AF63 -> 56237
X53: Обеспечение деятельности администрации (расходы на обеспечение деятельности органов местного самоуправления) | Y53: 001 | Z53: 01 | AA53: 04 | AB53: 12 5 01 00121 | AD53: =AD56+AD58+AD54 -> 7725.8 | AE53: =AE56+AE58+AE54 -> 7710.8 | AF53: 7710.8
X54: Расходы на выплаты персоналу в целях обеспечения выполнения функций государственными (муниципальными) органами, казенными учреждениями, органами управления государственными внебюджетными фондами | Y54: 001 | Z54: 01 | AA54: 04 | AB54: 12 5 01 00121 | AC54: 100 | AD54: =AD55 -> 6.4 | AE54: =AE55 -> 0 | AF54: 0
X55: Расходы на выплаты персоналу государственных (муниципальных) органов | Y55: 001 | Z55: 01 | AA55: 04 | AB55: 12 5 01 00121 | AC55: 120 | AD55: =3.8+2.6 -> 6.4 | AE55: 0 | AF55: 0
X56: Закупка товаров, работ и услуг для обеспечения государственных (муниципальных) нужд | Y56: 001 | Z56: 01 | AA56: 04 | AB56: 12 5 01 00121 | AC56: 200 | AD56: =AD57 -> 7702.5 | AE56: =AE57 -> 7710.8 | AF56: =AF57 -> 7710.8
X57: Иные закупки товаров, работ и услуг для обеспечения государственных (муниципальных) нужд | Y57: 001 | Z57: 01 | AA57: 04 | AB57: 12 5 01 00121 | AC57: 240 | AD57: =6821.6+899.3-2.6-15.8 -> 7702.5 | AE57: =6547.1+1163.7 -> 7710.8 | AF57: =6547.1+1163.7 -> 7710.8
X58: Иные бюджетные ассигнования | Y58: 001 | Z58: 01 | AA58: 04 | AB58: 12 5 01 00121 | AC58: 800 | AD58: =AD59 -> 16.9 | AE58: =AE59 -> 0 | AF58: 0
X59: Уплата налогов, сборов и иных платежей | Y59: 001 | Z59: 01 | AA59: 04 | AB59: 12 5 01 00121 | AC59: 850 | AD59: =0.1+1+15.8 -> 16.9 | AE59: 0 | AF59: 0
X60: Обеспечение деятельности администрации (расходы на содержание лиц, замещающих должности, не являющиеся должностями муниципальной службы) | Y60: 001 | Z60: 01 | AA60: 04 | AB60: 12 5 01 00122 | AD60: =AD61 -> 16437.9 | AE60: 16437.9 | AF60: 16437.9
X61: Расходы на выплаты персоналу в целях обеспечения выполнения функций государственными (муниципальными) органами, казенными учреждениями, органами управления государственными внебюджетными фондами | Y61: 001 | Z61: 01 | AA61: 04 | AB61: 12 5 01 00122 | AC61: 100 | AD61: 16437.9 | AE61: 16437.9 | AF61: 16437.9
X62: Расходы на выплаты персоналу государственных (муниципальных) органов | Y62: 001 | Z62: 01 | AA62: 04 | AB62: 12 5 01 00122 | AC62: 120 | AD62: 16437.9 | AE62: 16437.9 | AF62: 16437.9
X63: Обеспечение деятельности администрации (расходы на содержание лиц, замещающих должности муниципальной службы) | Y63: 001 | Z63: 01 | AA63: 04 | AB63: 12 5 01 00123 | AD63: =AD64 -> 32088.3 | AE63: 32088.3 | AF63: 32088.3
X64: Расходы на выплаты персоналу в целях обеспечения выполнения функций государственными (муниципальными) органами, казенными учреждениями, органами управления государственными внебюджетными фондами | Y64: 001 | Z64: 01 | AA64: 04 | AB64: 12 5 01 00123 | AC64: 100 | AD64: 32088.3 | AE64: 32088.3 | AF64: 32088.3
X65: Расходы на выплаты персоналу государственных (муниципальных) органов | Y65: 001 | Z65: 01 | AA65: 04 | AB65: 12 5 01 00123 | AC65: 120 | AD65: 32088.3 | AE65: 32088.3 | AF65: 32088.3
X66: Муниципальная программа «Развитие институтов гражданского общества, повышение эффективности местного самоуправления и реализации молодежной политики» | Y66: 001 | Z66: 01 | AA66: 04 | AB66: 13 0 00 00000 | AD66: =AD67 -> 8775 | AE66: 8475 | AF66: 3475
X67: Подпрограмма «Развитие системы информирования населения о деятельности органов местного самоуправления Московской области, создание доступной современной медиасреды» | Y67: 001 | Z67: 01 | AA67: 04 | AB67: 13 1 00 00000 | AD67: 8775 | AE67: 8475 | AF67: 3475
X68: Основное мероприятие «Информирование населения об основных событиях социально-экономического развития и общественно-политической жизни» | Y68: 001 | Z68: 01 | AA68: 04 | AB68: 13 1 01 00000 | AD68: 8775 | AE68: 8475 | AF68: 3475
X69: Информирование населения о деятельности, о положении дел на территории муниципального образования, опубликование муниципальных правовых актов, обсуждение проектов муниципальных правовых актов по вопросам местного значения, доведение до сведения жителей муниципального образования официальной информации о социально-экономическом и культурном развитии муниципального образования, о развитии его общественной инфраструктуры и иной официальной информации | Y69: 001 | Z69: 01 | AA69: 04 | AB69: 13 1 01 00820 | AD69: =AD70 -> 8775 | AE69: 8475 | AF69: 3475
X70: Закупка товаров, работ и услуг для обеспечения государственных (муниципальных) нужд | Y70: 001 | Z70: 01 | AA70: 04 | AB70: 13 1 01 00820 | AC70: 200 | AD70: 8775 | AE70: 8475 | AF70: 3475
X71: Иные закупки товаров, работ и услуг для обеспечения государственных (муниципальных) нужд | Y71: 001 | Z71: 01 | AA71: 04 | AB71: 13 1 01 00820 | AC71: 240 | AD71: =8470.5+4.5+600-300 -> 8775 | AE71: =8470.5+4.5 -> 8475 | AF71: =3470.5+4.5 -> 3475
X72: Муниципальная программа «Архитектура и градостроительство» | Y72: 001 | Z72: 01 | AA72: 04 | AB72: 16 0 00 00000 | AD72: =AD73 -> 439.8 | AE72: =AE73 -> 494 | AF72: 494
X73: Подпрограмма «Реализация политики пространственного развития городского округа» | Y73: 001 | Z73: 01 | AA73: 04 | AB73: 16 2 00 00000 | AD73: =AD74 -> 439.8 | AE73: 494 | AF73: 494
X74: Основное мероприятие "Финансовое обеспечение выполнения отдельных государственных полномочий в сфере архитектуры и градостроительства, переданных органам местного самоуправления муниципальных образований Московской области" | Y74: 001 | Z74: 01 | AA74: 04 | AB74: 16 2 03 00000 | AD74: 439.8 | AE74: 494 | AF74: 494
X75: Осуществление отдельных государственных полномочий в части присвоения адресов объектам адресации, изменения и аннулирования адресов, присвоения наименований элементам улично-дорожной сети (за исключением автомобильных дорог федерального значения, автомобильных дорог регионального или межмуниципального значения, местного значения муниципального района), наименований элементам планировочной структуры, изменения, аннулирования таких наименований, согласования переустройства и перепланировки помещений в многоквартирном доме | Y75: 001 | Z75: 01 | AA75: 04 | AB75: 16 2 03 60700 | AD75: =AD76+AD78 -> 439.8 | AE75: =AE76+AE78 -> 494 | AF75: 494
X76: Расходы на выплаты персоналу в целях обеспечения выполнения функций государственными (муниципальными) органами, казенными учреждениями, органами управления государственными внебюджетными фондами | Y76: 001 | Z76: 01 | AA76: 04 | AB76: 16 2 03 60700 | AC76: 100 | AD76: 356.4 | AE76: 410.6 | AF76: 410.6
X77: Расходы на выплаты персоналу государственных (муниципальных) органов | Y77: 001 | Z77: 01 | AA77: 04 | AB77: 16 2 03 60700 | AC77: 120 | AD77: =410.6-54.2 -> 356.4 | AE77: 410.6 | AF77: 410.6
X78: Закупка товаров, работ и услуг для обеспечения государственных (муниципальных) нужд | Y78: 001 | Z78: 01 | AA78: 04 | AB78: 16 2 03 60700 | AC78: 200 | AD78: =AD79 -> 83.4 | AE78: =AE79 -> 83.4 | AF78: 83.4
X79: Иные закупки товаров, работ и услуг для обеспечения государственных (муниципальных) нужд | Y79: 001 | Z79: 01 | AA79: 04 | AB79: 16 2 03 60700 | AC79: 240 | AD79: 83.4 | AE79: 83.4 | AF79: 83.4
X80: Резервные фонды | Y80: 001 | Z80: 01 | AA80: 11 | AD80: =AD81 -> 5138.5 | AE80: =AE81 -> 50910.5 | AF80: =AF81 -> 3414.8
X81: Непрограммные расходы | Y81: 001 | Z81: 01 | AA81: 11 | AB81: 99 0 00 00000 | AD81: =AD82+AD85 -> 5138.5 | AE81: =AE82+AE85 -> 50910.5 | AF81: =AF82+AF85 -> 3414.8
X82: Резервный фонд администрации | Y82: 001 | Z82: 01 | AA82: 11 | AB82: 99 0 00 00060 | AD82: =AD83 -> 4138.5 | AE82: 49910.5 | AF82: 2414.8
X83: Иные бюджетные ассигнования | Y83: 001 | Z83: 01 | AA83: 11 | AB83: 99 0 00 00060 | AC83: 800 | AD83: 4138.5 | AE83: 49910.5 | AF83: 2414.8
X84: Резервные средства | Y84: 001 | Z84: 01 | AA84: 11 | AB84: 99 0 00 00060 | AC84: 870 | AD84: =30000-10460.4-18301.1+3000-100 -> 4138.5 | AE84: =60000-952.8-110-342+128.1-1825-6987.8 -> 49910.5 | AF84: =1000+3221.8+193-2000 -> 2414.8
X85: Резервный фонд на предупреждение и ликвидацию чрезвычайных ситуаций и последствий стихийных бедствий | Y85: 001 | Z85: 01 | AA85: 11 | AB85: 99 0 00 00070 | AD85: =AD86 -> 1000 | AE85: 1000 | AF85: 1000
X86: Иные бюджетные ассигнования | Y86: 001 | Z86: 01 | AA86: 11 | AB86: 99 0 00 00070 | AC86: 800 | AD86: 1000 | AE86: 1000 | AF86: 1000
X87: Резервные средства | Y87: 001 | Z87: 01 | AA87: 11 | AB87: 99 0 00 00070 | AC87: 870 | AD87: 1000 | AE87: 1000 | AF87: 1000
X88: Другие общегосударственные вопросы | Y88: 001 | Z88: 01 | AA88: 13 | AD88: =AD95+AD130+AD141+AD151+AD89 -> 122634 | AE88: =AE95+AE130+AE141+AE151+AE89 -> 119018.4 | AF88: =AF95+AF130+AF141+AF151+AF89 -> 91514.9
X89: Муниципальная программа «Культура» | Y89: 001 | Z89: 01 | AA89: 13 | AB89: 02 0 00 00000 | AD89: =AD90 -> 102 | AE89: 0 | AF89: 80
X90: Подпрограмма «Развитие архивного дела в Московской области» | Y90: 001 | Z90: 01 | AA90: 13 | AB90: 02 7 00 00000 | AD90: 102 | AE90: 0 | AF90: 80
X91: Основное мероприятие «Хранение, комплектование, учет и использование архивных документов в муниципальных архивах» | Y91: 001 | Z91: 01 | AA91: 13 | AB91: 02 7 01 00000 | AD91: =AD92 -> 102 | AE91: 0 | AF91: 80
X92: Расходы на обеспечение деятельности (оказание услуг) муниципальных архивов | Y92: 001 | Z92: 01 | AA92: 13 | AB92: 02 7 01 06160 | AD92: 102 | AE92: 0 | AF92: 80
X93: Закупка товаров, работ и услуг для обеспечения государственных (муниципальных) нужд | Y93: 001 | Z93: 01 | AA93: 13 | AB93: 02 7 01 06160 | AC93: 200 | AD93: 102 | AE93: 0 | AF93: 80
X94: Иные закупки товаров, работ и услуг для обеспечения государственных (муниципальных) нужд | Y94: 001 | Z94: 01 | AA94: 13 | AB94: 02 7 01 06160 | AC94: 240 | AD94: 102 | AE94: 0 | AF94: 80
X95: Муниципальная программа «Управление имуществом и муниципальными финансами» | Y95: 001 | Z95: 01 | AA95: 13 | AB95: 12 0 00 00000 | AD95: =AD96+AD105 -> 81424 | AE95: =AE96+AE105 -> 79725.9 | AF95: =AF96+AF105 -> 58963.4
X96: Подпрограмма «Развитие имущественного комплекса» | Y96: 001 | Z96: 01 | AA96: 13 | AB96: 12 1 00 00000 | AD96: =AD97 -> 9956.6 | AE96: 8352 | AF96: 8352
X97: Основное мероприятие «Управление имуществом, находящимся в муниципальной собственности, и выполнение кадастровых работ» | Y97: 001 | Z97: 01 | AA97: 13 | AB97: 12 1 02 00000 | AD97: 9956.6 | AE97: 8352 | AF97: 8352
X98: Владение, пользование и распоряжение имуществом, находящимся в муниципальной собственности городского округа | Y98: 001 | Z98: 01 | AA98: 13 | AB98: 12 1 02 00170 | AD98: =AD103+AD99+AD101 -> 9956.6 | AE98: =AE103+AE99+AE101 -> 8352 | AF98: =AF103+AF99+AF101 -> 8352
X99: Закупка товаров, работ и услуг для обеспечения государственных (муниципальных) нужд | Y99: 001 | Z99: 01 | AA99: 13 | AB99: 12 1 02 00170 | AC99: 200 | AD99: =AD100 -> 60 | AE99: =AE100 -> 60 | AF99: =AF100 -> 60
X100: Иные закупки товаров, работ и услуг для обеспечения государственных (муниципальных) нужд | Y100: 001 | Z100: 01 | AA100: 13 | AB100: 12 1 02 00170 | AC100: 240 | AD100: 60 | AE100: 60 | AF100: 60
X101: Социальное обеспечение и иные выплаты населению | Y101: 001 | Z101: 01 | AA101: 13 | AB101: 12 1 02 00170 | AC101: 300 | AD101: =AD102 -> 2296.6 | AE101: =AE102 -> 2292 | AF101: 2292
X102: Иные выплаты населению | Y102: 001 | Z102: 01 | AA102: 13 | AB102: 12 1 02 00170 | AC102: 360 | AD102: =2292+4.6 -> 2296.6 | AE102: 2292 | AF102: 2292
X103: Предоставление субсидий бюджетным, автономным учреждениям и иным некоммерческим организациям | Y103: 001 | Z103: 01 | AA103: 13 | AB103: 12 1 02 00170 | AC103: 600 | AD103: =AD104 -> 7600 | AE103: =AE104 -> 6000 | AF103: =AF104 -> 6000
X104: Субсидии бюджетным учреждениям | Y104: 001 | Z104: 01 | AA104: 13 | AB104: 12 1 02 00170 | AC104: 610 | AD104: =6000+1600 -> 7600 | AE104: 6000 | AF104: 6000
X105: Обеспечивающая подпрограмма | Y105: 001 | Z105: 01 | AA105: 13 | AB105: 12 5 00 00000 | AD105: =AD106 -> 71467.4 | AE105: =AE106 -> 71373.9 | AF105: =AF106 -> 50611.4
X106: Основное мероприятие «Создание условий для реализации полномочий органов местного самоуправления» | Y106: 001 | Z106: 01 | AA106: 13 | AB106: 12 5 01 00000 | AD106: =AD107+AD110 -> 71467.4 | AE106: =AE107+AE110 -> 71373.9 | AF106: =AF107+AF110 -> 50611.4
X107: Взносы в общественные организации | Y107: 001 | Z107: 01 | AA107: 13 | AB107: 12 5 01 00870 | AD107: =AD109 -> 121.2 | AE107: =AE109 -> 125 | AF107: =AF109 -> 125
X108: Иные бюджетные ассигнования | Y108: 001 | Z108: 01 | AA108: 13 | AB108: 12 5 01 00870 | AC108: 800 | AD108: =AD109 -> 121.2 | AE108: =AE109 -> 125 | AF108: =AF109 -> 125
X109: Уплата налогов, сборов и иных платежей | Y109: 001 | Z109: 01 | AA109: 13 | AB109: 12 5 01 00870 | AC109: 850 | AD109: =121+0.2 -> 121.2 | AE109: 125 | AF109: 125
X110: Расходы на обеспечение деятельности (оказание услуг) муниципальных учреждений - обеспечение деятельности органов местного самоуправления | Y110: 001 | Z110: 01 | AA110: 13 | AB110: 12 5 01 06090 | AD110: =AD111+AD116+AD123 -> 71346.2 | AE110: =AE111+AE116+AE123 -> 71248.9 | AF110: =AF111+AF116+AF123 -> 50486.4
X111: Расходы на обеспечение деятельности (оказание услуг) муниципальных учреждений - обеспечение деятельности органов местного самоуправления( МКУ"Комитет по торгам города Лыткарино") | Y111: 001 | Z111: 01 | AA111: 13 | AB111: 12 5 01 06091 | AD111: =AD112+AD114 -> 11269.8 | AE111: =AE112+AE114 -> 11212.8 | AF111: =AF112+AF114 -> 8099.8
X112: Расходы на выплаты персоналу в целях обеспечения выполнения функций государственными (муниципальными) органами, казенными учреждениями, органами управления государственными внебюджетными фондами | Y112: 001 | Z112: 01 | AA112: 13 | AB112: 12 5 01 06091 | AC112: 100 | AD112: =AD113 -> 10377.3 | AE112: =AE113 -> 10377.3 | AF112: =AF113 -> 7264.3
X113: Расходы на выплаты персоналу казенных учреждений | Y113: 001 | Z113: 01 | AA113: 13 | AB113: 12 5 01 06091 | AC113: 110 | AD113: 10377.3 | AE113: 10377.3 | AF113: 7264.3
X114: Закупка товаров, работ и услуг для обеспечения государственных (муниципальных) нужд | Y114: 001 | Z114: 01 | AA114: 13 | AB114: 12 5 01 06091 | AC114: 200 | AD114: =AD115 -> 892.5 | AE114: =AE115 -> 835.5 | AF114: =AF115 -> 835.5
X115: Иные закупки товаров, работ и услуг для обеспечения государственных (муниципальных) нужд | Y115: 001 | Z115: 01 | AA115: 13 | AB115: 12 5 01 06091 | AC115: 240 | AD115: =835.5+57 -> 892.5 | AE115: 835.5 | AF115: 835.5
X116: Расходы на обеспечение деятельности (оказание услуг) муниципальных учреждений - обеспечение деятельности органов местного самоуправления( "Управление обеспечения деятельности Администрации города Лыткарино") | Y116: 001 | Z116: 01 | AA116: 13 | AB116: 12 5 01 06092 | AD116: =AD117+AD119+AD121 -> 47512.8 | AE116: =AE117+AE119 -> 47512.8 | AF116: 33447.3
X117: Расходы на выплаты персоналу в целях обеспечения выполнения функций государственными (муниципальными) органами, казенными учреждениями, органами управления государственными внебюджетными фондами | Y117: 001 | Z117: 01 | AA117: 13 | AB117: 12 5 01 06092 | AC117: 100 | AD117: =AD118 -> 46823 | AE117: =AE118 -> 46885.1 | AF117: =AF118 -> 32819.6
X118: Расходы на выплаты персоналу казенных учреждений | Y118: 001 | Z118: 01 | AA118: 13 | AB118: 12 5 01 06092 | AC118: 110 | AD118: =46885.1-62.1 -> 46823 | AE118: 46885.1 | AF118: 32819.6
X119: Закупка товаров, работ и услуг для обеспечения государственных (муниципальных) нужд | Y119: 001 | Z119: 01 | AA119: 13 | AB119: 12 5 01 06092 | AC119: 200 | AD119: =AD120 -> 627.7 | AE119: =AE120 -> 627.7 | AF119: =AF120 -> 627.7
X120: Иные закупки товаров, работ и услуг для обеспечения государственных (муниципальных) нужд | Y120: 001 | Z120: 01 | AA120: 13 | AB120: 12 5 01 06092 | AC120: 240 | AD120: =627.7 -> 627.7 | AE120: 627.7 | AF120: 627.7
X121: Иные бюджетные ассигнования | Y121: 001 | Z121: 01 | AA121: 13 | AB121: 12 5 01 06092 | AC121: 800 | AD121: =AD122 -> 62.1 | AE121: =AE122 -> 0 | AF121: 0
X122: Уплата налогов, сборов и иных платежей | Y122: 001 | Z122: 01 | AA122: 13 | AB122: 12 5 01 06092 | AC122: 850 | AD122: 62.1 | AE122: 0 | AF122: 0
X123: Расходы на обеспечение деятельности (оказание услуг) муниципальных учреждений - обеспечение деятельности органов местного самоуправления ("Комитет по делам культуры, молодежи,спорта и туризма г.Лыткарино") | Y123: 001 | Z123: 01 | AA123: 13 | AB123: 12 5 01 06093 | AD123: =AD124+AD126+AD128 -> 12563.6 | AE123: =AE124+AE126+AE128 -> 12523.3 | AF123: 8939.3
X124: Расходы на выплаты персоналу в целях обеспечения выполнения функций государственными (муниципальными) органами, казенными учреждениями, органами управления государственными внебюджетными фондами | Y124: 001 | Z124: 01 | AA124: 13 | AB124: 12 5 01 06093 | AC124: 100 | AD124: =AD125 -> 11946.7 | AE124: =AE125 -> 11946.7 | AF124: =AF125 -> 8362.7
X125: Расходы на выплаты персоналу казенных учреждений | Y125: 001 | Z125: 01 | AA125: 13 | AB125: 12 5 01 06093 | AC125: 110 | AD125: 11946.7 | AE125: 11946.7 | AF125: 8362.7
X126: Закупка товаров, работ и услуг для обеспечения государственных (муниципальных) нужд | Y126: 001 | Z126: 01 | AA126: 13 | AB126: 12 5 01 06093 | AC126: 200 | AD126: =AD127 -> 589.5 | AE126: =AE127 -> 576.6 | AF126: =AF127 -> 576.6
X127: Иные закупки товаров, работ и услуг для обеспечения государственных (муниципальных) нужд | Y127: 001 | Z127: 01 | AA127: 13 | AB127: 12 5 01 06093 | AC127: 240 | AD127: =576.6+20.9-0.4-6-0.6-1 -> 589.5 | AE127: 576.6 | AF127: 576.6
X128: Иные бюджетные ассигнования | Y128: 001 | Z128: 01 | AA128: 13 | AB128: 12 5 01 06093 | AC128: 800 | AD128: =AD129 -> 27.4 | AE128: =AE129 -> 0 | AF128: 0
X129: Уплата налогов, сборов и иных платежей | Y129: 001 | Z129: 01 | AA129: 13 | AB129: 12 5 01 06093 | AC129: 850 | AD129: =19.4+0.4+6+0.6+1 -> 27.4 | AE129: 0 | AF129: 0
X130: Муниципальная программа «Развитие институтов гражданского общества, повышение эффективности местного самоуправления и реализации молодежной политики» | Y130: 001 | Z130: 01 | AA130: 13 | AB130: 13 0 00 00000 | AD130: =AD131+AD136 -> 541.5 | AE130: =AE131+AE136 -> 119.5 | AF130: =AF131+AF136 -> 78.5
X131: Подпрограмма «Развитие системы информирования населения о деятельности органов местного самоуправления Московской области, создание доступной современной медиасреды» | Y131: 001 | Z131: 01 | AA131: 13 | AB131: 13 1 00 00000 | AD131: =AD132 -> 13.5 | AE131: 13.5 | AF131: 13.5
X132: Основное мероприятие «Информирование населения об основных событиях социально-экономического развития и общественно-политической жизни» | Y132: 001 | Z132: 01 | AA132: 13 | AB132: 13 1 01 00000 | AD132: 13.5 | AE132: 13.5 | AF132: 13.5
X133: Информирование населения о деятельности, о положении дел на территории муниципального образования, опубликование муниципальных правовых актов, обсуждение проектов муниципальных правовых актов по вопросам местного значения, доведение до сведения жителей муниципального образования официальной информации о социально-экономическом и культурном развитии муниципального образования, о развитии его общественной инфраструктуры и иной официальной информации | Y133: 001 | Z133: 01 | AA133: 13 | AB133: 13 1 01 00820 | AD133: =AD134 -> 13.5 | AE133: 13.5 | AF133: 13.5
X134: Закупка товаров, работ и услуг для обеспечения государственных (муниципальных) нужд | Y134: 001 | Z134: 01 | AA134: 13 | AB134: 13 1 01 00820 | AC134: 200 | AD134: 13.5 | AE134: 13.5 | AF134: 13.5
X135: Иные закупки товаров, работ и услуг для обеспечения государственных (муниципальных) нужд | Y135: 001 | Z135: 01 | AA135: 13 | AB135: 13 1 01 00820 | AC135: 240 | AD135: 13.5 | AE135: 13.5 | AF135: 13.5
X136: Обеспечивающая подпрограмма | Y136: 001 | Z136: 01 | AA136: 13 | AB136: 13 5 00 00000 | AD136: =AD137 -> 528 | AE136: =AE137 -> 106 | AF136: 65
X137: Основное мероприятие «Корректировка списков кандидатов в присяжные заседатели федеральных судов общей юрисдикции в Российской Федерации» | Y137: 001 | Z137: 01 | AA137: 13 | AB137: 13 5 04 00000 | AD137: =AD138 -> 528 | AE137: 106 | AF137: 65
X138: Составление (изменение) списков кандидатов в присяжные заседатели федеральных судов общей юрисдикции в Российской Федерации | Y138: 001 | Z138: 01 | AA138: 13 | AB138: 13 5 04 51200 | AD138: 528 | AE138: 106 | AF138: 65
X139: Закупка товаров, работ и услуг для обеспечения государственных (муниципальных) нужд | Y139: 001 | Z139: 01 | AA139: 13 | AB139: 13 5 04 51200 | AC139: 200 | AD139: 528 | AE139: 106 | AF139: 65
X140: Иные закупки товаров, работ и услуг для обеспечения государственных (муниципальных) нужд | Y140: 001 | Z140: 01 | AA140: 13 | AB140: 13 5 04 51200 | AC140: 240 | AD140: 528 | AE140: 106 | AF140: 65
X141: Муниципальная программа «Цифровое муниципальное образование» | Y141: 001 | Z141: 01 | AA141: 13 | AB141: 15 0 00 00000 | AD141: =AD142 -> 35761 | AE141: =AE142 -> 35293 | AF141: 30293
X142: Подпрограмма «Снижение административных барьеров, повышение качества и доступности предоставления государственных и муниципальных услуг, в том числе на базе многофункциональных центров предоставления государственных и муниципальных услуг, а также услуг почтовой связи» | Y142: 001 | Z142: 01 | AA142: 13 | AB142: 15 1 00 00000 | AD142: =AD143+AD147 -> 35761 | AE142: =AE143+AE147 -> 35293 | AF142: 30293
X143: Основное мероприятие «Организация деятельности многофункциональных центров предоставления государственных и муниципальных услуг» | Y143: 001 | Z143: 01 | AA143: 13 | AB143: 15 1 02 00000 | AD143: =AD144 -> 35468 | AE143: 35000 | AF143: 30000
X144: Расходы на обеспечение деятельности (оказание услуг) муниципальных учреждений - многофункциональный центр предоставления государственных и муниципальных услуг | Y144: 001 | Z144: 01 | AA144: 13 | AB144: 15 1 02 06190 | AD144: =AD145 -> 35468 | AE144: 35000 | AF144: 30000
X145: Предоставление субсидий бюджетным, автономным учреждениям и иным некоммерческим организациям | Y145: 001 | Z145: 01 | AA145: 13 | AB145: 15 1 02 06190 | AC145: 600 | AD145: 35468 | AE145: 35000 | AF145: 30000
X146: Субсидии бюджетным учреждениям | Y146: 001 | Z146: 01 | AA146: 13 | AB146: 15 1 02 06190 | AC146: 610 | AD146: =35000+468 -> 35468 | AE146: 35000 | AF146: 30000
X147: Основное мероприятие "Совершенствование системы предоставления государственных и муниципальных услуг по принципу одного окна в многофункциональных центрах предоставления государственных и муниципальных услуг" | Y147: 001 | Z147: 01 | AA147: 13 | AB147: 15 1 03 00000 | AD147: =AD148 -> 293 | AE147: =AE148 -> 293 | AF147: 293
X148: Дооснащение материально-техническими средствами – приобретение программно-технических комплексов для оформления паспортов гражданина Российской Федерации, удостоверяющих личность гражданина Российской Федерации за пределами территории Российской Федерации в многофункциональных центрах предоставления государственных и муниципальных услуг,а также их техническая поддержка | Y148: 001 | Z148: 01 | AA148: 13 | AB148: 15 1 03 S0860 | AD148: =AD149 -> 293 | AE148: =AE149 -> 293 | AF148: 293
X149: Предоставление субсидий бюджетным, автономным учреждениям и иным некоммерческим организациям | Y149: 001 | Z149: 01 | AA149: 13 | AB149: 15 1 03 S0860 | AC149: 600 | AD149: =AD150 -> 293 | AE149: =AE150 -> 293 | AF149: 293
X150: Субсидии бюджетным учреждениям | Y150: 001 | Z150: 01 | AA150: 13 | AB150: 15 1 03 S0860 | AC150: 610 | AD150: =244+49 -> 293 | AE150: =244+49 -> 293 | AF150: =244+49 -> 293
X151: Непрограммные расходы | Y151: 001 | Z151: 01 | AA151: 13 | AB151: 99 0 00 00000 | AD151: =AD152+AD155 -> 4805.5 | AE151: =AE152+AE155 -> 3880 | AF151: 2100
X152: Оплата исполнительных листов, судебных издержек | Y152: 001 | Z152: 01 | AA152: 13 | AB152: 99 0 00 00080 | AD152: =AD153 -> 330 | AE152: 100 | AF152: 100
X153: Иные бюджетные ассигнования | Y153: 001 | Z153: 01 | AA153: 13 | AB153: 99 0 00 00080 | AC153: 800 | AD153: 330 | AE153: 100 | AF153: 100
X154: Исполнение судебных актов | Y154: 001 | Z154: 01 | AA154: 13 | AB154: 99 0 00 00080 | AC154: 830 | AD154: =100+230 -> 330 | AE154: 100 | AF154: 100
X155: Иные расходы | Y155: 001 | Z155: 01 | AA155: 13 | AB155: 99 0 00 04000 | AD155: =AD156+AD159 -> 4475.5 | AE155: =AE156+AE159 -> 3780 | AF155: 2000
X156: Иные расходы (взыкания на средства бюджета) | Y156: 001 | Z156: 01 | AA156: 13 | AB156: 99 0 00 04002 | AD156: =AD157 -> 4005.9 | AE156: =AE157 -> 0 | AF156: 0
X157: Иные бюджетные ассигнования | Y157: 001 | Z157: 01 | AA157: 13 | AB157: 99 0 00 04002 | AC157: 800 | AD157: =AD158 -> 4005.9 | AE157: =AE158 -> 0 | AF157: 0
X158: Уплата налогов, сборов и иных платежей | Y158: 001 | Z158: 01 | AA158: 13 | AB158: 99 0 00 04002 | AC158: 850 | AD158: 4005.9 | AE158: 0 | AF158: 0
X159: Иные расходы (обеспечение участия городского округа Лыткарино в государственных программах Московской области) | Y159: 001 | Z159: 01 | AA159: 13 | AB159: 99 0 00 04006 | AD159: =AD160 -> 469.6 | AE159: =AE160 -> 3780 | AF159: 2000
X160: Иные бюджетные ассигнования | Y160: 001 | Z160: 01 | AA160: 13 | AB160: 99 0 00 04006 | AC160: 800 | AD160: =AD161 -> 469.6 | AE160: 3780 | AF160: 2000
X161: Резервные средства | Y161: 001 | Z161: 01 | AA161: 13 | AB161: 99 0 00 04006 | AC161: 870 | AD161: =447.1+22.5 -> 469.6 | AE161: 3780 | AF161: 2000
X162: Национальная оборона | Y162: 001 | Z162: 02 | AD162: =AD163+AD170 -> 3940 | AE162: =AE163+AE170 -> 4070 | AF162: =AF163+AF170 -> 4205
X163: Мобилизационная и вневойсковая подготовка | Y163: 001 | Z163: 02 | AA163: 03 | AD163: =AD164 -> 3740 | AE163: =AE164 -> 3870 | AF163: =AF164 -> 4005
X164: Муниципальная программа «Развитие институтов гражданского общества, повышение эффективности местного самоуправления и реализации молодежной политики» | Y164: 001 | Z164: 02 | AA164: 03 | AB164: 13 0 00 00000 | AD164: =AD165 -> 3740 | AE164: 3870 | AF164: 4005
X165: Обеспечивающая подпрограмма | Y165: 001 | Z165: 02 | AA165: 03 | AB165: 13 5 00 00000 | AD165: 3740 | AE165: 3870 | AF165: 4005
X166: Основное мероприятие «Осуществление первичного воинского учета на территориях, где отсутствуют военные комиссариаты» | Y166: 001 | Z166: 02 | AA166: 03 | AB166: 13 5 03 00000 | AD166: 3740 | AE166: 3870 | AF166: 4005
X167: Осуществление первичного воинского учета на территориях, где отсутствуют военные комиссариаты | Y167: 001 | Z167: 02 | AA167: 03 | AB167: 13 5 03 51180 | AD167: 3740 | AE167: 3870 | AF167: 4005
X168: Расходы на выплаты персоналу в целях обеспечения выполнения функций государственными (муниципальными) органами, казенными учреждениями, органами управления государственными внебюджетными фондами | Y168: 001 | Z168: 02 | AA168: 03 | AB168: 13 5 03 51180 | AC168: 100 | AD168: =AD169 -> 3740 | AE168: =AE169 -> 3870 | AF168: =AF169 -> 4005
X169: Расходы на выплаты персоналу государственных (муниципальных) органов | Y169: 001 | Z169: 02 | AA169: 03 | AB169: 13 5 03 51180 | AC169: 120 | AD169: 3740 | AE169: 3870 | AF169: 4005
X170: Мобилизационная подготовка экономики | Y170: 001 | Z170: 02 | AA170: 04 | AD170: =AD171 -> 200 | AE170: 200 | AF170: 200
X171: Муниципальная программа «Управление имуществом и муниципальными финансами» | Y171: 001 | Z171: 02 | AA171: 04 | AB171: 12 0 00 00000 | AD171: 200 | AE171: 200 | AF171: 200
X172: Обеспечивающая подпрограмма | Y172: 001 | Z172: 02 | AA172: 04 | AB172: 12 5 00 00000 | AD172: =AD173 -> 200 | AE172: 200 | AF172: 200
X173: Основное мероприятие «Создание условий для реализации полномочий органов местного самоуправления» | Y173: 001 | Z173: 02 | AA173: 04 | AB173: 12 5 01 00000 | AD173: 200 | AE173: 200 | AF173: 200
X174: Организация и осуществление мероприятий по мобилизационной подготовке | Y174: 001 | Z174: 02 | AA174: 04 | AB174: 12 5 01 00720 | AD174: 200 | AE174: 200 | AF174: 200
X175: Закупка товаров, работ и услуг для обеспечения государственных (муниципальных) нужд | Y175: 001 | Z175: 02 | AA175: 04 | AB175: 12 5 01 00720 | AC175: 200 | AD175: 200 | AE175: 200 | AF175: 200
X176: Иные закупки товаров, работ и услуг для обеспечения государственных (муниципальных) нужд | Y176: 001 | Z176: 02 | AA176: 04 | AB176: 12 5 01 00720 | AC176: 240 | AD176: 200 | AE176: 200 | AF176: 200
X177: Национальная безопасность и правоохранительная деятельность | Y177: 001 | Z177: 03 | AD177: =AD178+AD190+AD225 -> 39263.3 | AE177: =AE178+AE190+AE225 -> 39355.6 | AF177: =AF178+AF190+AF225 -> 29722.8
X178: Гражданская оборона | Y178: 001 | Z178: 03 | AA178: 09 | AD178: =AD179 -> 1590.7 | AE178: =AE179 -> 1147.7 | AF178: =AF179 -> 1147.7
X179: Муниципальная программа «Безопасность и обеспечение безопасности жизнедеятельности населения» | Y179: 001 | Z179: 03 | AA179: 09 | AB179: 08 0 00 00000 | AD179: =AD180+AD185 -> 1590.7 | AE179: =AE180+AE185 -> 1147.7 | AF179: =AF180+AF185 -> 1147.7
X180: Подпрограмма «Развитие и совершенствование систем оповещения и информирования населения муниципального образования Московской области» | Y180: 001 | Z180: 03 | AA180: 09 | AB180: 08 3 00 00000 | AD180: =AD181 -> 893.7 | AE180: 450.7 | AF180: 450.7
X181: Основное мероприятие «Создание, развитие и поддержание в постоянной готовности систем оповещения населения об опасностях, возникающих при военных конфликтах или вследствие этих конфликтов, а также при чрезвычайных ситуациях природного и техногенного характера (происшествиях) на территории муниципального образования Московской области» | Y181: 001 | Z181: 03 | AA181: 09 | AB181: 08 3 01 00000 | AD181: 893.7 | AE181: 450.7 | AF181: 450.7
X182: Поддержка в состоянии постоянной готовности к использованию систем оповещения населения об опасности, объектов гражданской обороны | Y182: 001 | Z182: 03 | AA182: 09 | AB182: 08 3 01 00690 | AD182: 893.7 | AE182: 450.7 | AF182: 450.7
X183: Закупка товаров, работ и услуг для обеспечения государственных (муниципальных) нужд | Y183: 001 | Z183: 03 | AA183: 09 | AB183: 08 3 01 00690 | AC183: 200 | AD183: 893.7 | AE183: 450.7 | AF183: 450.7
X184: Иные закупки товаров, работ и услуг для обеспечения государственных (муниципальных) нужд | Y184: 001 | Z184: 03 | AA184: 09 | AB184: 08 3 01 00690 | AC184: 240 | AD184: =833-142.3+0.4+42.6+160 -> 893.7 | AE184: =593-142.3 -> 450.7 | AF184: 450.7
X185: Подпрограмма «Обеспечение мероприятий гражданской обороны на территории муниципального образования Московской области» | Y185: 001 | Z185: 03 | AA185: 09 | AB185: 08 5 00 00000 | AD185: =AD186 -> 697 | AE185: 697 | AF185: 697
X186: Основное мероприятие «Обеспечение готовности защитных сооружений и других объектов гражданской обороны на территории муниципальных образований Московской области» | Y186: 001 | Z186: 03 | AA186: 09 | AB186: 08 5 02 00000 | AD186: 697 | AE186: 697 | AF186: 697
X187: Организация и осуществление мероприятий по территориальной обороне и гражданской обороне | Y187: 001 | Z187: 03 | AA187: 09 | AB187: 08 5 02 00670 | AD187: =AD188 -> 697 | AE187: 697 | AF187: 697
X188: Закупка товаров, работ и услуг для обеспечения государственных (муниципальных) нужд | Y188: 001 | Z188: 03 | AA188: 09 | AB188: 08 5 02 00670 | AC188: 200 | AD188: 697 | AE188: 697 | AF188: 697
X189: Иные закупки товаров, работ и услуг для обеспечения государственных (муниципальных) нужд | Y189: 001 | Z189: 03 | AA189: 09 | AB189: 08 5 02 00670 | AC189: 240 | AD189: 697 | AE189: 697 | AF189: 697
X190: Защита населения и территории от чрезвычайных ситуаций природного и техногенного характера,пожарная безопасность | Y190: 001 | Z190: 03 | AA190: 10 | AD190: =AD191+AD219 -> 23188.1 | AE190: =AE191+AE219 -> 22374.5 | AF190: =AF191+AF219 -> 22374.5
X191: Муниципальная программа «Безопасность и обеспечение безопасности жизнедеятельности населения» | Y191: 001 | Z191: 03 | AA191: 10 | AB191: 08 0 00 00000 | AD191: =AD192+AD203+AD208 -> 23183.6 | AE191: =AE192+AE203+AE208 -> 22370 | AF191: =AF192+AF203+AF208 -> 22370
X192: Подпрограмма "Снижение возникновения рисков и смягчение последствий чрезвычайных ситуаций природного и техногенного характера на территории муниципального образования Московской области" | Y192: 001 | Z192: 03 | AA192: 10 | AB192: 08 2 00 00000 | AD192: =AD193+AD197 -> 1492 | AE192: =AE193+AE197 -> 1492 | AF192: =AF193+AF197 -> 1492
X193: Основное мероприятие «Осуществление мероприятий по защите и смягчению последствий от чрезвычайных ситуаций природного и техногенного характера населения и территорий муниципального образования Московской области» | Y193: 001 | Z193: 03 | AA193: 10 | AB193: 08 2 01 00000 | AD193: =AD194 -> 722 | AE193: 722 | AF193: 722
X194: Участие в предупреждении и ликвидации последствий чрезвычайных ситуаций в границах городского округа | Y194: 001 | Z194: 03 | AA194: 10 | AB194: 08 2 01 00340 | AD194: 722 | AE194: 722 | AF194: 722
X195: Закупка товаров, работ и услуг для обеспечения государственных (муниципальных) нужд | Y195: 001 | Z195: 03 | AA195: 10 | AB195: 08 2 01 00340 | AC195: 200 | AD195: 722 | AE195: 722 | AF195: 722
X196: Иные закупки товаров, работ и услуг для обеспечения государственных (муниципальных) нужд | Y196: 001 | Z196: 03 | AA196: 10 | AB196: 08 2 01 00340 | AC196: 240 | AD196: 722 | AE196: 722 | AF196: 722
X197: Основное мероприятие "Выполнение мероприятий по безопасности населения на водных объектах, расположенных на территории муниципального образования Московской области | Y197: 001 | Z197: 03 | AA197: 10 | AB197: 08 2 02 00000 | AD197: =AD198 -> 770 | AE197: =AE198 -> 770 | AF197: =AF198 -> 770
X198: Осуществление мероприятий по обеспечению безопасности людей на водных объектах, охране их жизни и здоровья | Y198: 001 | Z198: 03 | AA198: 10 | AB198: 08 2 02 00730 | AD198: =AD199+AD201 -> 770 | AE198: =AE199+AE201 -> 770 | AF198: =AF199+AF201 -> 770
X199: Закупка товаров, работ и услуг для обеспечения государственных (муниципальных) нужд | Y199: 001 | Z199: 03 | AA199: 10 | AB199: 08 2 02 00730 | AC199: 200 | AD199: =AD200 -> 70 | AE199: =AE200 -> 70 | AF199: =AF200 -> 70
X200: Иные закупки товаров, работ и услуг для обеспечения государственных (муниципальных) нужд | Y200: 001 | Z200: 03 | AA200: 10 | AB200: 08 2 02 00730 | AC200: 240 | AD200: 70 | AE200: 70 | AF200: 70
X201: Предоставление субсидий бюджетным, автономным учреждениям и иным некоммерческим организациям | Y201: 001 | Z201: 03 | AA201: 10 | AB201: 08 2 02 00730 | AC201: 600 | AD201: =AD202 -> 700 | AE201: =AE202 -> 700 | AF201: =AF202 -> 700
X202: Субсидии бюджетным учреждениям | Y202: 001 | Z202: 03 | AA202: 10 | AB202: 08 2 02 00730 | AC202: 610 | AD202: 700 | AE202: 700 | AF202: 700
X203: Подпрограмма «Обеспечение пожарной безопасности на территории муниципального образования Московской области» | Y203: 001 | Z203: 03 | AA203: 10 | AB203: 08 4 00 00000 | AD203: =AD204 -> 530.7 | AE203: 685.5 | AF203: 685.5
... 1011 more rows

Sheet Лист1
